Workbook

Sheet Calendrier général
B1: CALENDRIER BENJAMINS | L1: CALENDRIER MINIMES
A2: Date | B2: Match | C2: Equipe A | D2: Equipe B | E2: Lieux | F2: Horaires | G2: Résultats | I2: Indisponibilités | K2: Date | L2: Match | M2: Equipe A | N2: Equipe B | O2: Lieux | P2: Horaires | Q2: Résultats | S2: Indisponibilités
A3: 2022-03-09 | B3: DIVISION 1 | K3: 2022-03-09 | L3: DIVISION 1
B4: ENTRAINEMENT | L4: ENTRAINEMENT
A9: 2022-03-16 | B9: DIVISION 1
B10: 55 | C10: ='Calendrier BG'!C10 -> SJL 1 | D10: ='Calendrier BG'!D10 -> MASS 2 | E10: SJL TA | F10: 14h20 | G10: ='Calendrier BG'!G10 -> 10 | H10: ='Calendrier BG'!H10 -> 0
B11: 46 | C11: ='Calendrier BG'!C11 -> SJL 2 | D11: ='Calendrier BG'!D11 -> MASS 1 | E11: SJL TB | F11: 14h20 | G11: ='Calendrier BG'!G11 -> 1 | H11: ='Calendrier BG'!H11 -> 6
B12: 38 | C12: ='Calendrier BG'!C12 -> MASS 1 | D12: ='Calendrier BG'!D12 -> SJL 1 | E12: SJL TA | F12: 14h40 | G12: ='Calendrier BG'!G12 -> 0 | H12: ='Calendrier BG'!H12 -> 4 | K12: 2022-03-16 | L12: DIVISION 1
B13: 58 | C13: ='Calendrier BG'!C13 -> MASS 2 | D13: ='Calendrier BG'!D13 -> SJL 2 | E13: SJL TB | F13: 14h40 | G13: ='Calendrier BG'!G13 -> 1 | H13: ='Calendrier BG'!H13 -> 4 | L13: 32 | M13: ='Calendrier MG'!C13 -> STAN 2 | N13: ='Calendrier MG'!D13 -> ASVP | O13: La Courneuve T3 A | P13: 14h20 | Q13: ='Calendrier MG'!G13 -> 3 | R13: ='Calendrier MG'!H13 -> 1
B14: 67 | C14: ='Calendrier BG'!C14 -> ROC 1 | D14: ='Calendrier BG'!D14 -> STAN 1 | E14: La Courneuve T5 B | F14: 14h20 | G14: ='Calendrier BG'!G14 -> 0 | H14: ='Calendrier BG'!H14 -> 2 | L14: 37 | M14: ='Calendrier MG'!C14 -> SANO | N14: ='Calendrier MG'!D14 -> ROC | O14: La Courneuve T3 A | P14: 14h40 | Q14: ='Calendrier MG'!G14 -> 6 | R14: ='Calendrier MG'!H14 -> 0
B15: 39 | C15: ='Calendrier BG'!C15 -> STAN 2 | D15: ='Calendrier BG'!D15 -> FEN 1 | E15: La Courneuve T5 B | F15: 14h40 | G15: ='Calendrier BG'!G15 -> 2 | H15: ='Calendrier BG'!H15 -> 5 | L15: 54 | M15: ='Calendrier MG'!C15 -> ASVP | N15: ='Calendrier MG'!D15 -> STAN 3 | O15: La Courneuve T3 A | P15: 15h | Q15: ='Calendrier MG'!G15 -> 1 | R15: ='Calendrier MG'!H15 -> 2
B16: 56 | C16: ='Calendrier BG'!C16 -> FEN 1 | D16: ='Calendrier BG'!D16 -> STAN 1 | E16: La Courneuve T5 B | F16: 15h | G16: ='Calendrier BG'!G16 -> 0 | H16: ='Calendrier BG'!H16 -> 0 | L16: 55 | M16: ='Calendrier MG'!C16 -> ROC | N16: ='Calendrier MG'!D16 -> STAN 3 | O16: La Courneuve T3 A | P16: 15h20 | Q16: ='Calendrier MG'!G16 -> 0 | R16: ='Calendrier MG'!H16 -> 1
B17: 68 | C17: ='Calendrier BG'!C17 -> ROC 1 | D17: ='Calendrier BG'!D17 -> STAN 2 | E17: La Courneuve T5 B | F17: 15h20 | G17: ='Calendrier BG'!G17 -> 1 | H17: ='Calendrier BG'!H17 -> 1 | L17: 75 | M17: ='Calendrier MG'!C17 -> SANO | N17: ='Calendrier MG'!D17 -> STAN 2 | O17: La Courneuve T3 A | P17: 15h40 | Q17: ='Calendrier MG'!G17 -> 2 | R17: ='Calendrier MG'!H17 -> 4
B18: DIVISION 2 | L18: 92 | M18: ='Calendrier MG'!C18 -> MASS 1 | N18: ='Calendrier MG'!D18 -> FEN 2 | O18: La Courneuve T6 A | P18: 14h20 | Q18: ='Calendrier MG'!G18 -> 6 | R18: ='Calendrier MG'!H18 -> 0
B19: 115 | C19: ='Calendrier BG'!C19 -> SJL 3 | D19: ='Calendrier BG'!D19 -> SANO | E19: La Courneuve T5 A | F19: 14h20 | G19: ='Calendrier BG'!G19 -> 0 | H19: ='Calendrier BG'!H19 -> 2 | L19: 78 | M19: ='Calendrier MG'!C19 -> FEN 1 | N19: ='Calendrier MG'!D19 -> MASS 2 | O19: La Courneuve T6 A | P19: 14h40 | Q19: ='Calendrier MG'!G19 -> 4 | R19: ='Calendrier MG'!H19 -> 4
B20: 120 | C20: ='Calendrier BG'!C20 -> FEN 2 | D20: ='Calendrier BG'!D20 -> SANO | E20: La Courneuve T5 A | F20: 14h40 | G20: ='Calendrier BG'!G20 -> 1 | H20: ='Calendrier BG'!H20 -> 0 | L20: 81 | M20: ='Calendrier MG'!C20 -> MASS 1 | N20: ='Calendrier MG'!D20 -> FEN 1 | O20: La Courneuve T6 A | P20: 15h | Q20: ='Calendrier MG'!G20 -> 2 | R20: ='Calendrier MG'!H20 -> 2
B21: 117 | C21: ='Calendrier BG'!C21 -> SJL 3 | D21: ='Calendrier BG'!D21 -> FEN 2 | E21: La Courneuve T5 A | F21: 15h | G21: ='Calendrier BG'!G21 -> 0 | H21: ='Calendrier BG'!H21 -> 4 | L21: 70 | M21: ='Calendrier MG'!C21 -> FEN 2 | N21: ='Calendrier MG'!D21 -> MASS 2 | O21: La Courneuve T6 A | P21: 15h20 | Q21: ='Calendrier MG'!G21 -> 2 | R21: ='Calendrier MG'!H21 -> 3
B22: DIVISION 3
B23: 136 | C23: ='Calendrier BG'!C23 -> ASVP | D23: ='Calendrier BG'!D23 -> FEN 3 | E23: La Courneuve T6 B | F23: 14h20 | G23: ='Calendrier BG'!G23 -> 3 | H23: ='Calendrier BG'!H23 -> 0
B24: 141 | C24: ='Calendrier BG'!C24 -> FEN 3 | D24: ='Calendrier BG'!D24 -> ROC 2 | E24: La Courneuve T6 B | F24: 14h40 | G24: ='Calendrier BG'!G24 -> 0 | H24: ='Calendrier BG'!H24 -> 2
B25: 139 | C25: ='Calendrier BG'!C25 -> ASVP | D25: ='Calendrier BG'!D25 -> ROC 2 | E25: La Courneuve T6 B | F25: 15h | G25: ='Calendrier BG'!G25 -> 3 | H25: ='Calendrier BG'!H25 -> 2
A26: 2022-03-23 | B26: DIVISION 1 | K26: 2022-03-23 | L26: DIVISION 1
B27: 48 | C27: ='Calendrier BG'!C27 -> FEN 1 | D27: ='Calendrier BG'!D27 -> MASS 2 | E27: La Courneuve T3A | F27: 14h | G27: ='Calendrier BG'!G27 -> 2 | H27: ='Calendrier BG'!H27 -> 0 | I27: SANO | L27: 69 | M27: ='Calendrier MG'!C23 -> STAN 2 | N27: ='Calendrier MG'!D23 -> FEN 1 | O27: La Courneuve T6 A | P27: 14h | Q27: ='Calendrier MG'!G23 -> 0 | R27: ='Calendrier MG'!H23 -> 1 | S27: SANO
B28: 33 | C28: ='Calendrier BG'!C28 -> MASS 1 | D28: ='Calendrier BG'!D28 -> ROC 1 | E28: La Courneuve T3A | F28: 14h20 | G28: ='Calendrier BG'!G28 -> 0 | H28: ='Calendrier BG'!H28 -> 0 | L28: 77 | M28: ='Calendrier MG'!C24 -> STAN 1 | N28: ='Calendrier MG'!D24 -> FEN 2 | O28: La Courneuve T6 B | P28: 14h | Q28: ='Calendrier MG'!G24 -> 3 | R28: ='Calendrier MG'!H24 -> 0
B29: 34 | C29: ='Calendrier BG'!C29 -> MASS 2 | D29: ='Calendrier BG'!D29 -> ROC 1 | E29: La Courneuve T3A | F29: 14h40 | G29: ='Calendrier BG'!G29 -> 0 | H29: ='Calendrier BG'!H29 -> 1 | L29: 107 | M29: ='Calendrier MG'!C25 -> ROC | N29: ='Calendrier MG'!D25 -> MASS 1 | O29: La Courneuve T6 A | P29: 14h20 | Q29: ='Calendrier MG'!G25 -> 0 | R29: ='Calendrier MG'!H25 -> 3
B30: 51 | C30: ='Calendrier BG'!C30 -> MASS 1 | D30: ='Calendrier BG'!D30 -> FEN 1 | E30: La Courneuve T3A | F30: 15h | G30: ='Calendrier BG'!G30 -> 5 | H30: ='Calendrier BG'!H30 -> 1 | L30: 88 | M30: ='Calendrier MG'!C26 -> MASS 2 | N30: ='Calendrier MG'!D26 -> BND | O30: La Courneuve T6 B | P30: 14h20 | Q30: ='Calendrier MG'!G26 -> 3 | R30: ='Calendrier MG'!H26 -> 1
B31: 43 | C31: ='Calendrier BG'!C31 -> MASS 2 | D31: ='Calendrier BG'!D31 -> MASS 1 | E31: La Courneuve T3A | F31: 15h20 | G31: ='Calendrier BG'!G31 -> 0 | H31: ='Calendrier BG'!H31 -> 3 | L31: 100 | M31: ='Calendrier MG'!C27 -> ASVP | N31: ='Calendrier MG'!D27 -> MASS 2 | O31: La Courneuve T6 A | P31: 14h40 | Q31: ='Calendrier MG'!G27 -> 0 | R31: ='Calendrier MG'!H27 -> 2
B32: 45 | C32: ='Calendrier BG'!C32 -> SJL 1 | D32: ='Calendrier BG'!D32 -> STAN 2 | E32: SJL TA | F32: 14h20 | G32: ='Calendrier BG'!G32 -> 5 | H32: ='Calendrier BG'!H32 -> 1 | L32: 76 | M32: ='Calendrier MG'!C28 -> BND | N32: ='Calendrier MG'!D28 -> MASS 1 | O32: La Courneuve T6 B | P32: 14h40 | Q32: ='Calendrier MG'!G28 -> 0 | R32: ='Calendrier MG'!H28 -> 4
B33: 53 | C33: ='Calendrier BG'!C33 -> JBS 1 | D33: ='Calendrier BG'!D33 -> SJL 2 | E33: SJL TB | F33: 14h20 | G33: ='Calendrier BG'!G33 -> 3 | H33: ='Calendrier BG'!H33 -> 1 | L33: 119 | M33: ='Calendrier MG'!C29 -> STAN 3 | N33: ='Calendrier MG'!D29 -> FEN 2 | O33: La Courneuve T6 A | P33: 15h | Q33: ='Calendrier MG'!G29 -> 1 | R33: ='Calendrier MG'!H29 -> 1
B34: 50 | C34: ='Calendrier BG'!C34 -> SJL 1 | D34: ='Calendrier BG'!D34 -> JBS 1 | E34: SJL TA | F34: 14h40 | G34: ='Calendrier BG'!G34 -> 4 | H34: ='Calendrier BG'!H34 -> 1 | L34: 118 | M34: ='Calendrier MG'!C30 -> STAN 3 | N34: ='Calendrier MG'!D30 -> FEN 1 | O34: La Courneuve T6 B | P34: 15h | Q34: ='Calendrier MG'!G30 -> 0 | R34: ='Calendrier MG'!H30 -> 3
B35: 49 | C35: ='Calendrier BG'!C35 -> SJL 2 | D35: ='Calendrier BG'!D35 -> STAN 2 | E35: SJL TB | F35: 14h40 | G35: ='Calendrier BG'!G35 -> 1 | H35: ='Calendrier BG'!H35 -> 0 | L35: 108 | M35: ='Calendrier MG'!C31 -> ROC | N35: ='Calendrier MG'!D31 -> MASS 2 | O35: La Courneuve T6 A | P35: 15h20 | Q35: ='Calendrier MG'!G31 -> 0 | R35: ='Calendrier MG'!H31 -> 3
B36: DIVISION 2 | L36: 99 | M36: ='Calendrier MG'!C32 -> ASVP | N36: ='Calendrier MG'!D32 -> MASS 1 | O36: La Courneuve T6 B | P36: 15h20 | Q36: ='Calendrier MG'!G32 -> 0 | R36: ='Calendrier MG'!H32 -> 3
B37: 114 | C37: ='Calendrier BG'!C37 -> BND | D37: ='Calendrier BG'!D37 -> FEN 2 | E37: La Courneuve T5A | F37: 14h20 | G37: ='Calendrier BG'!G37 -> 0 | H37: ='Calendrier BG'!H37 -> 2 | L37: 72 | M37: ='Calendrier MG'!C33 -> STAN 2 | N37: ='Calendrier MG'!D33 -> STAN 1 | O37: La Courneuve T6 B | P37: 15h40 | Q37: ='Calendrier MG'!G33 -> 1 | R37: ='Calendrier MG'!H33 -> 0
B38: 116 | C38: ='Calendrier BG'!C38 -> STAN 3 | D38: ='Calendrier BG'!D38 -> BND | E38: La Courneuve T5A | F38: 14h40 | G38: ='Calendrier BG'!G38 -> 0 | H38: ='Calendrier BG'!H38 -> 3
B39: 122 | C39: ='Calendrier BG'!C39 -> FEN 2 | D39: ='Calendrier BG'!D39 -> STAN 3 | E39: La Courneuve T5A | F39: 15h | G39: ='Calendrier BG'!G39 -> 4 | H39: ='Calendrier BG'!H39 -> 1
B40: DIVISION 3
B41: 134 | C41: ='Calendrier BG'!C41 -> ROC 2 | D41: ='Calendrier BG'!D41 -> FEN 3 | E41: La Courneuve T5B | F41: 14h20 | G41: ='Calendrier BG'!G41 -> 0 | H41: ='Calendrier BG'!H41 -> 3
B42: 138 | C42: ='Calendrier BG'!C42 -> STAN 4 | D42: ='Calendrier BG'!D42 -> FEN 3 | E42: La Courneuve T5B | F42: 14h40 | G42: ='Calendrier BG'!G42 -> 0 | H42: ='Calendrier BG'!H42 -> 3
B43: 140 | C43: ='Calendrier BG'!C43 -> ROC 2 | D43: ='Calendrier BG'!D43 -> STAN 4 | E43: La Courneuve T5B | F43: 15h | G43: ='Calendrier BG'!G43 -> 3 | H43: ='Calendrier BG'!H43 -> 0
A44: 2022-03-30 | B44: DIVISION 1 | K44: 2022-03-30 | L44: DIVISION 1
G45: =IFERROR(VLOOKUP($B45,'Cls B1'!$A$1:$G$75,4,FALSE),"") ->  | H45: =IFERROR(VLOOKUP($B45,'Cls B1'!$A$1:$G$75,5,FALSE),"") ->  | I45: MASS | L45: 74 | M45: ='Calendrier MG'!C35 -> FEN 1 | N45: ='Calendrier MG'!D35 -> FEN 2 | O45: La Courneuve T3 A | P45: 14h | Q45: ='Calendrier MG'!G35 -> 3 | R45: ='Calendrier MG'!H35 -> 0 | S45: MASS
G46: =IFERROR(VLOOKUP($B46,'Cls B1'!$A$1:$G$75,4,FALSE),"") ->  | H46: =IFERROR(VLOOKUP($B46,'Cls B1'!$A$1:$G$75,5,FALSE),"") ->  | I46: STAN 1 seul prof | L46: 80 | M46: ='Calendrier MG'!C36 -> SANO | N46: ='Calendrier MG'!D36 -> FEN 2 | O46: La Courneuve T3 A | P46: 14h20 | Q46: ='Calendrier MG'!G36 -> 3 | R46: ='Calendrier MG'!H36 -> 0 | S46: STAN 1 seul prof
G47: =IFERROR(VLOOKUP($B47,'Cls B1'!$A$1:$G$75,4,FALSE),"") ->  | H47: =IFERROR(VLOOKUP($B47,'Cls B1'!$A$1:$G$75,5,FALSE),"") ->  | L47: 67 | M47: ='Calendrier MG'!C37 -> STAN 1 | N47: ='Calendrier MG'!D37 -> BND | O47: La Courneuve T3 A | P47: 14h40 | Q47: ='Calendrier MG'!G37 -> 4 | R47: ='Calendrier MG'!H37 -> 0
B48: DIVISION 2 | L48: 71 | M48: ='Calendrier MG'!C38 -> BND | N48: ='Calendrier MG'!D38 -> SANO | O48: La Courneuve T3 A | P48: 15h | Q48: ='Calendrier MG'!G38 -> 0 | R48: ='Calendrier MG'!H38 -> 0
B49: 113 | C49: ='Calendrier BG'!C53 -> SANO | D49: ='Calendrier BG'!D53 -> STAN 3 | E49: La Courneuve T5A | F49: 14h20 | G49: ='Calendrier BG'!G53 -> 7 | H49: ='Calendrier BG'!H53 -> 1 | L49: 86 | M49: ='Calendrier MG'!C39 -> FEN 1 | N49: ='Calendrier MG'!D39 -> STAN 1 | O49: La Courneuve T3 A | P49: 15h20 | Q49: ='Calendrier MG'!G39 -> 0 | R49: ='Calendrier MG'!H39 -> 0
B50: 121 | C50: ='Calendrier BG'!C54 -> BND | D50: ='Calendrier BG'!D54 -> SJL 3 | E50: La Courneuve T5A | F50: 14h20 | G50: ='Calendrier BG'!G54 -> 0 | H50: ='Calendrier BG'!H54 -> 0
B51: 119 | C51: ='Calendrier BG'!C55 -> STAN 3 | D51: ='Calendrier BG'!D55 -> SJL 3 | E51: La Courneuve T5A | F51: 14h40 | G51: ='Calendrier BG'!G55 -> 1 | H51: ='Calendrier BG'!H55 -> 0
B52: 118 | C52: ='Calendrier BG'!C56 -> SANO | D52: ='Calendrier BG'!D56 -> BND | E52: La Courneuve T5A | F52: 14h40 | G52: ='Calendrier BG'!G56 -> 2 | H52: ='Calendrier BG'!H56 -> 1
B53: DIVISION 3
B54: 137 | C54: ='Calendrier BG'!C58 -> ROC 2 | D54: ='Calendrier BG'!D58 -> JBS 2 | E54: La Courneuve T5B | F54: 14h20 | G54: ='Calendrier BG'!G58 -> 2 | H54: ='Calendrier BG'!H58 -> 4
B55: 146 | C55: ='Calendrier BG'!C59 -> FEN 3 | D55: ='Calendrier BG'!D59 -> ASVP | E55: La Courneuve T5B | F55: 14h20 | G55: ='Calendrier BG'!G59 -> 0 | H55: ='Calendrier BG'!H59 -> 3
B56: 149 | C56: ='Calendrier BG'!C60 -> ROC 2 | D56: ='Calendrier BG'!D60 -> ASVP | E56: La Courneuve T5B | F56: 14h40 | G56: ='Calendrier BG'!G60 -> 3 | H56: ='Calendrier BG'!H60 -> 2
B57: 144 | C57: ='Calendrier BG'!C61 -> JBS 2 | D57: ='Calendrier BG'!D61 -> FEN 3 | E57: La Courneuve T5B | F57: 14h40 | G57: ='Calendrier BG'!G61 -> 0 | H57: ='Calendrier BG'!H61 -> 2
A58: 2022-04-06 | B58: DIVISION 1 | K58: 2022-04-06 | L58: DIVISION 1
G59: =IFERROR(VLOOKUP($B59,'Cls B1'!$A$1:$G$75,4,FALSE),"") ->  | H59: =IFERROR(VLOOKUP($B59,'Cls B1'!$A$1:$G$75,5,FALSE),"") ->  | I59: MASS | L59: 87 | M59: ='Calendrier MG'!C48 -> FEN 2 | N59: ='Calendrier MG'!D48 -> STAN 2 | O59: La Courneuve T6 A | P59: 14h | Q59: ='Calendrier MG'!G48 -> 0 | R59: ='Calendrier MG'!H48 -> 3 | S59: MASS
G60: =IFERROR(VLOOKUP($B60,'Cls B1'!$A$1:$G$75,4,FALSE),"") ->  | H60: =IFERROR(VLOOKUP($B60,'Cls B1'!$A$1:$G$75,5,FALSE),"") ->  | L60: 114 | M60: ='Calendrier MG'!C49 -> STAN 3 | N60: ='Calendrier MG'!D49 -> STAN 1 | O60: La Courneuve T6 B | P60: 14h | Q60: ='Calendrier MG'!G49 -> 1 | R60: ='Calendrier MG'!H49 -> 3
G61: =IFERROR(VLOOKUP($B61,'Cls B1'!$A$1:$G$75,4,FALSE),"") ->  | H61: =IFERROR(VLOOKUP($B61,'Cls B1'!$A$1:$G$75,5,FALSE),"") ->  | L61: 103 | M61: ='Calendrier MG'!C50 -> ROC | N61: ='Calendrier MG'!D50 -> SANO | O61: La Courneuve T6 A | P61: 14h20 | Q61: ='Calendrier MG'!G50 -> 0 | R61: ='Calendrier MG'!H50 -> 4
G62: =IFERROR(VLOOKUP($B62,'Cls B1'!$A$1:$G$75,4,FALSE),"") ->  | H62: =IFERROR(VLOOKUP($B62,'Cls B1'!$A$1:$G$75,5,FALSE),"") ->  | L62: 83 | M62: ='Calendrier MG'!C51 -> FEN 2 | N62: ='Calendrier MG'!D51 -> BND | O62: La Courneuve T6 B | P62: 14h20 | Q62: ='Calendrier MG'!G51 -> 0 | R62: ='Calendrier MG'!H51 -> 0
B63: DIVISION 2 | L63: 120 | M63: ='Calendrier MG'!C52 -> STAN 3 | N63: ='Calendrier MG'!D52 -> ASVP | O63: La Courneuve T6 A | P63: 14h40 | Q63: ='Calendrier MG'!G52 -> 1 | R63: ='Calendrier MG'!H52 -> 1
B64: 130 | C64: ='Calendrier BG'!C68 -> SANO | D64: ='Calendrier BG'!D68 -> FEN 2 | E64: La Courneuve T3A | F64: 14h | G64: =IFERROR(VLOOKUP($B64,'Cls B2 et B3'!$A$52:$G$74,4,FALSE),"") -> 1 | H64: =IFERROR(VLOOKUP($B64,'Cls B2 et B3'!$A$52:$G$74,5,FALSE),"") -> 0 | L64: 109 | M64: ='Calendrier MG'!C53 -> ROC | N64: ='Calendrier MG'!D53 -> FEN 1 | O64: La Courneuve T6 B | P64: 14h40 | Q64: ='Calendrier MG'!G53 -> 1 | R64: ='Calendrier MG'!H53 -> 2
B65: 127 | C65: ='Calendrier BG'!C69 -> FEN 2 | D65: ='Calendrier BG'!D69 -> SJL 3 | E65: La Courneuve T3A | F65: 14h20 | G65: =IFERROR(VLOOKUP($B65,'Cls B2 et B3'!$A$52:$G$74,4,FALSE),"") -> 1 | H65: =IFERROR(VLOOKUP($B65,'Cls B2 et B3'!$A$52:$G$74,5,FALSE),"") -> 0 | L65: 79 | M65: ='Calendrier MG'!C54 -> BND | N65: ='Calendrier MG'!D54 -> STAN 2 | O65: La Courneuve T6 A | P65: 15h | Q65: ='Calendrier MG'!G54 -> 1 | R65: ='Calendrier MG'!H54 -> 8
B66: 128 | C66: ='Calendrier BG'!C70 -> BND | D66: ='Calendrier BG'!D70 -> SANO | E66: La Courneuve T3A | F66: 14h40 | G66: =IFERROR(VLOOKUP($B66,'Cls B2 et B3'!$A$52:$G$74,4,FALSE),"") -> 0 | H66: =IFERROR(VLOOKUP($B66,'Cls B2 et B3'!$A$52:$G$74,5,FALSE),"") -> 4 | L66: 90 | M66: ='Calendrier MG'!C55 -> FEN 1 | N66: ='Calendrier MG'!D55 -> SANO | O66: La Courneuve T6 B | P66: 15h | Q66: ='Calendrier MG'!G55 -> 0 | R66: ='Calendrier MG'!H55 -> 1
B67: 129 | C67: ='Calendrier BG'!C71 -> SJL 3 | D67: ='Calendrier BG'!D71 -> STAN 3 | E67: La Courneuve T3A | F67: 15h | G67: =IFERROR(VLOOKUP($B67,'Cls B2 et B3'!$A$52:$G$74,4,FALSE),"") -> 2 | H67: =IFERROR(VLOOKUP($B67,'Cls B2 et B3'!$A$52:$G$74,5,FALSE),"") -> 1 | L67: 101 | M67: ='Calendrier MG'!C56 -> ASVP | N67: ='Calendrier MG'!D56 -> FEN 1 | Q67: ='Calendrier MG'!G56 -> 0 | R67: ='Calendrier MG'!H56 -> 3
B68: 124 | C68: ='Calendrier BG'!C72 -> FEN 2 | D68: ='Calendrier BG'!D72 -> BND | E68: La Courneuve T3A | F68: 15h20 | G68: =IFERROR(VLOOKUP($B68,'Cls B2 et B3'!$A$52:$G$74,4,FALSE),"") -> 2 | H68: =IFERROR(VLOOKUP($B68,'Cls B2 et B3'!$A$52:$G$74,5,FALSE),"") -> 0 | L68: 93 | M68: ='Calendrier MG'!C57 -> BND | N68: ='Calendrier MG'!D57 -> FEN 1 | Q68: ='Calendrier MG'!G57 -> 1 | R68: ='Calendrier MG'!H57 -> 1
B69: 132 | C69: ='Calendrier BG'!C73 -> STAN 3 | D69: ='Calendrier BG'!D73 -> FEN 2 | E69: La Courneuve T3A | F69: 15h40 | G69: =IFERROR(VLOOKUP($B69,'Cls B2 et B3'!$A$52:$G$74,4,FALSE),"") -> 0 | H69: =IFERROR(VLOOKUP($B69,'Cls B2 et B3'!$A$52:$G$74,5,FALSE),"") -> 1 | L69: 113 | M69: ='Calendrier MG'!C58 -> STAN 3 | N69: ='Calendrier MG'!D58 -> BND | Q69: ='Calendrier MG'!G58 -> 1 | R69: ='Calendrier MG'!H58 -> 0
B70: DIVISION 3 | L70: 97 | M70: ='Calendrier MG'!C59 -> ASVP | N70: ='Calendrier MG'!D59 -> STAN 1 | O70: La Courneuve T6 A | P70: 15h20 | Q70: ='Calendrier MG'!G59 -> 0 | R70: ='Calendrier MG'!H59 -> 4
B71: 134 | C71: ='Calendrier BG'!C75 -> FEN 3 | D71: ='Calendrier BG'!D75 -> JBS 2 | E71: La Courneuve T5 A | F71: 14h | G71: =IFERROR(VLOOKUP($B71,'Cls B2 et B3'!$A$77:$G$99,4,FALSE),"") -> 1 | H71: =IFERROR(VLOOKUP($B71,'Cls B2 et B3'!$A$77:$G$99,5,FALSE),"") -> 0
B72: 133 | C72: ='Calendrier BG'!C76 -> STAN 4 | D72: ='Calendrier BG'!D76 -> ASVP | E72: La Courneuve T5 A | F72: 14h20 | G72: =IFERROR(VLOOKUP($B72,'Cls B2 et B3'!$A$77:$G$99,4,FALSE),"") -> 0 | H72: =IFERROR(VLOOKUP($B72,'Cls B2 et B3'!$A$77:$G$99,5,FALSE),"") -> 4
B73: 140 | C73: ='Calendrier BG'!C77 -> JBS 2 | D73: ='Calendrier BG'!D77 -> STAN 4 | E73: La Courneuve T5 A | F73: 14h40 | G73: =IFERROR(VLOOKUP($B73,'Cls B2 et B3'!$A$77:$G$99,4,FALSE),"") -> 3 | H73: =IFERROR(VLOOKUP($B73,'Cls B2 et B3'!$A$77:$G$99,5,FALSE),"") -> 1
B74: 142 | C74: ='Calendrier BG'!C78 -> JBS 2 | D74: ='Calendrier BG'!D78 -> ASVP | E74: La Courneuve T5 A | F74: 15h | G74: =IFERROR(VLOOKUP($B74,'Cls B2 et B3'!$A$77:$G$99,4,FALSE),"") -> 4 | H74: =IFERROR(VLOOKUP($B74,'Cls B2 et B3'!$A$77:$G$99,5,FALSE),"") -> 1
A75: 2022-04-13 | B75: DIVISION 1 | K75: 2022-04-13 | L75: DIVISION 1
B76: 66 | C76: ='Calendrier BG'!C80 -> ROC 1 | D76: ='Calendrier BG'!D80 -> SJL 2 | E76: SJL TA | F76: 14h | G76: =IFERROR(VLOOKUP($B76,'Cls B1'!$A$1:$G$75,4,FALSE),"") -> 0 | H76: =IFERROR(VLOOKUP($B76,'Cls B1'!$A$1:$G$75,5,FALSE),"") -> 0 | L76: 68 | M76: ='Calendrier MG'!C61 -> MASS 1 | N76: ='Calendrier MG'!D61 -> SANO | O76: Tremblay MASS TA | P76: 14h | Q76: ='Calendrier MG'!G61 -> 2 | R76: ='Calendrier MG'!H61 -> 2
B77: 62 | C77: ='Calendrier BG'!C81 -> MASS 1 | D77: ='Calendrier BG'!D81 -> JBS 1 | E77: SJL TB | F77: 14h | G77: =IFERROR(VLOOKUP($B77,'Cls B1'!$A$1:$G$75,4,FALSE),"") -> 2 | H77: =IFERROR(VLOOKUP($B77,'Cls B1'!$A$1:$G$75,5,FALSE),"") -> 2 | L77: 91 | M77: ='Calendrier MG'!C62 -> MASS 2 | N77: ='Calendrier MG'!D62 -> STAN 2 | O77: Tremblay MASS TB | P77: 14h | Q77: ='Calendrier MG'!G62 -> 0 | R77: ='Calendrier MG'!H62 -> 4
B78: 69 | C78: ='Calendrier BG'!C82 -> ROC 1 | D78: ='Calendrier BG'!D82 -> MASS 1 | E78: SJL TA | F78: 14h20 | G78: =IFERROR(VLOOKUP($B78,'Cls B1'!$A$1:$G$75,4,FALSE),"") -> 0 | H78: =IFERROR(VLOOKUP($B78,'Cls B1'!$A$1:$G$75,5,FALSE),"") -> 7 | L78: 89 | M78: ='Calendrier MG'!C63 -> MASS 1 | N78: ='Calendrier MG'!D63 -> STAN 1 | O78: Tremblay MASS TA | P78: 14h20 | Q78: ='Calendrier MG'!G63 -> 1 | R78: ='Calendrier MG'!H63 -> 0
B79: 40 | C79: ='Calendrier BG'!C83 -> JBS 1 | D79: ='Calendrier BG'!D83 -> MASS 2 | E79: SJL TB | F79: 14h20 | G79: =IFERROR(VLOOKUP($B79,'Cls B1'!$A$1:$G$75,4,FALSE),"") -> 6 | H79: =IFERROR(VLOOKUP($B79,'Cls B1'!$A$1:$G$75,5,FALSE),"") -> 0 | L79: 94 | M79: ='Calendrier MG'!C64 -> STAN 1 | N79: ='Calendrier MG'!D64 -> SANO | O79: Tremblay MASS TB | P79: 14h20 | Q79: ='Calendrier MG'!G64 -> 0 | R79: ='Calendrier MG'!H64 -> 3
B80: 70 | C80: ='Calendrier BG'!C84 -> ROC 1 | D80: ='Calendrier BG'!D84 -> MASS 2 | E80: SJL TA | F80: 14h40 | G80: =IFERROR(VLOOKUP($B80,'Cls B1'!$A$1:$G$75,4,FALSE),"") -> 5 | H80: =IFERROR(VLOOKUP($B80,'Cls B1'!$A$1:$G$75,5,FALSE),"") -> 0 | L80: 73 | M80: ='Calendrier MG'!C65 -> MASS 2 | N80: ='Calendrier MG'!D65 -> MASS 1 | O80: Tremblay MASS TA | P80: 14h40 | Q80: ='Calendrier MG'!G65 -> 0 | R80: ='Calendrier MG'!H65 -> 4
G81: =IFERROR(VLOOKUP($B81,'Cls B1'!$A$1:$G$75,4,FALSE),"") ->  | H81: =IFERROR(VLOOKUP($B81,'Cls B1'!$A$1:$G$75,5,FALSE),"") ->  | L81: 112 | M81: ='Calendrier MG'!C66 -> STAN 3 | N81: ='Calendrier MG'!D66 -> SANO | O81: Tremblay MASS TB | P81: 14h40 | Q81: ='Calendrier MG'!G66 -> 0 | R81: ='Calendrier MG'!H66 -> 3
B82: DIVISION 2 | L82: 85 | M82: ='Calendrier MG'!C67 -> SANO | N82: ='Calendrier MG'!D67 -> MASS 2 | O82: Tremblay MASS TA | P82: 15h | Q82: ='Calendrier MG'!G67 -> 1 | R82: ='Calendrier MG'!H67 -> 1
B83: 131 | C83: ='Calendrier BG'!C87 -> SJL 3 | D83: ='Calendrier BG'!D87 -> BND | E83: Tremblay SANO TB | F83: 14h20 | G83: ='Calendrier BG'!G87 -> 3 | H83: ='Calendrier BG'!H87 -> 0 | L83: 115 | M83: ='Calendrier MG'!C68 -> STAN 3 | N83: ='Calendrier MG'!D68 -> STAN 2 | O83: Tremblay MASS TB | P83: 15h | Q83: ='Calendrier MG'!G68 -> 0 | R83: ='Calendrier MG'!H68 -> 3
B84: 125 | C84: ='Calendrier BG'!C88 -> SANO | D84: ='Calendrier BG'!D88 -> SJL 3 | E84: Tremblay SANO TA | F84: 14h40 | G84: ='Calendrier BG'!G88 -> 6 | H84: ='Calendrier BG'!H88 -> 0
G85: =IFERROR(VLOOKUP($B85,'Cls B2 et B3'!$A$1:$G$23,4,FALSE),"") ->  | H85: =IFERROR(VLOOKUP($B85,'Cls B2 et B3'!$A$1:$G$23,5,FALSE),"") ->  | K85: 2022-04-20 | L85: DIVISION 1
M86: MASS 1 | N86: FEN 1 | O86: Tremblay SANO TA | P86: 14h20 | Q86: =IFERROR(VLOOKUP($B86,'Cls MG'!$A$1:$G$135,4,FALSE),"") ->  | R86: =IFERROR(VLOOKUP($B86,'Cls MG'!$A$1:$G$135,5,FALSE),"") ->  | S86: Finales Territoire
B87: DIVISION 3 | M87: SANO | N87: STAN 2 | O87: Tremblay SANO TB | P87: 14h20 | Q87: =IFERROR(VLOOKUP($B87,'Cls MG'!$A$1:$G$135,4,FALSE),"") ->  | R87: =IFERROR(VLOOKUP($B87,'Cls MG'!$A$1:$G$135,5,FALSE),"") -> 
M88: MASS 1 | N88: SANO | O88: Tremblay SANO TA | P88: 14h40 | Q88: =IFERROR(VLOOKUP($B88,'Cls MG'!$A$1:$G$135,4,FALSE),"") ->  | R88: =IFERROR(VLOOKUP($B88,'Cls MG'!$A$1:$G$135,5,FALSE),"") -> 
M89: FEN 1 | N89: STAN 2 | O89: Tremblay SANO TB | P89: 14h40 | Q89: =IFERROR(VLOOKUP($B89,'Cls MG'!$A$1:$G$135,4,FALSE),"") ->  | R89: =IFERROR(VLOOKUP($B89,'Cls MG'!$A$1:$G$135,5,FALSE),"") -> 
M90: MASS 1 | N90: STAN 2 | O90: Tremblay SANO TA | P90: 15h | Q90: =IFERROR(VLOOKUP($B90,'Cls MG'!$A$1:$G$135,4,FALSE),"") ->  | R90: =IFERROR(VLOOKUP($B90,'Cls MG'!$A$1:$G$135,5,FALSE),"") -> 
M91: SANO | N91: FEN 1 | O91: Tremblay SANO TB | P91: 15h | Q91: =IFERROR(VLOOKUP($B91,'Cls MG'!$A$1:$G$135,4,FALSE),"") ->  | R91: =IFERROR(VLOOKUP($B91,'Cls MG'!$A$1:$G$135,5,FALSE),"") -> 
A92: 2022-05-11 | B92: ENTRAINEMENT : matchs amicaux | K92: 2022-05-11 | L92: DIVISION 1
L93: 117 | M93: ='Calendrier MG'!C78 -> STAN 3 | N93: ='Calendrier MG'!D78 -> MASS 2 | O93: La Courneuve T3 A | P93: 14h20 | Q93: ='Calendrier MG'!G78 -> 0 | R93: ='Calendrier MG'!H78 -> 0
L94: 111 | M94: ='Calendrier MG'!C79 -> ROC | N94: ='Calendrier MG'!D79 -> ASVP | O94: La Courneuve T3 A | P94: 14h20 | Q94: ='Calendrier MG'!G79 -> 0 | R94: ='Calendrier MG'!H79 -> 1
L95: 121 | M95: ='Calendrier MG'!C80 -> STAN 3 | N95: ='Calendrier MG'!D80 -> ROC | O95: La Courneuve T3 A | P95: 14h40 | Q95: ='Calendrier MG'!G80 -> 0 | R95: ='Calendrier MG'!H80 -> 3
L96: 96 | M96: ='Calendrier MG'!C81 -> ASVP | N96: ='Calendrier MG'!D81 -> BND | O96: La Courneuve T3 A | P96: 14h40 | Q96: ='Calendrier MG'!G81 -> 0 | R96: ='Calendrier MG'!H81 -> 1
L97: 102 | M97: ='Calendrier MG'!C82 -> ASVP | N97: ='Calendrier MG'!D82 -> FEN 2 | O97: La Courneuve T3 A | P97: 15h | Q97: ='Calendrier MG'!G82 -> 1 | R97: ='Calendrier MG'!H82 -> 0
A98: 2022-05-18 | B98: COUPE BG au Tremblay sur terrains SANO et MASS de 14h à 17h | L98: 104 | M98: ='Calendrier MG'!C83 -> ROC | N98: ='Calendrier MG'!D83 -> BND | O98: La Courneuve T3 A | P98: 15h | Q98: ='Calendrier MG'!G83 -> 1 | R98: ='Calendrier MG'!H83 -> 1
K99: 2022-05-18 | L99: ENTRAINEMENT : matchs amicaux
K105: 2022-05-25 | L105: ASCENSION
K111: 2022-06-01 | L111: COUPE MG au Tremblay sur terrains SANO et MASS de 14h à 17h

Sheet Calendrier BG
B1: CALENDRIER BENJAMINS | K1: POULES ET MATCHS BENJAMINS
A2: Date | B2: Match | C2: Equipe A | D2: Equipe B | E2: Lieux | F2: Horaires | G2: Résultats | I2: Indisponibilités
A3: 2022-03-09 | B3: DIVISION 1
B4: ENTRAINEMENT
A9: 2022-03-16 | B9: DIVISION 1 | K9: DIVISION 1 | Q9: DIVISION 2 | W9: DIVISION 3
B10: 55 | C10: =VLOOKUP($B10,$K$22:$O$93,4) -> SJL 1 | D10: =VLOOKUP($B10,$K$22:$O$93,5) -> MASS 2 | E10: SJL TA | F10: 14h20 | G10: =IFERROR(VLOOKUP($B10,'Cls B1'!$A$1:$G$75,4,FALSE),"") -> 10 | H10: =IFERROR(VLOOKUP($B10,'Cls B1'!$A$1:$G$75,5,FALSE),"") -> 0 | K10: Etablissements | Q10: Etablissements | W10: Etablissements
B11: 46 | C11: SJL 2 | D11: MASS 1 | E11: SJL TB | F11: 14h20 | G11: =IFERROR(VLOOKUP($B11,'Cls B1'!$A$1:$G$75,4,FALSE),"") -> 1 | H11: =IFERROR(VLOOKUP($B11,'Cls B1'!$A$1:$G$75,5,FALSE),"") -> 6 | K11: 1 | L11: SJL 1 | Q11: 1 | R11: SANO | W11: 1 | X11: STAN 4
B12: 38 | C12: MASS 1 | D12: SJL 1 | E12: SJL TA | F12: 14h40 | G12: =IFERROR(VLOOKUP($B12,'Cls B1'!$A$1:$G$75,4,FALSE),"") -> 0 | H12: =IFERROR(VLOOKUP($B12,'Cls B1'!$A$1:$G$75,5,FALSE),"") -> 4 | K12: 2 | L12: SJL 2 | Q12: 2 | R12: STAN 3 | W12: 2 | X12: ASVP
B13: 58 | C13: MASS 2 | D13: SJL 2 | E13: SJL TB | F13: 14h40 | G13: =IFERROR(VLOOKUP($B13,'Cls B1'!$A$1:$G$75,4,FALSE),"") -> 1 | H13: =IFERROR(VLOOKUP($B13,'Cls B1'!$A$1:$G$75,5,FALSE),"") -> 4 | K13: 3 | L13: STAN 1 | Q13: 3 | R13: BND | W13: 3 | X13: FEN 3
B14: 67 | C14: ROC 1 | D14: STAN 1 | E14: La Courneuve T5 B | F14: 14h20 | G14: =IFERROR(VLOOKUP($B14,'Cls B1'!$A$1:$G$75,4,FALSE),"") -> 0 | H14: =IFERROR(VLOOKUP($B14,'Cls B1'!$A$1:$G$75,5,FALSE),"") -> 2 | K14: 4 | L14: STAN 2 | Q14: 4 | R14: FEN 2 | W14: 4 | X14: JBS 2
B15: 39 | C15: STAN 2 | D15: FEN 1 | E15: La Courneuve T5 B | F15: 14h40 | G15: =IFERROR(VLOOKUP($B15,'Cls B1'!$A$1:$G$75,4,FALSE),"") -> 2 | H15: =IFERROR(VLOOKUP($B15,'Cls B1'!$A$1:$G$75,5,FALSE),"") -> 5 | K15: 5 | L15: MASS 1 | Q15: 5 | R15: SJL 3 | W15: 5 | X15: ROC 2
B16: 56 | C16: FEN 1 | D16: STAN 1 | E16: La Courneuve T5 B | F16: 15h | G16: =IFERROR(VLOOKUP($B16,'Cls B1'!$A$1:$G$75,4,FALSE),"") -> 0 | H16: =IFERROR(VLOOKUP($B16,'Cls B1'!$A$1:$G$75,5,FALSE),"") -> 0 | K16: 6 | L16: MASS 2
B17: 68 | C17: ROC 1 | D17: STAN 2 | E17: La Courneuve T5 B | F17: 15h20 | G17: =IFERROR(VLOOKUP($B17,'Cls B1'!$A$1:$G$75,4,FALSE),"") -> 1 | H17: =IFERROR(VLOOKUP($B17,'Cls B1'!$A$1:$G$75,5,FALSE),"") -> 1 | K17: 7 | L17: FEN 1
B18: DIVISION 2 | K18: 8 | L18: JBS 1
B19: 115 | C19: =VLOOKUP($B19,$Q$21:$U$41,4) -> SJL 3 | D19: =VLOOKUP($B19,$Q$21:$U$41,5) -> SANO | E19: La Courneuve T5 A | F19: 14h20 | G19: =IFERROR(VLOOKUP($B19,'Cls B2 et B3'!$A$52:$G$74,4,FALSE),"") -> 0 | H19: =IFERROR(VLOOKUP($B19,'Cls B2 et B3'!$A$52:$G$74,5,FALSE),"") -> 2 | K19: 9 | L19: ROC 1
B20: 120 | C20: =VLOOKUP($B20,$Q$21:$U$41,4) -> FEN 2 | D20: =VLOOKUP($B20,$Q$21:$U$41,5) -> SANO | E20: La Courneuve T5 A | F20: 14h40 | G20: =IFERROR(VLOOKUP($B20,'Cls B2 et B3'!$A$52:$G$74,4,FALSE),"") -> 1 | H20: =IFERROR(VLOOKUP($B20,'Cls B2 et B3'!$A$52:$G$74,5,FALSE),"") -> 0
B21: 117 | C21: =VLOOKUP($B21,$Q$21:$U$41,4) -> SJL 3 | D21: =VLOOKUP($B21,$Q$21:$U$41,5) -> FEN 2 | E21: La Courneuve T5 A | F21: 15h | G21: =IFERROR(VLOOKUP($B21,'Cls B2 et B3'!$A$52:$G$74,4,FALSE),"") -> 0 | H21: =IFERROR(VLOOKUP($B21,'Cls B2 et B3'!$A$52:$G$74,5,FALSE),"") -> 4 | K21: N° Match | L21: Equipe A | M21: Equipe B | N21: Match | Q21: N° Match | R21: Equipe A | S21: Equipe B | T21: Match | W21: N° Match | X21: Equipe A | Y21: Equipe B | Z21: Match
B22: DIVISION 3 | K22: 1 | L22: 2 | M22: 3 | N22: =VLOOKUP(L22,$K$9:$L$19,2) -> SJL 2 | O22: =VLOOKUP(M22,$K$9:$L$19,2) -> STAN 1 | Q22: 113 | R22: 1 | S22: 2 | T22: =VLOOKUP(R22,$Q$9:$R$15,2) -> SANO | U22: =VLOOKUP(S22,$Q$9:$R$15,2) -> STAN 3 | W22: 133 | X22: 1 | Y22: 2 | Z22: =VLOOKUP(X22,$W$9:$X$15,2) -> STAN 4 | AA22: =VLOOKUP(Y22,$W$9:$X$15,2) -> ASVP
B23: 136 | C23: =VLOOKUP($B23,$W$21:$AA$41,4) -> ASVP | D23: =VLOOKUP($B23,$W$21:$AA$41,5) -> FEN 3 | E23: La Courneuve T6 B | F23: 14h20 | G23: =IFERROR(VLOOKUP($B23,'Cls B2 et B3'!$A$77:$G$99,4,FALSE),"") -> 3 | H23: =IFERROR(VLOOKUP($B23,'Cls B2 et B3'!$A$77:$G$99,5,FALSE),"") -> 0 | K23: 2 | L23: 1 | M23: 5 | N23: SJL 1 | O23: MASS 1 | Q23: 114 | R23: 3 | S23: 4 | T23: BND | U23: FEN 2 | W23: 134 | X23: 3 | Y23: 4 | Z23: FEN 3 | AA23: JBS 2
B24: 141 | C24: =VLOOKUP($B24,$W$21:$AA$41,4) -> FEN 3 | D24: =VLOOKUP($B24,$W$21:$AA$41,5) -> ROC 2 | E24: La Courneuve T6 B | F24: 14h40 | G24: =IFERROR(VLOOKUP($B24,'Cls B2 et B3'!$A$77:$G$99,4,FALSE),"") -> 0 | H24: =IFERROR(VLOOKUP($B24,'Cls B2 et B3'!$A$77:$G$99,5,FALSE),"") -> 2 | K24: 3 | L24: 7 | M24: 4 | N24: FEN 1 | O24: STAN 2 | Q24: 115 | R24: 5 | S24: 1 | T24: SJL 3 | U24: SANO | W24: 135 | X24: 5 | Y24: 1 | Z24: ROC 2 | AA24: STAN 4
B25: 139 | C25: =VLOOKUP($B25,$W$21:$AA$41,4) -> ASVP | D25: =VLOOKUP($B25,$W$21:$AA$41,5) -> ROC 2 | E25: La Courneuve T6 B | F25: 15h | G25: =IFERROR(VLOOKUP($B25,'Cls B2 et B3'!$A$77:$G$99,4,FALSE),"") -> 3 | H25: =IFERROR(VLOOKUP($B25,'Cls B2 et B3'!$A$77:$G$99,5,FALSE),"") -> 2 | K25: 4 | L25: 6 | M25: 8 | N25: MASS 2 | O25: JBS 1 | Q25: 116 | R25: 2 | S25: 3 | T25: STAN 3 | U25: BND | W25: 136 | X25: 2 | Y25: 3 | Z25: ASVP | AA25: FEN 3
A26: 2022-03-23 | B26: DIVISION 1 | K26: 5 | L26: 1 | M26: 2 | N26: SJL 1 | O26: SJL 2 | Q26: 117 | R26: 5 | S26: 4 | T26: SJL 3 | U26: FEN 2 | W26: 137 | X26: 5 | Y26: 4 | Z26: ROC 2 | AA26: JBS 2
B27: 48 | C27: =VLOOKUP($B27,$K$22:$O$93,4) -> FEN 1 | D27: =VLOOKUP($B27,$K$22:$O$93,5) -> MASS 2 | E27: La Courneuve T3A | F27: 14h | G27: =IFERROR(VLOOKUP($B27,'Cls B1'!$A$1:$G$75,4,FALSE),"") -> 2 | H27: =IFERROR(VLOOKUP($B27,'Cls B1'!$A$1:$G$75,5,FALSE),"") -> 0 | I27: SANO | K27: 6 | L27: 3 | M27: 4 | N27: STAN 1 | O27: STAN 2 | Q27: 118 | R27: 1 | S27: 3 | T27: SANO | U27: BND | W27: 138 | X27: 1 | Y27: 3 | Z27: STAN 4 | AA27: FEN 3
B28: 33 | C28: =VLOOKUP($B28,$K$22:$O$93,4) -> MASS 1 | D28: =VLOOKUP($B28,$K$22:$O$93,5) -> ROC 1 | E28: La Courneuve T3A | F28: 14h20 | G28: =IFERROR(VLOOKUP($B28,'Cls B1'!$A$1:$G$75,4,FALSE),"") -> 0 | H28: =IFERROR(VLOOKUP($B28,'Cls B1'!$A$1:$G$75,5,FALSE),"") -> 0 | K28: 7 | L28: 5 | M28: 6 | N28: MASS 1 | O28: MASS 2 | Q28: 119 | R28: 2 | S28: 5 | T28: STAN 3 | U28: SJL 3 | W28: 139 | X28: 2 | Y28: 5 | Z28: ASVP | AA28: ROC 2
B29: 34 | C29: =VLOOKUP($B29,$K$22:$O$93,4) -> MASS 2 | D29: =VLOOKUP($B29,$K$22:$O$93,5) -> ROC 1 | E29: La Courneuve T3A | F29: 14h40 | G29: =IFERROR(VLOOKUP($B29,'Cls B1'!$A$1:$G$75,4,FALSE),"") -> 0 | H29: =IFERROR(VLOOKUP($B29,'Cls B1'!$A$1:$G$75,5,FALSE),"") -> 1 | K29: 8 | L29: 8 | M29: 7 | N29: JBS 1 | O29: FEN 1 | Q29: 120 | R29: 4 | S29: 1 | T29: FEN 2 | U29: SANO | W29: 140 | X29: 4 | Y29: 1 | Z29: JBS 2 | AA29: STAN 4
B30: 51 | C30: =VLOOKUP($B30,$K$22:$O$93,4) -> MASS 1 | D30: =VLOOKUP($B30,$K$22:$O$93,5) -> FEN 1 | E30: La Courneuve T3A | F30: 15h | G30: =IFERROR(VLOOKUP($B30,'Cls B1'!$A$1:$G$75,4,FALSE),"") -> 5 | H30: =IFERROR(VLOOKUP($B30,'Cls B1'!$A$1:$G$75,5,FALSE),"") -> 1 | K30: 9 | L30: 4 | M30: 1 | N30: STAN 2 | O30: SJL 1 | Q30: 121 | R30: 3 | S30: 5 | T30: BND | U30: SJL 3 | W30: 141 | X30: 3 | Y30: 5 | Z30: FEN 3 | AA30: ROC 2
B31: 43 | C31: =VLOOKUP($B31,$K$22:$O$93,4) -> MASS 2 | D31: =VLOOKUP($B31,$K$22:$O$93,5) -> MASS 1 | E31: La Courneuve T3A | F31: 15h20 | G31: =IFERROR(VLOOKUP($B31,'Cls B1'!$A$1:$G$75,4,FALSE),"") -> 0 | H31: =IFERROR(VLOOKUP($B31,'Cls B1'!$A$1:$G$75,5,FALSE),"") -> 3 | K31: 10 | L31: 5 | M31: 2 | N31: MASS 1 | O31: SJL 2 | Q31: 122 | R31: 4 | S31: 2 | T31: FEN 2 | U31: STAN 3 | W31: 142 | X31: 4 | Y31: 2 | Z31: JBS 2 | AA31: ASVP
B32: 45 | C32: =VLOOKUP($B32,$K$22:$O$93,4) -> SJL 1 | D32: =VLOOKUP($B32,$K$22:$O$93,5) -> STAN 2 | E32: SJL TA | F32: 14h20 | G32: =IFERROR(VLOOKUP($B32,'Cls B1'!$A$1:$G$75,4,FALSE),"") -> 5 | H32: =IFERROR(VLOOKUP($B32,'Cls B1'!$A$1:$G$75,5,FALSE),"") -> 1 | K32: 11 | L32: 8 | M32: 3 | N32: JBS 1 | O32: STAN 1 | Q32: 123 | R32: 2 | S32: 1 | T32: STAN 3 | U32: SANO | W32: 143 | X32: 2 | Y32: 1 | Z32: ASVP | AA32: STAN 4
B33: 53 | C33: JBS 1 | D33: SJL 2 | E33: SJL TB | F33: 14h20 | G33: =IFERROR(VLOOKUP($B33,'Cls B1'!$A$1:$G$75,4,FALSE),"") -> 3 | H33: =IFERROR(VLOOKUP($B33,'Cls B1'!$A$1:$G$75,5,FALSE),"") -> 1 | K33: 12 | L33: 6 | M33: 7 | N33: MASS 2 | O33: FEN 1 | Q33: 124 | R33: 4 | S33: 3 | T33: FEN 2 | U33: BND | W33: 144 | X33: 4 | Y33: 3 | Z33: JBS 2 | AA33: FEN 3
B34: 50 | C34: =VLOOKUP($B34,$K$22:$O$93,4) -> SJL 1 | D34: =VLOOKUP($B34,$K$22:$O$93,5) -> JBS 1 | E34: SJL TA | F34: 14h40 | G34: =IFERROR(VLOOKUP($B34,'Cls B1'!$A$1:$G$75,4,FALSE),"") -> 4 | H34: =IFERROR(VLOOKUP($B34,'Cls B1'!$A$1:$G$75,5,FALSE),"") -> 1 | K34: 13 | L34: 4 | M34: 2 | N34: STAN 2 | O34: SJL 2 | Q34: 125 | R34: 1 | S34: 5 | T34: SANO | U34: SJL 3 | W34: 145 | X34: 1 | Y34: 5 | Z34: STAN 4 | AA34: ROC 2
B35: 49 | C35: =VLOOKUP($B35,$K$22:$O$93,4) -> SJL 2 | D35: =VLOOKUP($B35,$K$22:$O$93,5) -> STAN 2 | E35: SJL TB | F35: 14h40 | G35: =IFERROR(VLOOKUP($B35,'Cls B1'!$A$1:$G$75,4,FALSE),"") -> 1 | H35: =IFERROR(VLOOKUP($B35,'Cls B1'!$A$1:$G$75,5,FALSE),"") -> 0 | K35: 14 | L35: 8 | M35: 1 | N35: JBS 1 | O35: SJL 1 | Q35: 126 | R35: 3 | S35: 2 | T35: BND | U35: STAN 3 | W35: 146 | X35: 3 | Y35: 2 | Z35: FEN 3 | AA35: ASVP
B36: DIVISION 2 | K36: 15 | L36: 7 | M36: 5 | N36: FEN 1 | O36: MASS 1 | Q36: 127 | R36: 4 | S36: 5 | T36: FEN 2 | U36: SJL 3 | W36: 147 | X36: 4 | Y36: 5 | Z36: JBS 2 | AA36: ROC 2
B37: 114 | C37: =VLOOKUP($B37,$Q$21:$U$41,4) -> BND | D37: =VLOOKUP($B37,$Q$21:$U$41,5) -> FEN 2 | E37: La Courneuve T5A | F37: 14h20 | G37: =IFERROR(VLOOKUP($B37,'Cls B2 et B3'!$A$52:$G$74,4,FALSE),"") -> 0 | H37: =IFERROR(VLOOKUP($B37,'Cls B2 et B3'!$A$52:$G$74,5,FALSE),"") -> 2 | K37: 16 | L37: 3 | M37: 6 | N37: STAN 1 | O37: MASS 2 | Q37: 128 | R37: 3 | S37: 1 | T37: BND | U37: SANO | W37: 148 | X37: 3 | Y37: 1 | Z37: FEN 3 | AA37: STAN 4
B38: 116 | C38: =VLOOKUP($B38,$Q$21:$U$41,4) -> STAN 3 | D38: =VLOOKUP($B38,$Q$21:$U$41,5) -> BND | E38: La Courneuve T5A | F38: 14h40 | G38: =IFERROR(VLOOKUP($B38,'Cls B2 et B3'!$A$52:$G$74,4,FALSE),"") -> 0 | H38: =IFERROR(VLOOKUP($B38,'Cls B2 et B3'!$A$52:$G$74,5,FALSE),"") -> 3 | K38: 17 | L38: 2 | M38: 8 | N38: SJL 2 | O38: JBS 1 | Q38: 129 | R38: 5 | S38: 2 | T38: SJL 3 | U38: STAN 3 | W38: 149 | X38: 5 | Y38: 2 | Z38: ROC 2 | AA38: ASVP
B39: 122 | C39: =VLOOKUP($B39,$Q$21:$U$41,4) -> FEN 2 | D39: =VLOOKUP($B39,$Q$21:$U$41,5) -> STAN 3 | E39: La Courneuve T5A | F39: 15h | G39: =IFERROR(VLOOKUP($B39,'Cls B2 et B3'!$A$52:$G$74,4,FALSE),"") -> 4 | H39: =IFERROR(VLOOKUP($B39,'Cls B2 et B3'!$A$52:$G$74,5,FALSE),"") -> 1 | K39: 18 | L39: 5 | M39: 4 | N39: MASS 1 | O39: STAN 2 | Q39: 130 | R39: 1 | S39: 4 | T39: SANO | U39: FEN 2 | W39: 150 | X39: 1 | Y39: 4 | Z39: STAN 4 | AA39: JBS 2
B40: DIVISION 3 | K40: 19 | L40: 6 | M40: 1 | N40: MASS 2 | O40: SJL 1 | Q40: 131 | R40: 5 | S40: 3 | T40: SJL 3 | U40: BND | W40: 151 | X40: 5 | Y40: 3 | Z40: ROC 2 | AA40: FEN 3
B41: 151 | C41: =VLOOKUP($B41,$W$21:$AA$41,4) -> ROC 2 | D41: =VLOOKUP($B41,$W$21:$AA$41,5) -> FEN 3 | E41: La Courneuve T5B | F41: 14h20 | G41: =IFERROR(VLOOKUP($B41,'Cls B2 et B3'!$A$77:$G$99,4,FALSE),"") -> 0 | H41: =IFERROR(VLOOKUP($B41,'Cls B2 et B3'!$A$77:$G$99,5,FALSE),"") -> 3 | K41: 20 | L41: 3 | M41: 7 | N41: STAN 1 | O41: FEN 1 | Q41: 132 | R41: 2 | S41: 4 | T41: STAN 3 | U41: FEN 2 | W41: 152 | X41: 2 | Y41: 4 | Z41: ASVP | AA41: JBS 2
B42: 138 | C42: =VLOOKUP($B42,$W$21:$AA$41,4) -> STAN 4 | D42: =VLOOKUP($B42,$W$21:$AA$41,5) -> FEN 3 | E42: La Courneuve T5B | F42: 14h40 | G42: =IFERROR(VLOOKUP($B42,'Cls B2 et B3'!$A$77:$G$99,4,FALSE),"") -> 0 | H42: =IFERROR(VLOOKUP($B42,'Cls B2 et B3'!$A$77:$G$99,5,FALSE),"") -> 3 | K42: 21 | L42: 4 | M42: 8 | N42: STAN 2 | O42: JBS 1
B43: 135 | C43: =VLOOKUP($B43,$W$21:$AA$41,4) -> ROC 2 | D43: =VLOOKUP($B43,$W$21:$AA$41,5) -> STAN 4 | E43: La Courneuve T5B | F43: 15h | G43: =IFERROR(VLOOKUP($B43,'Cls B2 et B3'!$A$77:$G$99,4,FALSE),"") -> 3 | H43: =IFERROR(VLOOKUP($B43,'Cls B2 et B3'!$A$77:$G$99,5,FALSE),"") -> 0 | K43: 22 | L43: 2 | M43: 6 | N43: SJL 2 | O43: MASS 2
A44: 2022-03-30 | B44: DIVISION 1 | K44: 23 | L44: 3 | M44: 5 | N44: STAN 1 | O44: MASS 1
G45: =IFERROR(VLOOKUP($B45,'Cls B1'!$A$1:$G$75,4,FALSE),"") ->  | H45: =IFERROR(VLOOKUP($B45,'Cls B1'!$A$1:$G$75,5,FALSE),"") ->  | I45: MASS | K45: 24 | L45: 1 | M45: 7 | N45: SJL 1 | O45: FEN 1
G46: =IFERROR(VLOOKUP($B46,'Cls B1'!$A$1:$G$75,4,FALSE),"") ->  | H46: =IFERROR(VLOOKUP($B46,'Cls B1'!$A$1:$G$75,5,FALSE),"") ->  | K46: 25 | L46: 4 | M46: 6 | N46: STAN 2 | O46: MASS 2
G47: =IFERROR(VLOOKUP($B47,'Cls B1'!$A$1:$G$75,4,FALSE),"") ->  | H47: =IFERROR(VLOOKUP($B47,'Cls B1'!$A$1:$G$75,5,FALSE),"") ->  | K47: 26 | L47: 8 | M47: 5 | N47: JBS 1 | O47: MASS 1
G48: =IFERROR(VLOOKUP($B48,'Cls B1'!$A$1:$G$75,4,FALSE),"") ->  | H48: =IFERROR(VLOOKUP($B48,'Cls B1'!$A$1:$G$75,5,FALSE),"") ->  | K48: 27 | L48: 7 | M48: 2 | N48: FEN 1 | O48: SJL 2
G49: =IFERROR(VLOOKUP($B49,'Cls B1'!$A$1:$G$75,4,FALSE),"") ->  | H49: =IFERROR(VLOOKUP($B49,'Cls B1'!$A$1:$G$75,5,FALSE),"") ->  | K49: 28 | L49: 1 | M49: 3 | N49: SJL 1 | O49: STAN 1
G50: =IFERROR(VLOOKUP($B50,'Cls B1'!$A$1:$G$75,4,FALSE),"") ->  | H50: =IFERROR(VLOOKUP($B50,'Cls B1'!$A$1:$G$75,5,FALSE),"") ->  | K50: 29 | L50: 1 | M50: 9 | N50: SJL 1 | O50: ROC 1
G51: =IFERROR(VLOOKUP($B51,'Cls B1'!$A$1:$G$75,4,FALSE),"") ->  | H51: =IFERROR(VLOOKUP($B51,'Cls B1'!$A$1:$G$75,5,FALSE),"") ->  | K51: 30 | L51: 2 | M51: 9 | N51: SJL 2 | O51: ROC 1
B52: DIVISION 2 | K52: 31 | L52: 3 | M52: 9 | N52: STAN 1 | O52: ROC 1
B53: 113 | C53: =VLOOKUP($B53,$Q$21:$U$41,4) -> SANO | D53: =VLOOKUP($B53,$Q$21:$U$41,5) -> STAN 3 | E53: La Courneuve T5A | F53: 14h20 | G53: =IFERROR(VLOOKUP($B53,'Cls B2 et B3'!$A$52:$G$74,4,FALSE),"") -> 7 | H53: =IFERROR(VLOOKUP($B53,'Cls B2 et B3'!$A$52:$G$74,5,FALSE),"") -> 1 | K53: 32 | L53: 4 | M53: 9 | N53: STAN 2 | O53: ROC 1
B54: 121 | C54: =VLOOKUP($B54,$Q$21:$U$41,4) -> BND | D54: =VLOOKUP($B54,$Q$21:$U$41,5) -> SJL 3 | E54: La Courneuve T5A | F54: 14h20 | G54: =IFERROR(VLOOKUP($B54,'Cls B2 et B3'!$A$52:$G$74,4,FALSE),"") -> 0 | H54: =IFERROR(VLOOKUP($B54,'Cls B2 et B3'!$A$52:$G$74,5,FALSE),"") -> 0 | K54: 33 | L54: 5 | M54: 9 | N54: =VLOOKUP(L54,$K$9:$L$19,2) -> MASS 1 | O54: =VLOOKUP(M54,$K$9:$L$19,2) -> ROC 1
B55: 119 | C55: =VLOOKUP($B55,$Q$21:$U$41,4) -> STAN 3 | D55: =VLOOKUP($B55,$Q$21:$U$41,5) -> SJL 3 | E55: La Courneuve T5A | F55: 14h40 | G55: =IFERROR(VLOOKUP($B55,'Cls B2 et B3'!$A$52:$G$74,4,FALSE),"") -> 1 | H55: =IFERROR(VLOOKUP($B55,'Cls B2 et B3'!$A$52:$G$74,5,FALSE),"") -> 0 | K55: 34 | L55: 6 | M55: 9 | N55: MASS 2 | O55: ROC 1
B56: 118 | C56: =VLOOKUP($B56,$Q$21:$U$41,4) -> SANO | D56: =VLOOKUP($B56,$Q$21:$U$41,5) -> BND | E56: La Courneuve T5A | F56: 14h40 | G56: =IFERROR(VLOOKUP($B56,'Cls B2 et B3'!$A$52:$G$74,4,FALSE),"") -> 2 | H56: =IFERROR(VLOOKUP($B56,'Cls B2 et B3'!$A$52:$G$74,5,FALSE),"") -> 1 | K56: 35 | L56: 7 | M56: 9 | N56: FEN 1 | O56: ROC 1
B57: DIVISION 3 | K57: 36 | L57: 8 | M57: 9 | N57: JBS 1 | O57: ROC 1
B58: 137 | C58: =VLOOKUP($B58,$W$21:$AA$41,4) -> ROC 2 | D58: =VLOOKUP($B58,$W$21:$AA$41,5) -> JBS 2 | E58: La Courneuve T5B | F58: 14h20 | G58: =IFERROR(VLOOKUP($B58,'Cls B2 et B3'!$A$77:$G$99,4,FALSE),"") -> 2 | H58: =IFERROR(VLOOKUP($B58,'Cls B2 et B3'!$A$77:$G$99,5,FALSE),"") -> 4 | K58: 37 | L58: 3 | M58: 2 | N58: STAN 1 | O58: SJL 2
B59: 146 | C59: =VLOOKUP($B59,$W$21:$AA$41,4) -> FEN 3 | D59: =VLOOKUP($B59,$W$21:$AA$41,5) -> ASVP | E59: La Courneuve T5B | F59: 14h20 | G59: =IFERROR(VLOOKUP($B59,'Cls B2 et B3'!$A$77:$G$99,4,FALSE),"") -> 0 | H59: =IFERROR(VLOOKUP($B59,'Cls B2 et B3'!$A$77:$G$99,5,FALSE),"") -> 3 | K59: 38 | L59: 5 | M59: 1 | N59: MASS 1 | O59: SJL 1
B60: 149 | C60: =VLOOKUP($B60,$W$21:$AA$41,4) -> ROC 2 | D60: =VLOOKUP($B60,$W$21:$AA$41,5) -> ASVP | E60: La Courneuve T5B | F60: 14h40 | G60: =IFERROR(VLOOKUP($B60,'Cls B2 et B3'!$A$77:$G$99,4,FALSE),"") -> 3 | H60: =IFERROR(VLOOKUP($B60,'Cls B2 et B3'!$A$77:$G$99,5,FALSE),"") -> 2 | K60: 39 | L60: 4 | M60: 7 | N60: STAN 2 | O60: FEN 1
B61: 144 | C61: =VLOOKUP($B61,$W$21:$AA$41,4) -> JBS 2 | D61: =VLOOKUP($B61,$W$21:$AA$41,5) -> FEN 3 | E61: La Courneuve T5B | F61: 14h40 | G61: =IFERROR(VLOOKUP($B61,'Cls B2 et B3'!$A$77:$G$99,4,FALSE),"") -> 0 | H61: =IFERROR(VLOOKUP($B61,'Cls B2 et B3'!$A$77:$G$99,5,FALSE),"") -> 2 | K61: 40 | L61: 8 | M61: 6 | N61: JBS 1 | O61: MASS 2
A62: 2022-04-06 | B62: DIVISION 1 | K62: 41 | L62: 2 | M62: 1 | N62: SJL 2 | O62: SJL 1
C63: =VLOOKUP($B63,$K$22:$O$93,4) ->  | D63: =VLOOKUP($B63,$K$22:$O$93,5) ->  | G63: =IFERROR(VLOOKUP($B63,'Cls B1'!$A$1:$G$75,4,FALSE),"") ->  | H63: =IFERROR(VLOOKUP($B63,'Cls B1'!$A$1:$G$75,5,FALSE),"") ->  | I63: MASS | K63: 42 | L63: 4 | M63: 3 | N63: STAN 2 | O63: STAN 1
C64: =VLOOKUP($B64,$K$22:$O$93,4) ->  | D64: =VLOOKUP($B64,$K$22:$O$93,5) ->  | G64: =IFERROR(VLOOKUP($B64,'Cls B1'!$A$1:$G$75,4,FALSE),"") ->  | H64: =IFERROR(VLOOKUP($B64,'Cls B1'!$A$1:$G$75,5,FALSE),"") ->  | K64: 43 | L64: 6 | M64: 5 | N64: MASS 2 | O64: MASS 1
C65: =VLOOKUP($B65,$K$22:$O$93,4) ->  | D65: =VLOOKUP($B65,$K$22:$O$93,5) ->  | G65: =IFERROR(VLOOKUP($B65,'Cls B1'!$A$1:$G$75,4,FALSE),"") ->  | H65: =IFERROR(VLOOKUP($B65,'Cls B1'!$A$1:$G$75,5,FALSE),"") ->  | K65: 44 | L65: 7 | M65: 8 | N65: FEN 1 | O65: JBS 1
C66: =VLOOKUP($B66,$K$22:$O$93,4) ->  | D66: =VLOOKUP($B66,$K$22:$O$93,5) ->  | G66: =IFERROR(VLOOKUP($B66,'Cls B1'!$A$1:$G$75,4,FALSE),"") ->  | H66: =IFERROR(VLOOKUP($B66,'Cls B1'!$A$1:$G$75,5,FALSE),"") ->  | K66: 45 | L66: 1 | M66: 4 | N66: SJL 1 | O66: STAN 2
B67: DIVISION 2 | K67: 46 | L67: 2 | M67: 5 | N67: SJL 2 | O67: MASS 1
B68: 130 | C68: =VLOOKUP($B68,$Q$21:$U$41,4) -> SANO | D68: =VLOOKUP($B68,$Q$21:$U$41,5) -> FEN 2 | E68: La Courneuve T3A | F68: 14h | G68: =IFERROR(VLOOKUP($B68,'Cls B2 et B3'!$A$52:$G$74,4,FALSE),"") -> 1 | H68: =IFERROR(VLOOKUP($B68,'Cls B2 et B3'!$A$52:$G$74,5,FALSE),"") -> 0 | K68: 47 | L68: 3 | M68: 8 | N68: STAN 1 | O68: JBS 1
B69: 127 | C69: =VLOOKUP($B69,$Q$21:$U$41,4) -> FEN 2 | D69: =VLOOKUP($B69,$Q$21:$U$41,5) -> SJL 3 | E69: La Courneuve T3A | F69: 14h20 | G69: =IFERROR(VLOOKUP($B69,'Cls B2 et B3'!$A$52:$G$74,4,FALSE),"") -> 1 | H69: =IFERROR(VLOOKUP($B69,'Cls B2 et B3'!$A$52:$G$74,5,FALSE),"") -> 0 | K69: 48 | L69: 7 | M69: 6 | N69: FEN 1 | O69: MASS 2
B70: 128 | C70: =VLOOKUP($B70,$Q$21:$U$41,4) -> BND | D70: =VLOOKUP($B70,$Q$21:$U$41,5) -> SANO | E70: La Courneuve T3A | F70: 14h40 | G70: =IFERROR(VLOOKUP($B70,'Cls B2 et B3'!$A$52:$G$74,4,FALSE),"") -> 0 | H70: =IFERROR(VLOOKUP($B70,'Cls B2 et B3'!$A$52:$G$74,5,FALSE),"") -> 4 | K70: 49 | L70: 2 | M70: 4 | N70: SJL 2 | O70: STAN 2
B71: 129 | C71: =VLOOKUP($B71,$Q$21:$U$41,4) -> SJL 3 | D71: =VLOOKUP($B71,$Q$21:$U$41,5) -> STAN 3 | E71: La Courneuve T3A | F71: 15h | G71: =IFERROR(VLOOKUP($B71,'Cls B2 et B3'!$A$52:$G$74,4,FALSE),"") -> 2 | H71: =IFERROR(VLOOKUP($B71,'Cls B2 et B3'!$A$52:$G$74,5,FALSE),"") -> 1 | K71: 50 | L71: 1 | M71: 8 | N71: SJL 1 | O71: JBS 1
B72: 124 | C72: FEN 2 | D72: BND | E72: La Courneuve T3A | F72: 15h20 | G72: =IFERROR(VLOOKUP($B72,'Cls B2 et B3'!$A$52:$G$74,4,FALSE),"") -> 2 | H72: =IFERROR(VLOOKUP($B72,'Cls B2 et B3'!$A$52:$G$74,5,FALSE),"") -> 0 | K72: 51 | L72: 5 | M72: 7 | N72: MASS 1 | O72: FEN 1
B73: 132 | C73: =VLOOKUP($B73,$Q$21:$U$41,4) -> STAN 3 | D73: =VLOOKUP($B73,$Q$21:$U$41,5) -> FEN 2 | E73: La Courneuve T3A | F73: 15h40 | G73: =IFERROR(VLOOKUP($B73,'Cls B2 et B3'!$A$52:$G$74,4,FALSE),"") -> 0 | H73: =IFERROR(VLOOKUP($B73,'Cls B2 et B3'!$A$52:$G$74,5,FALSE),"") -> 1 | K73: 52 | L73: 6 | M73: 3 | N73: MASS 2 | O73: STAN 1
B74: DIVISION 3 | K74: 53 | L74: 8 | M74: 2 | N74: JBS 1 | O74: SJL 2
B75: 134 | C75: =VLOOKUP($B75,$W$21:$AA$41,4) -> FEN 3 | D75: =VLOOKUP($B75,$W$21:$AA$41,5) -> JBS 2 | E75: La Courneuve T5 A | F75: 14h | G75: =IFERROR(VLOOKUP($B75,'Cls B2 et B3'!$A$77:$G$99,4,FALSE),"") -> 1 | H75: =IFERROR(VLOOKUP($B75,'Cls B2 et B3'!$A$77:$G$99,5,FALSE),"") -> 0 | K75: 54 | L75: 4 | M75: 5 | N75: STAN 2 | O75: MASS 1
B76: 133 | C76: =VLOOKUP($B76,$W$21:$AA$41,4) -> STAN 4 | D76: =VLOOKUP($B76,$W$21:$AA$41,5) -> ASVP | E76: La Courneuve T5 A | F76: 14h20 | G76: =IFERROR(VLOOKUP($B76,'Cls B2 et B3'!$A$77:$G$99,4,FALSE),"") -> 0 | H76: =IFERROR(VLOOKUP($B76,'Cls B2 et B3'!$A$77:$G$99,5,FALSE),"") -> 4 | K76: 55 | L76: 1 | M76: 6 | N76: SJL 1 | O76: MASS 2
B77: 140 | C77: =VLOOKUP($B77,$W$21:$AA$41,4) -> JBS 2 | D77: =VLOOKUP($B77,$W$21:$AA$41,5) -> STAN 4 | E77: La Courneuve T5 A | F77: 14h40 | G77: =IFERROR(VLOOKUP($B77,'Cls B2 et B3'!$A$77:$G$99,4,FALSE),"") -> 3 | H77: =IFERROR(VLOOKUP($B77,'Cls B2 et B3'!$A$77:$G$99,5,FALSE),"") -> 1 | K77: 56 | L77: 7 | M77: 3 | N77: FEN 1 | O77: STAN 1
B78: 142 | C78: JBS 2 | D78: ASVP | E78: La Courneuve T5 A | F78: 15h | G78: =IFERROR(VLOOKUP($B78,'Cls B2 et B3'!$A$77:$G$99,4,FALSE),"") -> 4 | H78: =IFERROR(VLOOKUP($B78,'Cls B2 et B3'!$A$77:$G$99,5,FALSE),"") -> 1 | K78: 57 | L78: 8 | M78: 4 | N78: JBS 1 | O78: STAN 2
A79: 2022-04-13 | B79: DIVISION 1 | K79: 58 | L79: 6 | M79: 2 | N79: MASS 2 | O79: SJL 2
B80: 66 | C80: =VLOOKUP($B80,$K$22:$O$93,4) -> ROC 1 | D80: =VLOOKUP($B80,$K$22:$O$93,5) -> SJL 2 | E80: SJL TA | F80: 14h | G80: =IFERROR(VLOOKUP($B80,'Cls B1'!$A$1:$G$75,4,FALSE),"") -> 0 | H80: =IFERROR(VLOOKUP($B80,'Cls B1'!$A$1:$G$75,5,FALSE),"") -> 0 | I80: STAN | K80: 59 | L80: 5 | M80: 3 | N80: MASS 1 | O80: STAN 1
B81: 62 | C81: MASS 1 | D81: JBS 1 | E81: SJL TB | F81: 14h | G81: =IFERROR(VLOOKUP($B81,'Cls B1'!$A$1:$G$75,4,FALSE),"") -> 2 | H81: =IFERROR(VLOOKUP($B81,'Cls B1'!$A$1:$G$75,5,FALSE),"") -> 2 | K81: 60 | L81: 7 | M81: 1 | N81: FEN 1 | O81: SJL 1
B82: 69 | C82: ROC 1 | D82: MASS 1 | E82: SJL TA | F82: 14h20 | G82: =IFERROR(VLOOKUP($B82,'Cls B1'!$A$1:$G$75,4,FALSE),"") -> 0 | H82: =IFERROR(VLOOKUP($B82,'Cls B1'!$A$1:$G$75,5,FALSE),"") -> 7 | K82: 61 | L82: 6 | M82: 4 | N82: MASS 2 | O82: STAN 2
B83: 40 | C83: JBS 1 | D83: MASS 2 | E83: SJL TB | F83: 14h20 | G83: =IFERROR(VLOOKUP($B83,'Cls B1'!$A$1:$G$75,4,FALSE),"") -> 6 | H83: =IFERROR(VLOOKUP($B83,'Cls B1'!$A$1:$G$75,5,FALSE),"") -> 0 | K83: 62 | L83: 5 | M83: 8 | N83: MASS 1 | O83: JBS 1
B84: 70 | C84: ROC 1 | D84: MASS 2 | E84: SJL TA | F84: 14h40 | G84: =IFERROR(VLOOKUP($B84,'Cls B1'!$A$1:$G$75,4,FALSE),"") -> 5 | H84: =IFERROR(VLOOKUP($B84,'Cls B1'!$A$1:$G$75,5,FALSE),"") -> 0 | K84: 63 | L84: 2 | M84: 7 | N84: SJL 2 | O84: FEN 1
B85: 64 | C85: STAN 1 | D85: SJL 1 | G85: =IFERROR(VLOOKUP($B85,'Cls B1'!$A$1:$G$75,4,FALSE),"") -> 0 | H85: =IFERROR(VLOOKUP($B85,'Cls B1'!$A$1:$G$75,5,FALSE),"") -> 2 | K85: 64 | L85: 3 | M85: 1 | N85: STAN 1 | O85: SJL 1
B86: DIVISION 2 | K86: 65 | L86: 9 | M86: 1 | N86: =VLOOKUP(L86,$K$9:$L$19,2) -> ROC 1 | O86: =VLOOKUP(M86,$K$9:$L$19,2) -> SJL 1
B87: 131 | C87: =VLOOKUP($B87,$Q$21:$U$41,4) -> SJL 3 | D87: =VLOOKUP($B87,$Q$21:$U$41,5) -> BND | E87: Tremblay SANO TB | F87: 14h20 | G87: =IFERROR(VLOOKUP($B87,'Cls B2 et B3'!$A$52:$G$74,4,FALSE),"") -> 3 | H87: =IFERROR(VLOOKUP($B87,'Cls B2 et B3'!$A$52:$G$74,5,FALSE),"") -> 0 | K87: 66 | L87: 9 | M87: 2 | N87: ROC 1 | O87: SJL 2
B88: 125 | C88: =VLOOKUP($B88,$Q$21:$U$41,4) -> SANO | D88: =VLOOKUP($B88,$Q$21:$U$41,5) -> SJL 3 | E88: Tremblay SANO TA | F88: 14h40 | G88: =IFERROR(VLOOKUP($B88,'Cls B2 et B3'!$A$52:$G$74,4,FALSE),"") -> 6 | H88: =IFERROR(VLOOKUP($B88,'Cls B2 et B3'!$A$52:$G$74,5,FALSE),"") -> 0 | K88: 67 | L88: 9 | M88: 3 | N88: ROC 1 | O88: STAN 1
G89: =IFERROR(VLOOKUP($B89,'Cls B2 et B3'!$A$1:$G$23,4,FALSE),"") ->  | H89: =IFERROR(VLOOKUP($B89,'Cls B2 et B3'!$A$1:$G$23,5,FALSE),"") ->  | K89: 68 | L89: 9 | M89: 4 | N89: ROC 1 | O89: STAN 2
K90: 69 | L90: 9 | M90: 5 | N90: ROC 1 | O90: MASS 1
B91: DIVISION 3 | K91: 70 | L91: 9 | M91: 6 | N91: ROC 1 | O91: MASS 2
C92: =VLOOKUP($B92,$W$21:$AA$41,4) ->  | D92: =VLOOKUP($B92,$W$21:$AA$41,5) ->  | K92: 71 | L92: 9 | M92: 7 | N92: ROC 1 | O92: FEN 1
C93: =VLOOKUP($B93,$W$21:$AA$41,4) ->  | D93: =VLOOKUP($B93,$W$21:$AA$41,5) ->  | K93: 72 | L93: 9 | M93: 8 | N93: ROC 1 | O93: JBS 1
C94: =VLOOKUP($B94,$W$21:$AA$41,4) ->  | D94: =VLOOKUP($B94,$W$21:$AA$41,5) -> 
C95: =VLOOKUP($B95,$W$21:$AA$41,4) ->  | D95: =VLOOKUP($B95,$W$21:$AA$41,5) -> 
A96: 2022-05-11 | B96: ENTRAINEMENT : matchs amicaux
A102: 2022-05-18 | B102: COUPE BG au Tremblay sur terrains SANO et MASS de 14h à 17h

Sheet Cls B1
A1: BENJAMINS DIVISION 1
A3: N° Match | B3: Equipe A | C3: Equipe B | D3: Scores | F3: Vainqueur | G3: Perdant | J3: SIGLE | K3: Etablissement | L3: Matchs joués | M3: Victoires | N3: Nuls | O3: Défaites | P3: Buts Pour | Q3: Buts Contre | R3: Différence | S3: Points
A4: 1 | B4: ='Calendrier BG'!N22 -> SJL 2 | C4: ='Calendrier BG'!O22 -> STAN 1 | D4: 0 | E4: 7 | F4: =IF(D4<>"",IF(D4>E4,B4,IF(D4<E4,C4,"nul")),"") -> STAN 1 | G4: =IF(E4<>"",IF(E4<D4,C4,IF(E4>D4,B4,"nul")),"") -> SJL 2 | I4: =RANK(T4,$T$4:$T$12) -> 1 | J4: SJL 1 | K4: Saint Justin Levallois 1 | L4: =COUNT(D5,D8,D12,D17,D22,D27,D58,D31,D32,D41,D44,D48,D68,D53,D63,D67) -> 16 | M4: =COUNTIF($F$3:$F$75,J4) -> 16 | N4: =L4-M4-O4 -> 0 | O4: =COUNTIF($G$4:$G$75,J4) -> 0 | P4: =SUM(D5,D8,E12,E17,E22,D27,D58,D31,D32,E41,E44,D48,E68,D53,E63,E67) -> 68 | Q4: =SUM(E5,E8,D12,D17,D22,E27,E58,E31,E32,D41,D44,E48,D68,E53,D63,D67) -> 8 | R4: =P4-Q4 -> 60 | S4: =M4*4+N4*2+O4*1 -> 64 | T4: =SUM(S4*1000000+R4*10000+P4*100+L4*10) -> 64606960
A5: 2 | B5: ='Calendrier BG'!N23 -> SJL 1 | C5: ='Calendrier BG'!O23 -> MASS 1 | D5: 4 | E5: 0 | F5: =IF(D5<>"",IF(D5>E5,B5,IF(D5<E5,C5,"nul")),"") -> SJL 1 | G5: =IF(E5<>"",IF(E5<D5,C5,IF(E5>D5,B5,"nul")),"") -> MASS 1 | I5: =RANK(T5,$T$4:$T$12) -> 6 | J5: SJL 2 | K5: Saint Justin Levallois 2 | L5: =COUNT(D4,D8,D13,D16,D20,D25,D56,D30,D33,D40,D44,D49,D69,D52,D61,D66) -> 16 | M5: 6 | N5: =L5-M5-O5 -> 2 | O5: =COUNTIF($G$4:$G$75,J5) -> 8 | P5: =SUM(D4,E8,E13,E16,D20,D25,E56,E30,D33,E40,D44,D49,E69,D52,E61,D66) -> 22 | Q5: =SUM(E4,D8,D13,D16,E20,E25,D56,D30,E33,D40,E44,E49,D69,E52,D61,E66) -> 36 | R5: =P5-Q5 -> -14 | S5: =M5*4+N5*2+O5*1 -> 36 | T5: =SUM(S5*1000000+R5*10000+P5*100+L5*10) -> 35862360
A6: 3 | B6: ='Calendrier BG'!N24 -> FEN 1 | C6: ='Calendrier BG'!O24 -> STAN 2 | D6: 3 | E6: 1 | F6: FEN 1 | G6: STAN 2 | I6: 3 | J6: STAN 1 | K6: Stanislas 1 | L6: =COUNT(D4,D9,D14,D19,D23,D26,D59,D31,D34,D40,D45,D50,D70,D55,D62,D67) -> 16 | M6: 10 | N6: 3 | O6: 3 | P6: =SUM(E4,D9,E14,D19,D23,D26,E59,E31,D34,D40,E45,D50,E70,E55,E62,D67) -> 41 | Q6: =SUM(D4,E9,D14,E19,E23,E26,D59,D31,E34,E40,D45,E50,D70,D55,D62,E67) -> 14 | R6: 27 | S6: 49 | T6: 49274260
A7: 4 | B7: ='Calendrier BG'!N25 -> MASS 2 | C7: ='Calendrier BG'!O25 -> JBS 1 | D7: 3 | E7: 0 | F7: MASS 2 | G7: JBS 1 | I7: 8 | J7: STAN 2 | K7: Stanislas 2 | L7: =COUNT(D6,D9,D16,D21,D24,D28,D60,D42,D35,D45,D48,D52,D71,D57,D64,D12) -> 16 | M7: 3 | N7: 1 | O7: 12 | P7: =SUM(E6,E9,D16,E21,D24,D28,E60,D42,D35,D45,E48,E52,E71,D57,E64,D12) -> 12 | Q7: =SUM(D6,D9,E16,D21,E24,E28,D60,E42,E35,E45,D48,D52,D71,E57,D64,E12) -> 48 | R7: -36 | S7: 26 | T7: 25641360
A8: 5 | B8: ='Calendrier BG'!N26 -> SJL 1 | C8: ='Calendrier BG'!O26 -> SJL 2 | D8: 6 | E8: 0 | F8: SJL 1 | G8: SJL 2 | I8: 2 | J8: MASS 1 | K8: Massillon 1 | L8: =COUNT(D5,D10,D13,D18,D21,D26,D62,D29,D36,D46,D49,D54,D72,D57,D65,D41) -> 16 | M8: 10 | N8: 4 | O8: 2 | P8: =SUM(E5,D10,D13,E18,D21,E26,D62,E29,D36,E46,E49,D54,E72,E57,D65,D41) -> 39 | Q8: =SUM(D5,E10,E13,D18,E21,D26,E62,D29,E36,D46,D49,E54,D72,D57,E65,E41) -> 14 | R8: 25 | S8: 50 | T8: 50254060
A9: 6 | B9: ='Calendrier BG'!N27 -> STAN 1 | C9: ='Calendrier BG'!O27 -> STAN 2 | D9: 2 | E9: 0 | F9: STAN 1 | G9: STAN 2 | I9: 9 | J9: MASS 2 | K9: Massillon 2 | L9: =COUNT(D7,D10,D15,D19,D22,D25,D58,D28,D37,D43,D46,D51,D73,D55,D61,D64) -> 16 | M9: 1 | N9: 0 | O9: 15 | P9: =SUM(D7,E10,D15,E19,D22,E25,D58,E28,D37,E43,D46,E51,E73,D55,D61,D64) -> 15 | Q9: =SUM(E7,D10,E15,D19,E22,D25,E58,D28,E37,D43,E46,D51,D73,E55,E61,E64) -> 48 | R9: -33 | S9: 19 | T9: 18671660
A10: 7 | B10: ='Calendrier BG'!N28 -> MASS 1 | C10: ='Calendrier BG'!O28 -> MASS 2 | D10: 1 | E10: 0 | F10: MASS 1 | G10: MASS 2 | I10: 4 | J10: FEN 1 | K10: Fénelon Ste Marie 1 | L10: =COUNT(D6,D11,D15,D18,D23,D27,D51,D30,D38,D42,D47,D54,D74,D59,D63,D66) -> 16 | M10: =COUNTIF($F$3:$F$75,J10) -> 8 | N10: 1 | O10: 7 | P10: =SUM(D6,E11,E15,D18,E23,E27,D51,D30,D38,D42,D47,E54,E74,D59,D63,E66) -> 33 | Q10: =SUM(E6,D11,D15,E18,D23,D27,E51,E30,E38,E42,E47,D54,D74,E59,E63,D66) -> 24 | R10: 9 | S10: 41 | T10: 41093460
A11: 8 | B11: ='Calendrier BG'!N29 -> JBS 1 | C11: ='Calendrier BG'!O29 -> FEN 1 | D11: 0 | E11: 5 | F11: FEN 1 | G11: JBS 1 | I11: 5 | J11: JBS 1 | K11: Jean Baptiste La Salle 1 | L11: =COUNT(D7,D11,D17,D20,D24,D29,D60,D43,D39,D47,D50,D53,D75,D56,D65,D14) -> 16 | M11: 6 | N11: 2 | O11: 8 | P11: =SUM(E7,D11,D17,E20,E24,D29,D60,D43,D39,E47,E50,E53,E75,D56,E65,D14) -> 23 | Q11: =SUM(D7,E11,E17,D20,D24,E29,E60,E43,E39,D47,D50,D53,D75,E56,D65,E14) -> 35 | R11: -12 | S11: 36 | T11: =SUM(S11*1000000+R11*10000+P11*100+L11*10) -> 35882460
A12: 9 | B12: ='Calendrier BG'!N30 -> STAN 2 | C12: ='Calendrier BG'!O30 -> SJL 1 | D12: 2 | E12: 9 | F12: =IF(D12<>"",IF(D12>E12,B12,IF(D12<E12,C12,"nul")),"") -> SJL 1 | G12: STAN 2 | I12: 7 | J12: ROC 1 | K12: Rocroy St Vincent 1 | L12: =COUNT(D36,D34,D33,D37,D32,D35,D69,D39,D68,D38,D74,D73,D72,D70,D71,D75) -> 16 | M12: 4 | N12: 3 | O12: 9 | P12: =SUM(E36,E34,E33,E37,E32,E35,D69,E39,D68,E38,D74,D73,D72,D70,D71,D75) -> 14 | Q12: =SUM(D36,D34,D33,D37,D32,D35,E69,D39,E68,D38,E74,E73,E72,E70,E71,E75) -> 26 | R12: -12 | S12: 31 | T12: 30881560
A13: 10 | B13: ='Calendrier BG'!N31 -> MASS 1 | C13: ='Calendrier BG'!O31 -> SJL 2 | D13: 1 | E13: 0 | F13: MASS 1 | G13: SJL 2
A14: 11 | B14: ='Calendrier BG'!N32 -> JBS 1 | C14: ='Calendrier BG'!O32 -> STAN 1 | D14: 0 | E14: 2 | F14: STAN 1 | G14: JBS 1 | I14: Classement | J14: SIGLE | K14: Etablissement | L14: Matchs joués | M14: Victoires | N14: Nuls | O14: Défaites | P14: Buts Pour | Q14: Buts Contre | R14: Différence | S14: Points
A15: 12 | B15: ='Calendrier BG'!N33 -> MASS 2 | C15: ='Calendrier BG'!O33 -> FEN 1 | D15: 0 | E15: 6 | F15: FEN 1 | G15: MASS 2 | I15: 1 | J15: =VLOOKUP($I15,$I$3:$S$12,COLUMNS($J14:J14)+1,FALSE) -> SJL 1 | K15: =VLOOKUP($I15,$I$3:$S$12,COLUMNS($J14:K14)+1,FALSE) -> Saint Justin Levallois 1 | L15: =VLOOKUP($I15,$I$3:$S$12,COLUMNS($J14:L14)+1,FALSE) -> 16 | M15: =VLOOKUP($I15,$I$3:$S$12,COLUMNS($J14:M14)+1,FALSE) -> 16 | N15: =VLOOKUP($I15,$I$3:$S$12,COLUMNS($J14:N14)+1,FALSE) -> 0 | O15: =VLOOKUP($I15,$I$3:$S$12,COLUMNS($J14:O14)+1,FALSE) -> 0 | P15: =VLOOKUP($I15,$I$3:$S$12,COLUMNS($J14:P14)+1,FALSE) -> 68 | Q15: =VLOOKUP($I15,$I$3:$S$12,COLUMNS($J14:Q14)+1,FALSE) -> 8 | R15: =VLOOKUP($I15,$I$3:$S$12,COLUMNS($J14:R14)+1,FALSE) -> 60 | S15: =VLOOKUP($I15,$I$3:$S$12,COLUMNS($J14:S14)+1,FALSE) -> 64
A16: 13 | B16: ='Calendrier BG'!N34 -> STAN 2 | C16: ='Calendrier BG'!O34 -> SJL 2 | D16: 0 | E16: 8 | F16: SJL 2 | G16: STAN 2 | I16: 2 | J16: =VLOOKUP($I16,$I$3:$S$12,COLUMNS($J15:J15)+1,FALSE) -> MASS 1 | K16: =VLOOKUP($I16,$I$3:$S$12,COLUMNS($J15:K15)+1,FALSE) -> Massillon 1 | L16: =VLOOKUP($I16,$I$3:$S$12,COLUMNS($J15:L15)+1,FALSE) -> 16 | M16: =VLOOKUP($I16,$I$3:$S$12,COLUMNS($J15:M15)+1,FALSE) -> 10 | N16: =VLOOKUP($I16,$I$3:$S$12,COLUMNS($J15:N15)+1,FALSE) -> 4 | O16: =VLOOKUP($I16,$I$3:$S$12,COLUMNS($J15:O15)+1,FALSE) -> 2 | P16: =VLOOKUP($I16,$I$3:$S$12,COLUMNS($J15:P15)+1,FALSE) -> 39 | Q16: =VLOOKUP($I16,$I$3:$S$12,COLUMNS($J15:Q15)+1,FALSE) -> 14 | R16: =VLOOKUP($I16,$I$3:$S$12,COLUMNS($J15:R15)+1,FALSE) -> 25 | S16: =VLOOKUP($I16,$I$3:$S$12,COLUMNS($J15:S15)+1,FALSE) -> 50
A17: 14 | B17: ='Calendrier BG'!N35 -> JBS 1 | C17: ='Calendrier BG'!O35 -> SJL 1 | D17: 0 | E17: 3 | F17: SJL 1 | G17: JBS 1 | I17: 3 | J17: =VLOOKUP($I17,$I$3:$S$12,COLUMNS($J16:J16)+1,FALSE) -> STAN 1 | K17: =VLOOKUP($I17,$I$3:$S$12,COLUMNS($J16:K16)+1,FALSE) -> Stanislas 1 | L17: =VLOOKUP($I17,$I$3:$S$12,COLUMNS($J16:L16)+1,FALSE) -> 16 | M17: =VLOOKUP($I17,$I$3:$S$12,COLUMNS($J16:M16)+1,FALSE) -> 10 | N17: =VLOOKUP($I17,$I$3:$S$12,COLUMNS($J16:N16)+1,FALSE) -> 3 | O17: =VLOOKUP($I17,$I$3:$S$12,COLUMNS($J16:O16)+1,FALSE) -> 3 | P17: =VLOOKUP($I17,$I$3:$S$12,COLUMNS($J16:P16)+1,FALSE) -> 41 | Q17: =VLOOKUP($I17,$I$3:$S$12,COLUMNS($J16:Q16)+1,FALSE) -> 14 | R17: =VLOOKUP($I17,$I$3:$S$12,COLUMNS($J16:R16)+1,FALSE) -> 27 | S17: =VLOOKUP($I17,$I$3:$S$12,COLUMNS($J16:S16)+1,FALSE) -> 49
A18: 15 | B18: ='Calendrier BG'!N36 -> FEN 1 | C18: ='Calendrier BG'!O36 -> MASS 1 | D18: 0 | E18: 1 | F18: MASS 1 | G18: FEN 1 | I18: 4 | J18: =VLOOKUP($I18,$I$3:$S$12,COLUMNS($J17:J17)+1,FALSE) -> FEN 1 | K18: =VLOOKUP($I18,$I$3:$S$12,COLUMNS($J17:K17)+1,FALSE) -> Fénelon Ste Marie 1 | L18: =VLOOKUP($I18,$I$3:$S$12,COLUMNS($J17:L17)+1,FALSE) -> 16 | M18: =VLOOKUP($I18,$I$3:$S$12,COLUMNS($J17:M17)+1,FALSE) -> 8 | N18: =VLOOKUP($I18,$I$3:$S$12,COLUMNS($J17:N17)+1,FALSE) -> 1 | O18: =VLOOKUP($I18,$I$3:$S$12,COLUMNS($J17:O17)+1,FALSE) -> 7 | P18: =VLOOKUP($I18,$I$3:$S$12,COLUMNS($J17:P17)+1,FALSE) -> 33 | Q18: =VLOOKUP($I18,$I$3:$S$12,COLUMNS($J17:Q17)+1,FALSE) -> 24 | R18: =VLOOKUP($I18,$I$3:$S$12,COLUMNS($J17:R17)+1,FALSE) -> 9 | S18: =VLOOKUP($I18,$I$3:$S$12,COLUMNS($J17:S17)+1,FALSE) -> 41
A19: 16 | B19: ='Calendrier BG'!N37 -> STAN 1 | C19: ='Calendrier BG'!O37 -> MASS 2 | D19: 5 | E19: 0 | F19: STAN 1 | G19: MASS 2 | I19: 5 | J19: =VLOOKUP($I19,$I$3:$S$12,COLUMNS($J18:J18)+1,FALSE) -> JBS 1 | K19: =VLOOKUP($I19,$I$3:$S$12,COLUMNS($J18:K18)+1,FALSE) -> Jean Baptiste La Salle 1 | L19: =VLOOKUP($I19,$I$3:$S$12,COLUMNS($J18:L18)+1,FALSE) -> 16 | M19: =VLOOKUP($I19,$I$3:$S$12,COLUMNS($J18:M18)+1,FALSE) -> 6 | N19: =VLOOKUP($I19,$I$3:$S$12,COLUMNS($J18:N18)+1,FALSE) -> 2 | O19: =VLOOKUP($I19,$I$3:$S$12,COLUMNS($J18:O18)+1,FALSE) -> 8 | P19: =VLOOKUP($I19,$I$3:$S$12,COLUMNS($J18:P18)+1,FALSE) -> 23 | Q19: =VLOOKUP($I19,$I$3:$S$12,COLUMNS($J18:Q18)+1,FALSE) -> 35 | R19: =VLOOKUP($I19,$I$3:$S$12,COLUMNS($J18:R18)+1,FALSE) -> -12 | S19: =VLOOKUP($I19,$I$3:$S$12,COLUMNS($J18:S18)+1,FALSE) -> 36
A20: 17 | B20: ='Calendrier BG'!N38 -> SJL 2 | C20: ='Calendrier BG'!O38 -> JBS 1 | D20: 0 | E20: 0 | F20: nul | G20: nul | I20: 6 | J20: =VLOOKUP($I20,$I$3:$S$12,COLUMNS($J19:J19)+1,FALSE) -> SJL 2 | K20: =VLOOKUP($I20,$I$3:$S$12,COLUMNS($J19:K19)+1,FALSE) -> Saint Justin Levallois 2 | L20: =VLOOKUP($I20,$I$3:$S$12,COLUMNS($J19:L19)+1,FALSE) -> 16 | M20: =VLOOKUP($I20,$I$3:$S$12,COLUMNS($J19:M19)+1,FALSE) -> 6 | N20: =VLOOKUP($I20,$I$3:$S$12,COLUMNS($J19:N19)+1,FALSE) -> 2 | O20: =VLOOKUP($I20,$I$3:$S$12,COLUMNS($J19:O19)+1,FALSE) -> 8 | P20: =VLOOKUP($I20,$I$3:$S$12,COLUMNS($J19:P19)+1,FALSE) -> 22 | Q20: =VLOOKUP($I20,$I$3:$S$12,COLUMNS($J19:Q19)+1,FALSE) -> 36 | R20: =VLOOKUP($I20,$I$3:$S$12,COLUMNS($J19:R19)+1,FALSE) -> -14 | S20: =VLOOKUP($I20,$I$3:$S$12,COLUMNS($J19:S19)+1,FALSE) -> 36
A21: 18 | B21: ='Calendrier BG'!N39 -> MASS 1 | C21: ='Calendrier BG'!O39 -> STAN 2 | D21: 2 | E21: 0 | F21: MASS 1 | G21: STAN 2 | I21: 7 | J21: =VLOOKUP($I21,$I$3:$S$12,COLUMNS($J20:J20)+1,FALSE) -> ROC 1 | K21: =VLOOKUP($I21,$I$3:$S$12,COLUMNS($J20:K20)+1,FALSE) -> Rocroy St Vincent 1 | L21: =VLOOKUP($I21,$I$3:$S$12,COLUMNS($J20:L20)+1,FALSE) -> 16 | M21: =VLOOKUP($I21,$I$3:$S$12,COLUMNS($J20:M20)+1,FALSE) -> 4 | N21: =VLOOKUP($I21,$I$3:$S$12,COLUMNS($J20:N20)+1,FALSE) -> 3 | O21: =VLOOKUP($I21,$I$3:$S$12,COLUMNS($J20:O20)+1,FALSE) -> 9 | P21: =VLOOKUP($I21,$I$3:$S$12,COLUMNS($J20:P20)+1,FALSE) -> 14 | Q21: =VLOOKUP($I21,$I$3:$S$12,COLUMNS($J20:Q20)+1,FALSE) -> 26 | R21: =VLOOKUP($I21,$I$3:$S$12,COLUMNS($J20:R20)+1,FALSE) -> -12 | S21: =VLOOKUP($I21,$I$3:$S$12,COLUMNS($J20:S20)+1,FALSE) -> 31
A22: 19 | B22: ='Calendrier BG'!N40 -> MASS 2 | C22: ='Calendrier BG'!O40 -> SJL 1 | D22: 0 | E22: 3 | F22: SJL 1 | G22: MASS 2 | I22: 8 | J22: =VLOOKUP($I22,$I$3:$S$12,COLUMNS($J21:J21)+1,FALSE) -> STAN 2 | K22: =VLOOKUP($I22,$I$3:$S$12,COLUMNS($J21:K21)+1,FALSE) -> Stanislas 2 | L22: =VLOOKUP($I22,$I$3:$S$12,COLUMNS($J21:L21)+1,FALSE) -> 16 | M22: =VLOOKUP($I22,$I$3:$S$12,COLUMNS($J21:M21)+1,FALSE) -> 3 | N22: =VLOOKUP($I22,$I$3:$S$12,COLUMNS($J21:N21)+1,FALSE) -> 1 | O22: =VLOOKUP($I22,$I$3:$S$12,COLUMNS($J21:O21)+1,FALSE) -> 12 | P22: =VLOOKUP($I22,$I$3:$S$12,COLUMNS($J21:P21)+1,FALSE) -> 12 | Q22: =VLOOKUP($I22,$I$3:$S$12,COLUMNS($J21:Q21)+1,FALSE) -> 48 | R22: =VLOOKUP($I22,$I$3:$S$12,COLUMNS($J21:R21)+1,FALSE) -> -36 | S22: =VLOOKUP($I22,$I$3:$S$12,COLUMNS($J21:S21)+1,FALSE) -> 26
A23: 20 | B23: ='Calendrier BG'!N41 -> STAN 1 | C23: ='Calendrier BG'!O41 -> FEN 1 | D23: 3 | E23: 1 | F23: STAN 1 | G23: FEN 1 | I23: 9 | J23: =VLOOKUP($I23,$I$3:$S$12,COLUMNS($J22:J22)+1,FALSE) -> MASS 2 | K23: =VLOOKUP($I23,$I$3:$S$12,COLUMNS($J22:K22)+1,FALSE) -> Massillon 2 | L23: =VLOOKUP($I23,$I$3:$S$12,COLUMNS($J22:L22)+1,FALSE) -> 16 | M23: =VLOOKUP($I23,$I$3:$S$12,COLUMNS($J22:M22)+1,FALSE) -> 1 | N23: =VLOOKUP($I23,$I$3:$S$12,COLUMNS($J22:N22)+1,FALSE) -> 0 | O23: =VLOOKUP($I23,$I$3:$S$12,COLUMNS($J22:O22)+1,FALSE) -> 15 | P23: =VLOOKUP($I23,$I$3:$S$12,COLUMNS($J22:P22)+1,FALSE) -> 15 | Q23: =VLOOKUP($I23,$I$3:$S$12,COLUMNS($J22:Q22)+1,FALSE) -> 48 | R23: =VLOOKUP($I23,$I$3:$S$12,COLUMNS($J22:R22)+1,FALSE) -> -33 | S23: =VLOOKUP($I23,$I$3:$S$12,COLUMNS($J22:S22)+1,FALSE) -> 19
A24: 21 | B24: ='Calendrier BG'!N42 -> STAN 2 | C24: ='Calendrier BG'!O42 -> JBS 1 | D24: 0 | E24: 1 | F24: JBS 1 | G24: STAN 2
A25: 22 | B25: ='Calendrier BG'!N43 -> SJL 2 | C25: ='Calendrier BG'!O43 -> MASS 2 | D25: 2 | E25: 1 | F25: SJL 2 | G25: MASS 2
A26: 23 | B26: ='Calendrier BG'!N44 -> STAN 1 | C26: ='Calendrier BG'!O44 -> MASS 1 | D26: 1 | E26: 1 | F26: nul | G26: nul
A27: 24 | B27: ='Calendrier BG'!N45 -> SJL 1 | C27: ='Calendrier BG'!O45 -> FEN 1 | D27: 2 | E27: 1 | F27: SJL 1 | G27: FEN 1
A28: 25 | B28: ='Calendrier BG'!N46 -> STAN 2 | C28: ='Calendrier BG'!O46 -> MASS 2 | D28: 1 | E28: 0 | F28: STAN 2 | G28: MASS 2
A29: 26 | B29: ='Calendrier BG'!N47 -> JBS 1 | C29: ='Calendrier BG'!O47 -> MASS 1 | D29: 0 | E29: 6 | F29: MASS 1 | G29: JBS 1
A30: 27 | B30: ='Calendrier BG'!N48 -> FEN 1 | C30: ='Calendrier BG'!O48 -> SJL 2 | D30: 5 | E30: 1 | F30: FEN 1 | G30: SJL 2
A31: 28 | B31: ='Calendrier BG'!N49 -> SJL 1 | C31: ='Calendrier BG'!O49 -> STAN 1 | D31: 5 | E31: 2 | F31: SJL 1 | G31: STAN 1
A32: 29 | B32: ='Calendrier BG'!N50 -> SJL 1 | C32: ='Calendrier BG'!O50 -> ROC 1 | D32: 1 | E32: 0 | F32: SJL 1 | G32: ROC 1
A33: 30 | B33: ='Calendrier BG'!N51 -> SJL 2 | C33: ='Calendrier BG'!O51 -> ROC 1 | D33: 3 | E33: 0 | F33: SJL 2 | G33: ROC 1
A34: 31 | B34: ='Calendrier BG'!N52 -> STAN 1 | C34: ='Calendrier BG'!O52 -> ROC 1 | D34: 2 | E34: 1 | F34: STAN 1 | G34: ROC 1
A35: 32 | B35: ='Calendrier BG'!N53 -> STAN 2 | C35: ='Calendrier BG'!O53 -> ROC 1 | D35: 1 | E35: 0 | F35: STAN 2 | G35: ROC 1
A36: 33 | B36: ='Calendrier BG'!N54 -> MASS 1 | C36: ='Calendrier BG'!O54 -> ROC 1 | D36: 0 | E36: 0 | F36: nul | G36: nul
A37: 34 | B37: ='Calendrier BG'!N55 -> MASS 2 | C37: ='Calendrier BG'!O55 -> ROC 1 | D37: 0 | E37: 1 | F37: ROC 1 | G37: MASS 2
A38: 35 | B38: ='Calendrier BG'!N56 -> FEN 1 | C38: ='Calendrier BG'!O56 -> ROC 1 | D38: 2 | E38: 0 | F38: FEN 1 | G38: ROC 1
A39: 36 | B39: ='Calendrier BG'!N57 -> JBS 1 | C39: ='Calendrier BG'!O57 -> ROC 1 | D39: 1 | E39: 3 | F39: ROC 1 | G39: JBS 1
A40: 37 | B40: ='Calendrier BG'!N58 -> STAN 1 | C40: ='Calendrier BG'!O58 -> SJL 2 | D40: 2 | E40: 0 | F40: STAN 1 | G40: SJL 2
A41: 38 | B41: ='Calendrier BG'!N59 -> MASS 1 | C41: ='Calendrier BG'!O59 -> SJL 1 | D41: 0 | E41: 4 | F41: SJL 1 | G41: MASS 1
A42: 39 | B42: ='Calendrier BG'!N60 -> STAN 2 | C42: ='Calendrier BG'!O60 -> FEN 1 | D42: 2 | E42: 5 | F42: FEN 1 | G42: STAN 2
A43: 40 | B43: ='Calendrier BG'!N61 -> JBS 1 | C43: ='Calendrier BG'!O61 -> MASS 2 | D43: 6 | E43: 0 | F43: JBS 1 | G43: MASS 2
A44: 41 | B44: ='Calendrier BG'!N62 -> SJL 2 | C44: ='Calendrier BG'!O62 -> SJL 1 | D44: 0 | E44: 4 | F44: SJL 1 | G44: SJL 2
A45: 42 | B45: ='Calendrier BG'!N63 -> STAN 2 | C45: ='Calendrier BG'!O63 -> STAN 1 | D45: 0 | E45: 4 | F45: STAN 1 | G45: STAN 2
A46: 43 | B46: ='Calendrier BG'!N64 -> MASS 2 | C46: ='Calendrier BG'!O64 -> MASS 1 | D46: 0 | E46: 3 | F46: =IF(D46<>"",IF(D46>E46,B46,IF(D46<E46,C46,"nul")),"") -> MASS 1 | G46: =IF(E46<>"",IF(E46<D46,C46,IF(E46>D46,B46,"nul")),"") -> MASS 2
A47: 44 | B47: ='Calendrier BG'!N65 -> FEN 1 | C47: ='Calendrier BG'!O65 -> JBS 1 | D47: 3 | E47: 0 | F47: FEN 1 | G47: JBS 1
A48: 45 | B48: ='Calendrier BG'!N66 -> SJL 1 | C48: ='Calendrier BG'!O66 -> STAN 2 | D48: 5 | E48: 1 | F48: SJL 1 | G48: STAN 2
A49: 46 | B49: ='Calendrier BG'!N67 -> SJL 2 | C49: ='Calendrier BG'!O67 -> MASS 1 | D49: 1 | E49: 6 | F49: MASS 1 | G49: SJL 2
A50: 47 | B50: ='Calendrier BG'!N68 -> STAN 1 | C50: ='Calendrier BG'!O68 -> JBS 1 | D50: 2 | E50: 3 | F50: JBS 1 | G50: STAN 1
A51: 48 | B51: ='Calendrier BG'!N69 -> FEN 1 | C51: ='Calendrier BG'!O69 -> MASS 2 | D51: 2 | E51: 0 | F51: FEN 1 | G51: MASS 2
A52: 49 | B52: ='Calendrier BG'!N70 -> SJL 2 | C52: ='Calendrier BG'!O70 -> STAN 2 | D52: 1 | E52: 0 | F52: SJL 2 | G52: STAN 2
A53: 50 | B53: ='Calendrier BG'!N71 -> SJL 1 | C53: ='Calendrier BG'!O71 -> JBS 1 | D53: 4 | E53: 1 | F53: SJL 1 | G53: JBS 1
A54: 51 | B54: ='Calendrier BG'!N72 -> MASS 1 | C54: ='Calendrier BG'!O72 -> FEN 1 | D54: 5 | E54: 1 | F54: MASS 1 | G54: FEN 1
A55: 52 | B55: ='Calendrier BG'!N73 -> MASS 2 | C55: ='Calendrier BG'!O73 -> STAN 1 | D55: 0 | E55: 6 | F55: STAN 1 | G55: MASS 2
A56: 53 | B56: ='Calendrier BG'!N74 -> JBS 1 | C56: ='Calendrier BG'!O74 -> SJL 2 | D56: 3 | E56: 1 | F56: JBS 1 | G56: SJL 2
A57: 54 | B57: ='Calendrier BG'!N75 -> STAN 2 | C57: ='Calendrier BG'!O75 -> MASS 1 | D57: 0 | E57: 3 | F57: MASS 1 | G57: STAN 2
A58: 55 | B58: ='Calendrier BG'!N76 -> SJL 1 | C58: ='Calendrier BG'!O76 -> MASS 2 | D58: 10 | E58: 0 | F58: SJL 1 | G58: MASS 2
A59: 56 | B59: ='Calendrier BG'!N77 -> FEN 1 | C59: ='Calendrier BG'!O77 -> STAN 1 | D59: 0 | E59: 0 | F59: nul | G59: nul
A60: 57 | B60: ='Calendrier BG'!N78 -> JBS 1 | C60: ='Calendrier BG'!O78 -> STAN 2 | D60: 4 | E60: 0 | F60: JBS 1 | G60: STAN 2
A61: 58 | B61: ='Calendrier BG'!N79 -> MASS 2 | C61: ='Calendrier BG'!O79 -> SJL 2 | D61: 1 | E61: 4 | F61: SJL 2 | G61: MASS 2
A62: 59 | B62: ='Calendrier BG'!N80 -> MASS 1 | C62: ='Calendrier BG'!O80 -> STAN 1 | D62: 1 | E62: 1 | F62: nul | G62: nul
A63: 60 | B63: ='Calendrier BG'!N81 -> FEN 1 | C63: ='Calendrier BG'!O81 -> SJL 1 | D63: 1 | E63: 3 | F63: SJL 1 | G63: FEN 1
A64: 61 | B64: ='Calendrier BG'!N82 -> MASS 2 | C64: ='Calendrier BG'!O82 -> STAN 2 | D64: 0 | E64: 3 | F64: STAN 2 | G64: MASS 2
A65: 62 | B65: ='Calendrier BG'!N83 -> MASS 1 | C65: ='Calendrier BG'!O83 -> JBS 1 | D65: 2 | E65: 2 | F65: nul | G65: nul
A66: 63 | B66: ='Calendrier BG'!N84 -> SJL 2 | C66: ='Calendrier BG'!O84 -> FEN 1 | D66: 1 | E66: 0 | F66: SJL 2 | G66: FEN 1
A67: 64 | B67: ='Calendrier BG'!N85 -> STAN 1 | C67: ='Calendrier BG'!O85 -> SJL 1 | D67: 0 | E67: 2 | F67: =IF(D67<>"",IF(D67>E67,B67,IF(D67<E67,C67,"nul")),"") -> SJL 1 | G67: =IF(E67<>"",IF(E67<D67,C67,IF(E67>D67,B67,"nul")),"") -> STAN 1
A68: 65 | B68: ='Calendrier BG'!N86 -> ROC 1 | C68: ='Calendrier BG'!O86 -> SJL 1 | D68: 0 | E68: 3 | F68: SJL 1 | G68: ROC 1
A69: 66 | B69: ='Calendrier BG'!N87 -> ROC 1 | C69: ='Calendrier BG'!O87 -> SJL 2 | D69: 0 | E69: 0 | F69: nul | G69: nul
A70: 67 | B70: ='Calendrier BG'!N88 -> ROC 1 | C70: ='Calendrier BG'!O88 -> STAN 1 | D70: 0 | E70: 2 | F70: STAN 1 | G70: ROC 1
A71: 68 | B71: ='Calendrier BG'!N89 -> ROC 1 | C71: ='Calendrier BG'!O89 -> STAN 2 | D71: 1 | E71: 1 | F71: nul | G71: nul
A72: 69 | B72: ='Calendrier BG'!N90 -> ROC 1 | C72: ='Calendrier BG'!O90 -> MASS 1 | D72: 0 | E72: 7 | F72: MASS 1 | G72: ROC 1
A73: 70 | B73: ='Calendrier BG'!N91 -> ROC 1 | C73: ='Calendrier BG'!O91 -> MASS 2 | D73: 5 | E73: 0 | F73: ROC 1 | G73: MASS 2
A74: 71 | B74: ='Calendrier BG'!N92 -> ROC 1 | C74: ='Calendrier BG'!O92 -> FEN 1 | D74: 2 | E74: 1 | F74: ROC 1 | G74: FEN 1
A75: 72 | B75: ='Calendrier BG'!N93 -> ROC 1 | C75: ='Calendrier BG'!O93 -> JBS 1 | D75: 1 | E75: 2 | F75: JBS 1 | G75: ROC 1

Sheet Cls B2 et B3
A1: BENJAMINS DIVISION 2 POULE A
A3: N° Match | B3: Match | D3: Scores | F3: Vainqueur | G3: Perdant | J3: SIGLE | K3: Etablissement | L3: Matchs joués | M3: Victoires | N3: Nuls | O3: Défaites | P3: Buts Pour | Q3: Buts Contre | R3: Différence | S3: Points
A4: 73 | B4: ='Calendrier BG'!T22 -> SANO | C4: ='Calendrier BG'!U22 -> STAN 3 | D4: 4 | E4: 1 | F4: =IF(D4<>"",IF(D4>E4,B4,IF(D4<E4,C4,"nul")),"") -> SANO | G4: =IF(E4<>"",IF(E4<D4,C4,IF(E4>D4,B4,"nul")),"") -> STAN 3 | I4: =RANK(T4,$T$4:$T$8) -> 1 | J4: SANO | K4: Saint André Nogent | L4: =COUNT(D4,D6,D9,D11,D14,D16,D19,D21) -> 8 | M4: =COUNTIF($F$3:$F$37,J4) -> 7 | N4: =L4-M4-O4 -> 1 | O4: =COUNTIF(G3:G37,J4) -> 0 | P4: =SUM(D4,E6,D9,E11,E14,D16,E19,D21) -> 31 | Q4: =SUM(E4,D6,E9,D11,D14,E16,D19,E21) -> 3 | R4: =P4-Q4 -> 28 | S4: =M4*4+N4*2+O4*1 -> 30 | T4: =SUM(S4*1000000+R4*10000+P4*100+L4*10) -> 30283180
A5: 74 | B5: ='Calendrier BG'!T23 -> BND | C5: ='Calendrier BG'!U23 -> FEN 2 | D5: 3 | E5: 0 | F5: =IF(D5<>"",IF(D5>E5,B5,IF(D5<E5,C5,"nul")),"") -> BND | G5: =IF(E5<>"",IF(E5<D5,C5,IF(E5>D5,B5,"nul")),"") -> FEN 2 | I5: =RANK(T5,$T$4:$T$8) -> 2 | J5: BND | K5: Bossuet Notre Dame | L5: =COUNT(D4,D7,D10,D13,D14,D17,D20,D23) -> 8 | M5: =COUNTIF($F$3:$F$37,J5) -> 5 | N5: 2 | O5: =COUNTIF(G3:G38,J5) -> 1 | P5: =SUM(E4,D7,D10,E13,D14,E17,E20,D23) -> 16 | Q5: =SUM(D4,E7,E10,D13,E14,D17,D20,E23) -> 18 | R5: =P5-Q5 -> -2 | S5: =M5*4+N5*2+O5*1 -> 25 | T5: =SUM(S5*1000000+R5*10000+P5*100+L5*10) -> 24981680
A6: 75 | B6: ='Calendrier BG'!T24 -> SJL 3 | C6: ='Calendrier BG'!U24 -> SANO | D6: 0 | E6: 3 | F6: SANO | G6: SJL 3 | I6: =RANK(T6,$T$4:$T$8) -> 5 | J6: STAN 3 | K6: Stanislas 3 | L6: =COUNT(D5,D7,D9,D12,D15,D17,D19,D22) -> 8 | M6: =COUNTIF($F$3:$F$37,J6) -> 3 | N6: 1 | O6: =COUNTIF(G3:G39,J6) -> 4 | P6: =SUM(D5,E7,E9,D12,E15,D17,D19,E22) -> 15 | Q6: =SUM(E5,D7,D9,E12,D15,E17,E19,D22) -> 9 | R6: =P6-Q6 -> 6 | S6: 18 | T6: 18061580
A7: 76 | B7: ='Calendrier BG'!T25 -> STAN 3 | C7: ='Calendrier BG'!U25 -> BND | D7: 1 | E7: 2 | F7: BND | G7: STAN 3 | I7: =RANK(T7,$T$4:$T$8) -> 4 | J7: STAN 4 | K7: Stanislas 4 | L7: =COUNT(D5,D8,D11,D13,D15,D18,D21,D23) -> 8 | M7: =COUNTIF($F$3:$F$37,J7) -> 3 | N7: 3 | O7: =COUNTIF(G3:G40,J7) -> 2 | P7: =SUM(E5,E8,D11,D13,D15,D18,E21,E23) -> 8 | Q7: =SUM(D5,D8,E11,E13,E15,E18,D21,D23) -> 26 | R7: -18 | S7: 20 | T7: 19820880
A8: 77 | B8: ='Calendrier BG'!T26 -> SJL 3 | C8: ='Calendrier BG'!U26 -> FEN 2 | D8: 1 | E8: 2 | F8: FEN 2 | G8: SJL 3 | I8: =RANK(T8,$T$4:$T$8) -> 3 | J8: ASVP | K8: Saint Vincent de Paul | L8: =COUNT(D6,D10,D12,D16,D18,D20,D22,D8) -> 8 | M8: =COUNTIF($F$3:$F$37,J8) -> 3 | N8: 5 | O8: =COUNTIF(G3:G41,J8) -> 0 | P8: =SUM(D6,E10,E12,E16,E18,D20,D22,D8) -> 5 | Q8: =SUM(E6,D10,D12,D16,D18,E20,E22,E8) -> 19 | R8: -14 | S8: 22 | T8: 21860580
A9: 78 | B9: ='Calendrier BG'!T27 -> SANO | C9: ='Calendrier BG'!U27 -> BND | D9: 4 | E9: 0 | F9: SANO | G9: BND
A10: 79 | B10: ='Calendrier BG'!T28 -> STAN 3 | C10: ='Calendrier BG'!U28 -> SJL 3 | D10: 4 | E10: 2 | F10: STAN 3 | G10: SJL 3 | I10: Classement | J10: SIGLE | K10: Etablissement | L10: Matchs joués | M10: Victoires | N10: Nuls | O10: Défaites | P10: Buts Pour | Q10: Buts Contre | R10: Différence | S10: Points
A11: 80 | B11: ='Calendrier BG'!T29 -> FEN 2 | C11: ='Calendrier BG'!U29 -> SANO | D11: 0 | E11: 7 | F11: SANO | G11: FEN 2 | I11: 1 | J11: =VLOOKUP($I11,$I$3:$S$8,COLUMNS($J10:J10)+1,FALSE) -> SANO | K11: =VLOOKUP($I11,$I$3:$S$8,COLUMNS($J10:K10)+1,FALSE) -> Saint André Nogent | L11: =VLOOKUP($I11,$I$3:$S$8,COLUMNS($J10:L10)+1,FALSE) -> 8 | M11: =VLOOKUP($I11,$I$3:$S$8,COLUMNS($J10:M10)+1,FALSE) -> 7 | N11: =VLOOKUP($I11,$I$3:$S$8,COLUMNS($J10:N10)+1,FALSE) -> 1 | O11: =VLOOKUP($I11,$I$3:$S$8,COLUMNS($J10:O10)+1,FALSE) -> 0 | P11: =VLOOKUP($I11,$I$3:$S$8,COLUMNS($J10:P10)+1,FALSE) -> 31 | Q11: =VLOOKUP($I11,$I$3:$S$8,COLUMNS($J10:Q10)+1,FALSE) -> 3 | R11: =VLOOKUP($I11,$I$3:$S$8,COLUMNS($J10:R10)+1,FALSE) -> 28 | S11: =VLOOKUP($I11,$I$3:$S$8,COLUMNS($J10:S10)+1,FALSE) -> 30
A12: 81 | B12: ='Calendrier BG'!T30 -> BND | C12: ='Calendrier BG'!U30 -> SJL 3 | D12: 2 | E12: 0 | F12: BND | G12: SJL 3 | I12: 2 | J12: =VLOOKUP($I12,$I$3:$S$8,COLUMNS($J11:J11)+1,FALSE) -> BND | K12: =VLOOKUP($I12,$I$3:$S$8,COLUMNS($J11:K11)+1,FALSE) -> Bossuet Notre Dame | L12: =VLOOKUP($I12,$I$3:$S$8,COLUMNS($J11:L11)+1,FALSE) -> 8 | M12: =VLOOKUP($I12,$I$3:$S$8,COLUMNS($J11:M11)+1,FALSE) -> 5 | N12: =VLOOKUP($I12,$I$3:$S$8,COLUMNS($J11:N11)+1,FALSE) -> 2 | O12: =VLOOKUP($I12,$I$3:$S$8,COLUMNS($J11:O11)+1,FALSE) -> 1 | P12: =VLOOKUP($I12,$I$3:$S$8,COLUMNS($J11:P11)+1,FALSE) -> 16 | Q12: =VLOOKUP($I12,$I$3:$S$8,COLUMNS($J11:Q11)+1,FALSE) -> 18 | R12: =VLOOKUP($I12,$I$3:$S$8,COLUMNS($J11:R11)+1,FALSE) -> -2 | S12: =VLOOKUP($I12,$I$3:$S$8,COLUMNS($J11:S11)+1,FALSE) -> 25
A13: 82 | B13: ='Calendrier BG'!T31 -> FEN 2 | C13: ='Calendrier BG'!U31 -> STAN 3 | D13: 3 | E13: 3 | F13: nul | G13: nul | I13: 3 | J13: =VLOOKUP($I13,$I$3:$S$8,COLUMNS($J12:J12)+1,FALSE) -> ASVP | K13: =VLOOKUP($I13,$I$3:$S$8,COLUMNS($J12:K12)+1,FALSE) -> Saint Vincent de Paul | L13: =VLOOKUP($I13,$I$3:$S$8,COLUMNS($J12:L12)+1,FALSE) -> 8 | M13: =VLOOKUP($I13,$I$3:$S$8,COLUMNS($J12:M12)+1,FALSE) -> 3 | N13: =VLOOKUP($I13,$I$3:$S$8,COLUMNS($J12:N12)+1,FALSE) -> 5 | O13: =VLOOKUP($I13,$I$3:$S$8,COLUMNS($J12:O12)+1,FALSE) -> 0 | P13: =VLOOKUP($I13,$I$3:$S$8,COLUMNS($J12:P12)+1,FALSE) -> 5 | Q13: =VLOOKUP($I13,$I$3:$S$8,COLUMNS($J12:Q12)+1,FALSE) -> 19 | R13: =VLOOKUP($I13,$I$3:$S$8,COLUMNS($J12:R12)+1,FALSE) -> -14 | S13: =VLOOKUP($I13,$I$3:$S$8,COLUMNS($J12:S12)+1,FALSE) -> 22
A14: 83 | B14: ='Calendrier BG'!T32 -> STAN 3 | C14: ='Calendrier BG'!U32 -> SANO | D14: 1 | E14: 3 | F14: SANO | G14: STAN 3 | I14: 4 | J14: =VLOOKUP($I14,$I$3:$S$8,COLUMNS($J13:J13)+1,FALSE) -> STAN 4 | K14: =VLOOKUP($I14,$I$3:$S$8,COLUMNS($J13:K13)+1,FALSE) -> Stanislas 4 | L14: =VLOOKUP($I14,$I$3:$S$8,COLUMNS($J13:L13)+1,FALSE) -> 8 | M14: =VLOOKUP($I14,$I$3:$S$8,COLUMNS($J13:M13)+1,FALSE) -> 3 | N14: =VLOOKUP($I14,$I$3:$S$8,COLUMNS($J13:N13)+1,FALSE) -> 3 | O14: =VLOOKUP($I14,$I$3:$S$8,COLUMNS($J13:O13)+1,FALSE) -> 2 | P14: =VLOOKUP($I14,$I$3:$S$8,COLUMNS($J13:P13)+1,FALSE) -> 8 | Q14: =VLOOKUP($I14,$I$3:$S$8,COLUMNS($J13:Q13)+1,FALSE) -> 26 | R14: =VLOOKUP($I14,$I$3:$S$8,COLUMNS($J13:R13)+1,FALSE) -> -18 | S14: =VLOOKUP($I14,$I$3:$S$8,COLUMNS($J13:S13)+1,FALSE) -> 20
A15: 84 | B15: ='Calendrier BG'!T33 -> FEN 2 | C15: ='Calendrier BG'!U33 -> BND | D15: 1 | E15: 1 | F15: nul | G15: nul | I15: 5 | J15: =VLOOKUP($I15,$I$3:$S$8,COLUMNS($J14:J14)+1,FALSE) -> STAN 3 | K15: =VLOOKUP($I15,$I$3:$S$8,COLUMNS($J14:K14)+1,FALSE) -> Stanislas 3 | L15: =VLOOKUP($I15,$I$3:$S$8,COLUMNS($J14:L14)+1,FALSE) -> 8 | M15: =VLOOKUP($I15,$I$3:$S$8,COLUMNS($J14:M14)+1,FALSE) -> 3 | N15: =VLOOKUP($I15,$I$3:$S$8,COLUMNS($J14:N14)+1,FALSE) -> 1 | O15: =VLOOKUP($I15,$I$3:$S$8,COLUMNS($J14:O14)+1,FALSE) -> 4 | P15: =VLOOKUP($I15,$I$3:$S$8,COLUMNS($J14:P14)+1,FALSE) -> 15 | Q15: =VLOOKUP($I15,$I$3:$S$8,COLUMNS($J14:Q14)+1,FALSE) -> 9 | R15: =VLOOKUP($I15,$I$3:$S$8,COLUMNS($J14:R14)+1,FALSE) -> 6 | S15: =VLOOKUP($I15,$I$3:$S$8,COLUMNS($J14:S14)+1,FALSE) -> 18
A16: 85 | B16: ='Calendrier BG'!T34 -> SANO | C16: ='Calendrier BG'!U34 -> SJL 3 | D16: 3 | E16: 0 | F16: SANO | G16: SJL 3
A17: 86 | B17: ='Calendrier BG'!T35 -> BND | C17: ='Calendrier BG'!U35 -> STAN 3 | D17: 4 | E17: 1 | F17: BND | G17: STAN 3
A18: 87 | B18: ='Calendrier BG'!T36 -> FEN 2 | C18: ='Calendrier BG'!U36 -> SJL 3 | D18: 2 | E18: 1 | F18: FEN 2 | G18: SJL 3
A19: 88 | B19: ='Calendrier BG'!T37 -> BND | C19: ='Calendrier BG'!U37 -> SANO | D19: 1 | E19: 1 | F19: nul | G19: nul
A20: 89 | B20: ='Calendrier BG'!T38 -> SJL 3 | C20: ='Calendrier BG'!U38 -> STAN 3 | D20: 0 | E20: 1 | F20: STAN 3 | G20: SJL 3
A21: 90 | B21: ='Calendrier BG'!T39 -> SANO | C21: ='Calendrier BG'!U39 -> FEN 2 | D21: 6 | E21: 0 | F21: SANO | G21: FEN 2
A22: 91 | B22: ='Calendrier BG'!T40 -> SJL 3 | C22: ='Calendrier BG'!U40 -> BND | D22: 1 | E22: 2 | F22: BND | G22: SJL 3
A23: 92 | B23: ='Calendrier BG'!T41 -> STAN 3 | C23: ='Calendrier BG'!U41 -> FEN 2 | D23: 4 | E23: 0 | F23: STAN 3 | G23: FEN 2
A26: BENJAMINS DIVISION 2 POULE B
A28: N° Match | B28: Match | D28: Scores | F28: Vainqueur | G28: Perdant | J28: SIGLE | K28: Etablissement | L28: Matchs joués | M28: Victoires | N28: Nuls | O28: Défaites | P28: Buts Pour | Q28: Buts Contre | R28: Différence | S28: Points
A29: 93 | B29: ='Calendrier BG'!Z22 -> STAN 4 | C29: ='Calendrier BG'!AA22 -> ASVP | D29: 0 | E29: 2 | F29: =IF(D29<>"",IF(D29>E29,B29,IF(D29<E29,C29,"nul")),"") -> ASVP | G29: =IF(E29<>"",IF(E29<D29,C29,IF(E29>D29,B29,"nul")),"") -> STAN 4 | I29: =RANK(T29,$T$29:$T$33) -> 2 | J29: SJL 3 | K29: Saint Justin Levallois 3 | L29: =COUNT(D29,D31,D34,D36,D39,D41,D44,D46) -> 8 | M29: =COUNTIF($F$29:$F$48,J29) -> 0 | N29: =L29-M29-O29 -> 8 | O29: =COUNTIF(G28:G48,J29) -> 0 | P29: =SUM(D29,E31,D34,E36,E39,D41,E44,D46) -> 20 | Q29: =SUM(E29,D31,E34,D36,D39,E41,D44,E46) -> 11 | R29: =P29-Q29 -> 9 | S29: =M29*4+N29*2+O29*1 -> 16 | T29: =SUM(S29*1000000+R29*10000+P29*100+L29*10) -> 16092080
A30: 94 | B30: ='Calendrier BG'!Z23 -> FEN 3 | C30: ='Calendrier BG'!AA23 -> JBS 2 | D30: 2 | E30: 2 | F30: =IF(D30<>"",IF(D30>E30,B30,IF(D30<E30,C30,"nul")),"") -> nul | G30: =IF(E30<>"",IF(E30<D30,C30,IF(E30>D30,B30,"nul")),"") -> nul | I30: =RANK(T30,$T$29:$T$35) -> 1 | J30: FEN 2 | K30: Fénelon Ste Marie 2 | L30: =COUNT(D29,D32,D35,D38,D39,D42,D45,D48) -> 8 | M30: =COUNTIF($F$29:$F$48,J30) -> 0 | N30: =L30-M30-O30 -> 8 | O30: =COUNTIF(G29:G49,J30) -> 0 | P30: =SUM(E29,D32,D35,E38,D39,E42,E45,D48) -> 18 | Q30: =SUM(D29,E32,E35,D38,E39,D42,D45,E48) -> 1 | R30: =P30-Q30 -> 17 | S30: =M30*4+N30*2+O30*1 -> 16 | T30: =SUM(S30*1000000+R30*10000+P30*100+L30*10) -> 16171880
A31: 95 | B31: ='Calendrier BG'!Z24 -> ROC 2 | C31: ='Calendrier BG'!AA24 -> STAN 4 | D31: 3 | E31: 6 | F31: STAN 4 | G31: ROC 2 | I31: =RANK(T31,$T$29:$T$35) -> 4 | J31: FEN 3 | K31: Fénelon Ste Marie 3 | L31: =COUNT(D30,D32,D34,D37,D40,D42,D44,D47) -> 8 | M31: 1 | N31: 3 | O31: 4 | P31: =SUM(D30,E32,E34,D37,E40,D42,D44,E47) -> 10 | Q31: =SUM(E30,D32,D34,E37,D40,E42,E44,D47) -> 14 | R31: =P31-Q31 -> -4 | S31: 14 | T31: 13961080
A32: 96 | B32: ='Calendrier BG'!Z25 -> ASVP | C32: ='Calendrier BG'!AA25 -> FEN 3 | D32: 3 | E32: 0 | F32: ASVP | G32: FEN 3 | I32: =RANK(T32,$T$29:$T$35) -> 3 | J32: JBS 2 | K32: Jean Baptiste La Salle 2 | L32: =COUNT(D30,D33,D36,D38,D40,D43,D46,D48) -> 8 | M32: 2 | N32: 1 | O32: 5 | P32: =SUM(E30,E33,D36,D38,D40,D43,E46,E48) -> 12 | Q32: =SUM(D30,D33,E36,E38,E40,E43,D46,D48) -> 22 | R32: =P32-Q32 -> -10 | S32: 15 | T32: 14901280
A33: 97 | B33: ='Calendrier BG'!Z26 -> ROC 2 | C33: ='Calendrier BG'!AA26 -> JBS 2 | D33: 4 | E33: 0 | F33: ROC 2 | G33: JBS 2 | I33: =RANK(T33,$T$29:$T$35) -> 5 | J33: ROC 2 | K33: Rocroy 2 | L33: =COUNT(D31,D35,D37,D41,D43,D45,D47,D33) -> 8 | M33: 1 | N33: 2 | O33: 5 | P33: =SUM(D31,E35,E37,E41,E43,D45,D47,D33) -> 8 | Q33: =SUM(E31,D35,D37,D41,D43,E45,E47,E33) -> 20 | R33: -12 | S33: 13 | T33: 12880880
A34: 98 | B34: ='Calendrier BG'!Z27 -> STAN 4 | C34: ='Calendrier BG'!AA27 -> FEN 3 | D34: 2 | E34: 0 | F34: STAN 4 | G34: FEN 3
A35: 99 | B35: ='Calendrier BG'!Z28 -> ASVP | C35: ='Calendrier BG'!AA28 -> ROC 2 | D35: 1 | E35: 0 | F35: ASVP | G35: ROC 2 | I35: Classement | J35: SIGLE | K35: Etablissement | L35: Matchs joués | M35: Victoires | N35: Nuls | O35: Défaites | P35: Buts Pour | Q35: Buts Contre | R35: Différence | S35: Points
A36: 100 | B36: ='Calendrier BG'!Z29 -> JBS 2 | C36: ='Calendrier BG'!AA29 -> STAN 4 | D36: 2 | E36: 5 | F36: STAN 4 | G36: JBS 2 | I36: 1 | J36: =VLOOKUP($I36,$I$28:$S$33,COLUMNS($J35:J35)+1,FALSE) -> FEN 2 | K36: =VLOOKUP($I36,$I$28:$S$33,COLUMNS($J35:K35)+1,FALSE) -> Fénelon Ste Marie 2 | L36: =VLOOKUP($I36,$I$28:$S$33,COLUMNS($J35:L35)+1,FALSE) -> 8 | M36: =VLOOKUP($I36,$I$28:$S$33,COLUMNS($J35:M35)+1,FALSE) -> 0 | N36: =VLOOKUP($I36,$I$28:$S$33,COLUMNS($J35:N35)+1,FALSE) -> 8 | O36: =VLOOKUP($I36,$I$28:$S$33,COLUMNS($J35:O35)+1,FALSE) -> 0 | P36: =VLOOKUP($I36,$I$28:$S$33,COLUMNS($J35:P35)+1,FALSE) -> 18 | Q36: =VLOOKUP($I36,$I$28:$S$33,COLUMNS($J35:Q35)+1,FALSE) -> 1 | R36: =VLOOKUP($I36,$I$28:$S$33,COLUMNS($J35:R35)+1,FALSE) -> 17 | S36: =VLOOKUP($I36,$I$28:$S$33,COLUMNS($J35:S35)+1,FALSE) -> 16
A37: 101 | B37: ='Calendrier BG'!Z30 -> FEN 3 | C37: ='Calendrier BG'!AA30 -> ROC 2 | D37: 1 | E37: 1 | F37: nul | G37: nul | I37: 2 | J37: =VLOOKUP($I37,$I$28:$S$33,COLUMNS($J36:J36)+1,FALSE) -> SJL 3 | K37: =VLOOKUP($I37,$I$28:$S$33,COLUMNS($J36:K36)+1,FALSE) -> Saint Justin Levallois 3 | L37: =VLOOKUP($I37,$I$28:$S$33,COLUMNS($J36:L36)+1,FALSE) -> 8 | M37: =VLOOKUP($I37,$I$28:$S$33,COLUMNS($J36:M36)+1,FALSE) -> 0 | N37: =VLOOKUP($I37,$I$28:$S$33,COLUMNS($J36:N36)+1,FALSE) -> 8 | O37: =VLOOKUP($I37,$I$28:$S$33,COLUMNS($J36:O36)+1,FALSE) -> 0 | P37: =VLOOKUP($I37,$I$28:$S$33,COLUMNS($J36:P36)+1,FALSE) -> 20 | Q37: =VLOOKUP($I37,$I$28:$S$33,COLUMNS($J36:Q36)+1,FALSE) -> 11 | R37: =VLOOKUP($I37,$I$28:$S$33,COLUMNS($J36:R36)+1,FALSE) -> 9 | S37: =VLOOKUP($I37,$I$28:$S$33,COLUMNS($J36:S36)+1,FALSE) -> 16
A38: 102 | B38: ='Calendrier BG'!Z31 -> JBS 2 | C38: ='Calendrier BG'!AA31 -> ASVP | D38: 0 | E38: 4 | F38: ASVP | G38: JBS 2 | I38: 3 | J38: =VLOOKUP($I38,$I$28:$S$33,COLUMNS($J37:J37)+1,FALSE) -> JBS 2 | K38: =VLOOKUP($I38,$I$28:$S$33,COLUMNS($J37:K37)+1,FALSE) -> Jean Baptiste La Salle 2 | L38: =VLOOKUP($I38,$I$28:$S$33,COLUMNS($J37:L37)+1,FALSE) -> 8 | M38: =VLOOKUP($I38,$I$28:$S$33,COLUMNS($J37:M37)+1,FALSE) -> 2 | N38: =VLOOKUP($I38,$I$28:$S$33,COLUMNS($J37:N37)+1,FALSE) -> 1 | O38: =VLOOKUP($I38,$I$28:$S$33,COLUMNS($J37:O37)+1,FALSE) -> 5 | P38: =VLOOKUP($I38,$I$28:$S$33,COLUMNS($J37:P37)+1,FALSE) -> 12 | Q38: =VLOOKUP($I38,$I$28:$S$33,COLUMNS($J37:Q37)+1,FALSE) -> 22 | R38: =VLOOKUP($I38,$I$28:$S$33,COLUMNS($J37:R37)+1,FALSE) -> -10 | S38: =VLOOKUP($I38,$I$28:$S$33,COLUMNS($J37:S37)+1,FALSE) -> 15
A39: 103 | B39: ='Calendrier BG'!Z32 -> ASVP | C39: ='Calendrier BG'!AA32 -> STAN 4 | D39: 2 | E39: 0 | F39: ASVP | G39: STAN 4 | I39: 4 | J39: =VLOOKUP($I39,$I$28:$S$33,COLUMNS($J38:J38)+1,FALSE) -> FEN 3 | K39: =VLOOKUP($I39,$I$28:$S$33,COLUMNS($J38:K38)+1,FALSE) -> Fénelon Ste Marie 3 | L39: =VLOOKUP($I39,$I$28:$S$33,COLUMNS($J38:L38)+1,FALSE) -> 8 | M39: =VLOOKUP($I39,$I$28:$S$33,COLUMNS($J38:M38)+1,FALSE) -> 1 | N39: =VLOOKUP($I39,$I$28:$S$33,COLUMNS($J38:N38)+1,FALSE) -> 3 | O39: =VLOOKUP($I39,$I$28:$S$33,COLUMNS($J38:O38)+1,FALSE) -> 4 | P39: =VLOOKUP($I39,$I$28:$S$33,COLUMNS($J38:P38)+1,FALSE) -> 10 | Q39: =VLOOKUP($I39,$I$28:$S$33,COLUMNS($J38:Q38)+1,FALSE) -> 14 | R39: =VLOOKUP($I39,$I$28:$S$33,COLUMNS($J38:R38)+1,FALSE) -> -4 | S39: =VLOOKUP($I39,$I$28:$S$33,COLUMNS($J38:S38)+1,FALSE) -> 14
A40: 104 | B40: ='Calendrier BG'!Z33 -> JBS 2 | C40: ='Calendrier BG'!AA33 -> FEN 3 | D40: 2 | E40: 1 | F40: JBS 2 | G40: FEN 3 | I40: 5 | J40: =VLOOKUP($I40,$I$28:$S$33,COLUMNS($J39:J39)+1,FALSE) -> ROC 2 | K40: =VLOOKUP($I40,$I$28:$S$33,COLUMNS($J39:K39)+1,FALSE) -> Rocroy 2 | L40: =VLOOKUP($I40,$I$28:$S$33,COLUMNS($J39:L39)+1,FALSE) -> 8 | M40: =VLOOKUP($I40,$I$28:$S$33,COLUMNS($J39:M39)+1,FALSE) -> 1 | N40: =VLOOKUP($I40,$I$28:$S$33,COLUMNS($J39:N39)+1,FALSE) -> 2 | O40: =VLOOKUP($I40,$I$28:$S$33,COLUMNS($J39:O39)+1,FALSE) -> 5 | P40: =VLOOKUP($I40,$I$28:$S$33,COLUMNS($J39:P39)+1,FALSE) -> 8 | Q40: =VLOOKUP($I40,$I$28:$S$33,COLUMNS($J39:Q39)+1,FALSE) -> 20 | R40: =VLOOKUP($I40,$I$28:$S$33,COLUMNS($J39:R39)+1,FALSE) -> -12 | S40: =VLOOKUP($I40,$I$28:$S$33,COLUMNS($J39:S39)+1,FALSE) -> 13
A41: 105 | B41: ='Calendrier BG'!Z34 -> STAN 4 | C41: ='Calendrier BG'!AA34 -> ROC 2 | D41: 2 | E41: 0 | F41: STAN 4 | G41: ROC 2
A42: 106 | B42: ='Calendrier BG'!Z35 -> FEN 3 | C42: ='Calendrier BG'!AA35 -> ASVP | D42: 1 | E42: 4 | F42: ASVP | G42: FEN 3
A43: 107 | B43: ='Calendrier BG'!Z36 -> JBS 2 | C43: ='Calendrier BG'!AA36 -> ROC 2 | D43: 4 | E43: 0 | F43: JBS 2 | G43: ROC 2
A44: 108 | B44: ='Calendrier BG'!Z37 -> FEN 3 | C44: ='Calendrier BG'!AA37 -> STAN 4 | D44: 0 | E44: 0 | F44: nul | G44: nul
A45: 109 | B45: ='Calendrier BG'!Z38 -> ROC 2 | C45: ='Calendrier BG'!AA38 -> ASVP | D45: 0 | E45: 1 | F45: ASVP | G45: ROC 2
A46: 110 | B46: ='Calendrier BG'!Z39 -> STAN 4 | C46: ='Calendrier BG'!AA39 -> JBS 2 | D46: 5 | E46: 2 | F46: STAN 4 | G46: JBS 2
A47: 111 | B47: ='Calendrier BG'!Z40 -> ROC 2 | C47: ='Calendrier BG'!AA40 -> FEN 3 | D47: 0 | E47: 5 | F47: FEN 3 | G47: ROC 2
A48: 112 | B48: ='Calendrier BG'!Z41 -> ASVP | C48: ='Calendrier BG'!AA41 -> JBS 2 | D48: 1 | E48: 0 | F48: ASVP | G48: JBS 2
A49: PROMOTION / RELEGUATION
A52: BENJAMINS DIVISION 2
A54: N° Match | B54: Match | D54: Scores | F54: Vainqueur | G54: Perdant | J54: SIGLE | K54: Etablissement | L54: Matchs joués | M54: Victoires | N54: Nuls | O54: Défaites | P54: Buts Pour | Q54: Buts Contre | R54: Différence | S54: Points
A55: 113 | B55: ='Calendrier BG'!T22 -> SANO | C55: ='Calendrier BG'!U22 -> STAN 3 | D55: 7 | E55: 1 | F55: =IF(D55<>"",IF(D55>E55,B55,IF(D55<E55,C55,"nul")),"") -> SANO | G55: =IF(E55<>"",IF(E55<D55,C55,IF(E55>D55,B55,"nul")),"") -> STAN 3 | I55: =RANK(T55,$T$55:$T$59) -> 1 | J55: SANO | K55: Saint André Nogent | L55: =COUNT(D55,D57,D60,D62,D65,D67,D70,D72) -> 8 | M55: =COUNTIF($F$54:$F$74,J55) -> 7 | N55: =L55-M55-O55 -> 0 | O55: =COUNTIF($G$54:$G$74,J55) -> 1 | P55: =SUM(D55,E57,D60,E62,E65,D67,E70,D72) -> 29 | Q55: =SUM(E55,D57,E60,D62,D65,E67,D70,E72) -> 4 | R55: =P55-Q55 -> 25 | S55: =M55*4+N55*2+O55*1 -> 29 | T55: =SUM(S55*1000000+R55*10000+P55*100+L55*10) -> 29252980
A56: 114 | B56: ='Calendrier BG'!T23 -> BND | C56: ='Calendrier BG'!U23 -> FEN 2 | D56: 0 | E56: 2 | F56: =IF(D56<>"",IF(D56>E56,B56,IF(D56<E56,C56,"nul")),"") -> FEN 2 | G56: =IF(E56<>"",IF(E56<D56,C56,IF(E56>D56,B56,"nul")),"") -> BND | I56: =RANK(T56,$T$55:$T$59) -> 5 | J56: STAN 3 | K56: Stanislas 3 | L56: =COUNT(D55,D58,D61,D64,D65,D68,D71,D74) -> 8 | M56: =COUNTIF($F$54:$F$74,J56) -> 1 | N56: 0 | O56: =COUNTIF($G$54:$G$74,J56) -> 7 | P56: =SUM(E55,D58,D61,E64,D65,E68,E71,D74) -> 5 | Q56: =SUM(D55,E58,E61,D64,E65,D68,D71,E74) -> 27 | R56: =P56-Q56 -> -22 | S56: =M56*4+N56*2+O56*1 -> 11 | T56: =SUM(S56*1000000+R56*10000+P56*100+L56*10) -> 10780580
A57: 115 | B57: ='Calendrier BG'!T24 -> SJL 3 | C57: ='Calendrier BG'!U24 -> SANO | D57: 0 | E57: 2 | F57: SANO | G57: SJL 3 | I57: 3 | J57: BND | K57: Bossuet Notre Dame | L57: =COUNT(D56,D58,D60,D63,D66,D68,D70,D73) -> 8 | M57: 2 | N57: 1 | O57: 5 | P57: =SUM(D56,E58,E60,D63,E66,D68,D70,E73) -> 7 | Q57: =SUM(E56,D58,D60,E63,D66,E68,E70,D73) -> 13 | R57: =P57-Q57 -> -6 | S57: 15 | T57: 14940780
A58: 116 | B58: ='Calendrier BG'!T25 -> STAN 3 | C58: ='Calendrier BG'!U25 -> BND | D58: 0 | E58: 3 | F58: BND | G58: STAN 3 | I58: 2 | J58: FEN 2 | K58: Fénelon Ste Marie 2 | L58: =COUNT(D56,D59,D62,D64,D66,D69,D72,D74) -> 8 | M58: 7 | N58: 0 | O58: 1 | P58: =SUM(E56,E59,D62,D64,D66,D69,E72,E74) -> 15 | Q58: =SUM(D56,D59,E62,E64,E66,E69,D72,D74) -> 2 | R58: =P58-Q58 -> 13 | S58: 29 | T58: 29131580
A59: 117 | B59: ='Calendrier BG'!T26 -> SJL 3 | C59: ='Calendrier BG'!U26 -> FEN 2 | D59: 0 | E59: 4 | F59: FEN 2 | G59: SJL 3 | I59: 4 | J59: SJL 3 | K59: Saint Justin Levallois 3 | L59: =COUNT(D57,D61,D63,D67,D69,D71,D73,D59) -> 8 | M59: 2 | N59: 1 | O59: 5 | P59: =SUM(D57,E61,E63,E67,E69,D71,D73,D59) -> 5 | Q59: =SUM(E57,D61,D63,D67,D69,E71,E73,E59) -> 15 | R59: -10 | S59: 15 | T59: 14900580
A60: 118 | B60: ='Calendrier BG'!T27 -> SANO | C60: ='Calendrier BG'!U27 -> BND | D60: 2 | E60: 1 | F60: SANO | G60: BND
A61: 119 | B61: ='Calendrier BG'!T28 -> STAN 3 | C61: ='Calendrier BG'!U28 -> SJL 3 | D61: 1 | E61: 0 | F61: STAN 3 | G61: SJL 3 | I61: Classement | J61: SIGLE | K61: Etablissement | L61: Matchs joués | M61: Victoires | N61: Nuls | O61: Défaites | P61: Buts Pour | Q61: Buts Contre | R61: Différence | S61: Points
A62: 120 | B62: ='Calendrier BG'!T29 -> FEN 2 | C62: ='Calendrier BG'!U29 -> SANO | D62: 1 | E62: 0 | F62: FEN 2 | G62: SANO | I62: 1 | J62: =VLOOKUP($I62,$I$54:$S$59,COLUMNS($J61:J61)+1,FALSE) -> SANO | K62: =VLOOKUP($I62,$I$54:$S$59,COLUMNS($J61:K61)+1,FALSE) -> Saint André Nogent | L62: =VLOOKUP($I62,$I$54:$S$59,COLUMNS($J61:L61)+1,FALSE) -> 8 | M62: =VLOOKUP($I62,$I$54:$S$59,COLUMNS($J61:M61)+1,FALSE) -> 7 | N62: =VLOOKUP($I62,$I$54:$S$59,COLUMNS($J61:N61)+1,FALSE) -> 0 | O62: =VLOOKUP($I62,$I$54:$S$59,COLUMNS($J61:O61)+1,FALSE) -> 1 | P62: =VLOOKUP($I62,$I$54:$S$59,COLUMNS($J61:P61)+1,FALSE) -> 29 | Q62: =VLOOKUP($I62,$I$54:$S$59,COLUMNS($J61:Q61)+1,FALSE) -> 4 | R62: =VLOOKUP($I62,$I$54:$S$59,COLUMNS($J61:R61)+1,FALSE) -> 25 | S62: =VLOOKUP($I62,$I$54:$S$59,COLUMNS($J61:S61)+1,FALSE) -> 29
A63: 121 | B63: ='Calendrier BG'!T30 -> BND | C63: ='Calendrier BG'!U30 -> SJL 3 | D63: 0 | E63: 0 | F63: nul | G63: nul | I63: 2 | J63: =VLOOKUP($I63,$I$54:$S$59,COLUMNS($J62:J62)+1,FALSE) -> FEN 2 | K63: =VLOOKUP($I63,$I$54:$S$59,COLUMNS($J62:K62)+1,FALSE) -> Fénelon Ste Marie 2 | L63: =VLOOKUP($I63,$I$54:$S$59,COLUMNS($J62:L62)+1,FALSE) -> 8 | M63: =VLOOKUP($I63,$I$54:$S$59,COLUMNS($J62:M62)+1,FALSE) -> 7 | N63: =VLOOKUP($I63,$I$54:$S$59,COLUMNS($J62:N62)+1,FALSE) -> 0 | O63: =VLOOKUP($I63,$I$54:$S$59,COLUMNS($J62:O62)+1,FALSE) -> 1 | P63: =VLOOKUP($I63,$I$54:$S$59,COLUMNS($J62:P62)+1,FALSE) -> 15 | Q63: =VLOOKUP($I63,$I$54:$S$59,COLUMNS($J62:Q62)+1,FALSE) -> 2 | R63: =VLOOKUP($I63,$I$54:$S$59,COLUMNS($J62:R62)+1,FALSE) -> 13 | S63: =VLOOKUP($I63,$I$54:$S$59,COLUMNS($J62:S62)+1,FALSE) -> 29
A64: 122 | B64: ='Calendrier BG'!T31 -> FEN 2 | C64: ='Calendrier BG'!U31 -> STAN 3 | D64: 4 | E64: 1 | F64: FEN 2 | G64: STAN 3 | I64: 3 | J64: =VLOOKUP($I64,$I$54:$S$59,COLUMNS($J63:J63)+1,FALSE) -> BND | K64: =VLOOKUP($I64,$I$54:$S$59,COLUMNS($J63:K63)+1,FALSE) -> Bossuet Notre Dame | L64: =VLOOKUP($I64,$I$54:$S$59,COLUMNS($J63:L63)+1,FALSE) -> 8 | M64: =VLOOKUP($I64,$I$54:$S$59,COLUMNS($J63:M63)+1,FALSE) -> 2 | N64: =VLOOKUP($I64,$I$54:$S$59,COLUMNS($J63:N63)+1,FALSE) -> 1 | O64: =VLOOKUP($I64,$I$54:$S$59,COLUMNS($J63:O63)+1,FALSE) -> 5 | P64: =VLOOKUP($I64,$I$54:$S$59,COLUMNS($J63:P63)+1,FALSE) -> 7 | Q64: =VLOOKUP($I64,$I$54:$S$59,COLUMNS($J63:Q63)+1,FALSE) -> 13 | R64: =VLOOKUP($I64,$I$54:$S$59,COLUMNS($J63:R63)+1,FALSE) -> -6 | S64: =VLOOKUP($I64,$I$54:$S$59,COLUMNS($J63:S63)+1,FALSE) -> 15
A65: 123 | B65: ='Calendrier BG'!T32 -> STAN 3 | C65: ='Calendrier BG'!U32 -> SANO | D65: 1 | E65: 7 | F65: SANO | G65: STAN 3 | I65: 4 | J65: =VLOOKUP($I65,$I$54:$S$59,COLUMNS($J64:J64)+1,FALSE) -> SJL 3 | K65: =VLOOKUP($I65,$I$54:$S$59,COLUMNS($J64:K64)+1,FALSE) -> Saint Justin Levallois 3 | L65: =VLOOKUP($I65,$I$54:$S$59,COLUMNS($J64:L64)+1,FALSE) -> 8 | M65: =VLOOKUP($I65,$I$54:$S$59,COLUMNS($J64:M64)+1,FALSE) -> 2 | N65: =VLOOKUP($I65,$I$54:$S$59,COLUMNS($J64:N64)+1,FALSE) -> 1 | O65: =VLOOKUP($I65,$I$54:$S$59,COLUMNS($J64:O64)+1,FALSE) -> 5 | P65: =VLOOKUP($I65,$I$54:$S$59,COLUMNS($J64:P64)+1,FALSE) -> 5 | Q65: =VLOOKUP($I65,$I$54:$S$59,COLUMNS($J64:Q64)+1,FALSE) -> 15 | R65: =VLOOKUP($I65,$I$54:$S$59,COLUMNS($J64:R64)+1,FALSE) -> -10 | S65: =VLOOKUP($I65,$I$54:$S$59,COLUMNS($J64:S64)+1,FALSE) -> 15
A66: 124 | B66: ='Calendrier BG'!T33 -> FEN 2 | C66: ='Calendrier BG'!U33 -> BND | D66: 2 | E66: 0 | F66: FEN 2 | G66: BND | I66: 5 | J66: =VLOOKUP($I66,$I$54:$S$59,COLUMNS($J65:J65)+1,FALSE) -> STAN 3 | K66: =VLOOKUP($I66,$I$54:$S$59,COLUMNS($J65:K65)+1,FALSE) -> Stanislas 3 | L66: =VLOOKUP($I66,$I$54:$S$59,COLUMNS($J65:L65)+1,FALSE) -> 8 | M66: =VLOOKUP($I66,$I$54:$S$59,COLUMNS($J65:M65)+1,FALSE) -> 1 | N66: =VLOOKUP($I66,$I$54:$S$59,COLUMNS($J65:N65)+1,FALSE) -> 0 | O66: =VLOOKUP($I66,$I$54:$S$59,COLUMNS($J65:O65)+1,FALSE) -> 7 | P66: =VLOOKUP($I66,$I$54:$S$59,COLUMNS($J65:P65)+1,FALSE) -> 5 | Q66: =VLOOKUP($I66,$I$54:$S$59,COLUMNS($J65:Q65)+1,FALSE) -> 27 | R66: =VLOOKUP($I66,$I$54:$S$59,COLUMNS($J65:R65)+1,FALSE) -> -22 | S66: =VLOOKUP($I66,$I$54:$S$59,COLUMNS($J65:S65)+1,FALSE) -> 11
A67: 125 | B67: ='Calendrier BG'!T34 -> SANO | C67: ='Calendrier BG'!U34 -> SJL 3 | D67: 6 | E67: 0 | F67: SANO | G67: SJL 3
A68: 126 | B68: ='Calendrier BG'!T35 -> BND | C68: ='Calendrier BG'!U35 -> STAN 3 | D68: 3 | E68: 0 | F68: BND | G68: STAN 3
A69: 127 | B69: ='Calendrier BG'!T36 -> FEN 2 | C69: ='Calendrier BG'!U36 -> SJL 3 | D69: 1 | E69: 0 | F69: FEN 2 | G69: SJL 3
A70: 128 | B70: ='Calendrier BG'!T37 -> BND | C70: ='Calendrier BG'!U37 -> SANO | D70: 0 | E70: 4 | F70: SANO | G70: BND
A71: 129 | B71: ='Calendrier BG'!T38 -> SJL 3 | C71: ='Calendrier BG'!U38 -> STAN 3 | D71: 2 | E71: 1 | F71: SJL 3 | G71: STAN 3
A72: 130 | B72: ='Calendrier BG'!T39 -> SANO | C72: ='Calendrier BG'!U39 -> FEN 2 | D72: 1 | E72: 0 | F72: SANO | G72: FEN 2
A73: 131 | B73: ='Calendrier BG'!T40 -> SJL 3 | C73: ='Calendrier BG'!U40 -> BND | D73: 3 | E73: 0 | F73: SJL 3 | G73: BND
A74: 132 | B74: ='Calendrier BG'!T41 -> STAN 3 | C74: ='Calendrier BG'!U41 -> FEN 2 | D74: 0 | E74: 1 | F74: FEN 2 | G74: STAN 3
A77: BENJAMINS DIVISION 3
A79: N° Match | B79: Match | D79: Scores | F79: Vainqueur | G79: Perdant | J79: SIGLE | K79: Etablissement | L79: Matchs joués | M79: Victoires | N79: Nuls | O79: Défaites | P79: Buts Pour | Q79: Buts Contre | R79: Différence | S79: Points
A80: 133 | B80: ='Calendrier BG'!Z22 -> STAN 4 | C80: ='Calendrier BG'!AA22 -> ASVP | D80: 0 | E80: 4 | F80: =IF(D80<>"",IF(D80>E80,B80,IF(D80<E80,C80,"nul")),"") -> ASVP | G80: =IF(E80<>"",IF(E80<D80,C80,IF(E80>D80,B80,"nul")),"") -> STAN 4 | I80: =RANK(T80,$T$80:$T$84) -> 5 | J80: STAN 4 | K80: Stanislas 4 | L80: =COUNT(D80,D82,D85,D87,D90,D92,D95,D97) -> 8 | M80: =COUNTIF($F$79:$F$99,J80) -> 0 | N80: =L80-M80-O80 -> 0 | O80: =COUNTIF($G$79:$G$99,J80) -> 8 | P80: =SUM(D80,E82,D85,E87,E90,D92,E95,D97) -> 2 | Q80: =SUM(E80,D82,E85,D87,D90,E92,D95,E97) -> 26 | R80: =P80-Q80 -> -24 | S80: =M80*4+N80*2+O80*1 -> 8 | T80: =SUM(S80*1000000+R80*10000+P80*100+L80*10) -> 7760280
A81: 134 | B81: ='Calendrier BG'!Z23 -> FEN 3 | C81: ='Calendrier BG'!AA23 -> JBS 2 | D81: 1 | E81: 0 | F81: =IF(D81<>"",IF(D81>E81,B81,IF(D81<E81,C81,"nul")),"") -> FEN 3 | G81: =IF(E81<>"",IF(E81<D81,C81,IF(E81>D81,B81,"nul")),"") -> JBS 2 | I81: =RANK(T81,$T$80:$T$84) -> 2 | J81: ASVP | K81: Saint Vincent de Paul | L81: =COUNT(D80,D83,D86,D89,D90,D93,D96,D99) -> 8 | M81: =COUNTIF($F$79:$F$99,J81) -> 5 | N81: =L81-M81-O81 -> 0 | O81: =COUNTIF($G$79:$G$99,J81) -> 3 | P81: =SUM(E80,D83,D86,E89,D90,E93,E96,D99) -> 21 | Q81: =SUM(D80,E83,E86,D89,E90,D93,D96,E99) -> 13 | R81: =P81-Q81 -> 8 | S81: =M81*4+N81*2+O81*1 -> 23 | T81: =SUM(S81*1000000+R81*10000+P81*100+L81*10) -> 23082180
A82: 135 | B82: ='Calendrier BG'!Z24 -> ROC 2 | C82: ='Calendrier BG'!AA24 -> STAN 4 | D82: 3 | E82: 0 | F82: ROC 2 | G82: STAN 4 | I82: 3 | J82: FEN 3 | K82: Fénelon Ste Marie 3 | L82: =COUNT(D81,D83,D85,D88,D91,D93,D95,D98) -> 8 | M82: 5 | N82: 0 | O82: 3 | P82: =SUM(D81,E83,E85,D88,E91,D93,D95,E98) -> 12 | Q82: =SUM(E81,D83,D85,E88,D91,E93,E95,D98) -> 8 | R82: =P82-Q82 -> 4 | S82: 23 | T82: 23041280
A83: 136 | B83: ='Calendrier BG'!Z25 -> ASVP | C83: ='Calendrier BG'!AA25 -> FEN 3 | D83: 3 | E83: 0 | F83: ASVP | G83: FEN 3 | I83: 1 | J83: JBS 2 | K83: Jean Baptiste La Salle 2 | L83: =COUNT(D81,D84,D87,D89,D91,D94,D97,D99) -> 8 | M83: 6 | N83: 0 | O83: 2 | P83: =SUM(E81,E84,D87,D89,D91,D94,E97,E99) -> 22 | Q83: =SUM(D81,D84,E87,E89,E91,E94,D97,D99) -> 11 | R83: =P83-Q83 -> 11 | S83: 26 | T83: 26112280
A84: 137 | B84: ='Calendrier BG'!Z26 -> ROC 2 | C84: ='Calendrier BG'!AA26 -> JBS 2 | D84: 2 | E84: 4 | F84: JBS 2 | G84: ROC 2 | I84: 4 | J84: ROC 2 | K84: Rocroy 2 | L84: =COUNT(D82,D86,D88,D92,D94,D96,D98,D84) -> 8 | M84: 4 | N84: 0 | O84: 4 | P84: =SUM(D82,E86,E88,E92,E94,D96,D98,D84) -> 17 | Q84: =SUM(E82,D86,D88,D92,D94,E96,E98,E84) -> 16 | R84: 1 | S84: 20 | T84: 20011780
A85: 138 | B85: ='Calendrier BG'!Z27 -> STAN 4 | C85: ='Calendrier BG'!AA27 -> FEN 3 | D85: 0 | E85: 3 | F85: FEN 3 | G85: STAN 4
A86: 139 | B86: ='Calendrier BG'!Z28 -> ASVP | C86: ='Calendrier BG'!AA28 -> ROC 2 | D86: 3 | E86: 2 | F86: ASVP | G86: ROC 2 | I86: Classement | J86: SIGLE | K86: Etablissement | L86: Matchs joués | M86: Victoires | N86: Nuls | O86: Défaites | P86: Buts Pour | Q86: Buts Contre | R86: Différence | S86: Points
A87: 140 | B87: ='Calendrier BG'!Z29 -> JBS 2 | C87: ='Calendrier BG'!AA29 -> STAN 4 | D87: 3 | E87: 1 | F87: JBS 2 | G87: STAN 4 | I87: 1 | J87: =VLOOKUP($I87,$I$79:$S$84,COLUMNS($J86:J86)+1,FALSE) -> JBS 2 | K87: =VLOOKUP($I87,$I$79:$S$84,COLUMNS($J86:K86)+1,FALSE) -> Jean Baptiste La Salle 2 | L87: =VLOOKUP($I87,$I$79:$S$84,COLUMNS($J86:L86)+1,FALSE) -> 8 | M87: =VLOOKUP($I87,$I$79:$S$84,COLUMNS($J86:M86)+1,FALSE) -> 6 | N87: =VLOOKUP($I87,$I$79:$S$84,COLUMNS($J86:N86)+1,FALSE) -> 0 | O87: =VLOOKUP($I87,$I$79:$S$84,COLUMNS($J86:O86)+1,FALSE) -> 2 | P87: =VLOOKUP($I87,$I$79:$S$84,COLUMNS($J86:P86)+1,FALSE) -> 22 | Q87: =VLOOKUP($I87,$I$79:$S$84,COLUMNS($J86:Q86)+1,FALSE) -> 11 | R87: =VLOOKUP($I87,$I$79:$S$84,COLUMNS($J86:R86)+1,FALSE) -> 11 | S87: =VLOOKUP($I87,$I$79:$S$84,COLUMNS($J86:S86)+1,FALSE) -> 26
A88: 141 | B88: ='Calendrier BG'!Z30 -> FEN 3 | C88: ='Calendrier BG'!AA30 -> ROC 2 | D88: 0 | E88: 2 | F88: ROC 2 | G88: FEN 3 | I88: 2 | J88: =VLOOKUP($I88,$I$79:$S$84,COLUMNS($J87:J87)+1,FALSE) -> ASVP | K88: =VLOOKUP($I88,$I$79:$S$84,COLUMNS($J87:K87)+1,FALSE) -> Saint Vincent de Paul | L88: =VLOOKUP($I88,$I$79:$S$84,COLUMNS($J87:L87)+1,FALSE) -> 8 | M88: =VLOOKUP($I88,$I$79:$S$84,COLUMNS($J87:M87)+1,FALSE) -> 5 | N88: =VLOOKUP($I88,$I$79:$S$84,COLUMNS($J87:N87)+1,FALSE) -> 0 | O88: =VLOOKUP($I88,$I$79:$S$84,COLUMNS($J87:O87)+1,FALSE) -> 3 | P88: =VLOOKUP($I88,$I$79:$S$84,COLUMNS($J87:P87)+1,FALSE) -> 21 | Q88: =VLOOKUP($I88,$I$79:$S$84,COLUMNS($J87:Q87)+1,FALSE) -> 13 | R88: =VLOOKUP($I88,$I$79:$S$84,COLUMNS($J87:R87)+1,FALSE) -> 8 | S88: =VLOOKUP($I88,$I$79:$S$84,COLUMNS($J87:S87)+1,FALSE) -> 23
A89: 142 | B89: ='Calendrier BG'!Z31 -> JBS 2 | C89: ='Calendrier BG'!AA31 -> ASVP | D89: 4 | E89: 1 | F89: JBS 2 | G89: ASVP | I89: 3 | J89: =VLOOKUP($I89,$I$79:$S$84,COLUMNS($J88:J88)+1,FALSE) -> FEN 3 | K89: =VLOOKUP($I89,$I$79:$S$84,COLUMNS($J88:K88)+1,FALSE) -> Fénelon Ste Marie 3 | L89: =VLOOKUP($I89,$I$79:$S$84,COLUMNS($J88:L88)+1,FALSE) -> 8 | M89: =VLOOKUP($I89,$I$79:$S$84,COLUMNS($J88:M88)+1,FALSE) -> 5 | N89: =VLOOKUP($I89,$I$79:$S$84,COLUMNS($J88:N88)+1,FALSE) -> 0 | O89: =VLOOKUP($I89,$I$79:$S$84,COLUMNS($J88:O88)+1,FALSE) -> 3 | P89: =VLOOKUP($I89,$I$79:$S$84,COLUMNS($J88:P88)+1,FALSE) -> 12 | Q89: =VLOOKUP($I89,$I$79:$S$84,COLUMNS($J88:Q88)+1,FALSE) -> 8 | R89: =VLOOKUP($I89,$I$79:$S$84,COLUMNS($J88:R88)+1,FALSE) -> 4 | S89: =VLOOKUP($I89,$I$79:$S$84,COLUMNS($J88:S88)+1,FALSE) -> 23
A90: 143 | B90: ='Calendrier BG'!Z32 -> ASVP | C90: ='Calendrier BG'!AA32 -> STAN 4 | D90: 4 | E90: 0 | F90: ASVP | G90: STAN 4 | I90: 4 | J90: =VLOOKUP($I90,$I$79:$S$84,COLUMNS($J89:J89)+1,FALSE) -> ROC 2 | K90: =VLOOKUP($I90,$I$79:$S$84,COLUMNS($J89:K89)+1,FALSE) -> Rocroy 2 | L90: =VLOOKUP($I90,$I$79:$S$84,COLUMNS($J89:L89)+1,FALSE) -> 8 | M90: =VLOOKUP($I90,$I$79:$S$84,COLUMNS($J89:M89)+1,FALSE) -> 4 | N90: =VLOOKUP($I90,$I$79:$S$84,COLUMNS($J89:N89)+1,FALSE) -> 0 | O90: =VLOOKUP($I90,$I$79:$S$84,COLUMNS($J89:O89)+1,FALSE) -> 4 | P90: =VLOOKUP($I90,$I$79:$S$84,COLUMNS($J89:P89)+1,FALSE) -> 17 | Q90: =VLOOKUP($I90,$I$79:$S$84,COLUMNS($J89:Q89)+1,FALSE) -> 16 | R90: =VLOOKUP($I90,$I$79:$S$84,COLUMNS($J89:R89)+1,FALSE) -> 1 | S90: =VLOOKUP($I90,$I$79:$S$84,COLUMNS($J89:S89)+1,FALSE) -> 20
A91: 144 | B91: ='Calendrier BG'!Z33 -> JBS 2 | C91: ='Calendrier BG'!AA33 -> FEN 3 | D91: 0 | E91: 2 | F91: FEN 3 | G91: JBS 2 | I91: 5 | J91: =VLOOKUP($I91,$I$79:$S$84,COLUMNS($J90:J90)+1,FALSE) -> STAN 4 | K91: =VLOOKUP($I91,$I$79:$S$84,COLUMNS($J90:K90)+1,FALSE) -> Stanislas 4 | L91: =VLOOKUP($I91,$I$79:$S$84,COLUMNS($J90:L90)+1,FALSE) -> 8 | M91: =VLOOKUP($I91,$I$79:$S$84,COLUMNS($J90:M90)+1,FALSE) -> 0 | N91: =VLOOKUP($I91,$I$79:$S$84,COLUMNS($J90:N90)+1,FALSE) -> 0 | O91: =VLOOKUP($I91,$I$79:$S$84,COLUMNS($J90:O90)+1,FALSE) -> 8 | P91: =VLOOKUP($I91,$I$79:$S$84,COLUMNS($J90:P90)+1,FALSE) -> 2 | Q91: =VLOOKUP($I91,$I$79:$S$84,COLUMNS($J90:Q90)+1,FALSE) -> 26 | R91: =VLOOKUP($I91,$I$79:$S$84,COLUMNS($J90:R90)+1,FALSE) -> -24 | S91: =VLOOKUP($I91,$I$79:$S$84,COLUMNS($J90:S90)+1,FALSE) -> 8
A92: 145 | B92: ='Calendrier BG'!Z34 -> STAN 4 | C92: ='Calendrier BG'!AA34 -> ROC 2 | D92: 0 | E92: 3 | F92: ROC 2 | G92: STAN 4
A93: 146 | B93: ='Calendrier BG'!Z35 -> FEN 3 | C93: ='Calendrier BG'!AA35 -> ASVP | D93: 0 | E93: 3 | F93: ASVP | G93: FEN 3
A94: 147 | B94: ='Calendrier BG'!Z36 -> JBS 2 | C94: ='Calendrier BG'!AA36 -> ROC 2 | D94: 4 | E94: 2 | F94: JBS 2 | G94: ROC 2
A95: 148 | B95: ='Calendrier BG'!Z37 -> FEN 3 | C95: ='Calendrier BG'!AA37 -> STAN 4 | D95: 3 | E95: 0 | F95: FEN 3 | G95: STAN 4
A96: 149 | B96: ='Calendrier BG'!Z38 -> ROC 2 | C96: ='Calendrier BG'!AA38 -> ASVP | D96: 3 | E96: 2 | F96: ROC 2 | G96: ASVP
A97: 150 | B97: ='Calendrier BG'!Z39 -> STAN 4 | C97: ='Calendrier BG'!AA39 -> JBS 2 | D97: 1 | E97: 3 | F97: JBS 2 | G97: STAN 4
A98: 151 | B98: ='Calendrier BG'!Z40 -> ROC 2 | C98: ='Calendrier BG'!AA40 -> FEN 3 | D98: 0 | E98: 3 | F98: FEN 3 | G98: ROC 2
A99: 152 | B99: ='Calendrier BG'!Z41 -> ASVP | C99: ='Calendrier BG'!AA41 -> JBS 2 | D99: 1 | E99: 4 | F99: JBS 2 | G99: ASVP

Sheet Calendrier MG
B1: CALENDRIER MINIMES | K1: POULES ET MATCHS MINIMES
A2: Date | B2: Match | C2: Equipe A | D2: Equipe B | E2: Lieux | F2: Horaires | G2: Résultats | I2: Indisponibilités | K2: DIVISION 1
A3: 2022-03-09 | B3: DIVISION 1 | K3: Etablissements
B4: ENTRAINEMENT | K4: 1 | L4: SANO
K5: 2 | L5: BND
K6: 3 | L6: STAN 1
K7: 4 | L7: STAN 2
K8: 5 | L8: MASS 1
K9: 6 | L9: MASS 2
K10: 7 | L10: FEN 1
K11: 8 | L11: FEN 2
A12: 2022-03-16 | B12: DIVISION 1 | K12: 9 | L12: ASVP
B13: 32 | C13: =VLOOKUP($B13,$K$18:$O$149,4) -> STAN 2 | D13: =VLOOKUP($B13,$K$18:$O$149,5) -> ASVP | E13: La Courneuve T3 A | F13: 14h20 | G13: =IFERROR(VLOOKUP($B13,'Cls MG'!$A$1:$G$135,4,FALSE),"") -> 3 | H13: =IFERROR(VLOOKUP($B13,'Cls MG'!$A$1:$G$135,5,FALSE),"") -> 1 | K13: 10 | L13: ROC
B14: 37 | C14: SANO | D14: ROC | E14: La Courneuve T3 A | F14: 14h40 | G14: =IFERROR(VLOOKUP($B14,'Cls MG'!$A$1:$G$135,4,FALSE),"") -> 6 | H14: =IFERROR(VLOOKUP($B14,'Cls MG'!$A$1:$G$135,5,FALSE),"") -> 0 | K14: 11 | L14: STAN 3
B15: 54 | C15: ASVP | D15: STAN 3 | E15: La Courneuve T3 A | F15: 15h | G15: =IFERROR(VLOOKUP($B15,'Cls MG'!$A$1:$G$135,4,FALSE),"") -> 1 | H15: =IFERROR(VLOOKUP($B15,'Cls MG'!$A$1:$G$135,5,FALSE),"") -> 2 | K15: 12 | L15: JBS
B16: 55 | C16: ROC | D16: STAN 3 | E16: La Courneuve T3 A | F16: 15h20 | G16: =IFERROR(VLOOKUP($B16,'Cls MG'!$A$1:$G$135,4,FALSE),"") -> 0 | H16: =IFERROR(VLOOKUP($B16,'Cls MG'!$A$1:$G$135,5,FALSE),"") -> 1
B17: 75 | C17: SANO | D17: STAN 2 | E17: La Courneuve T3 A | F17: 15h40 | G17: =IFERROR(VLOOKUP($B17,'Cls MG'!$A$1:$G$135,4,FALSE),"") -> 2 | H17: =IFERROR(VLOOKUP($B17,'Cls MG'!$A$1:$G$135,5,FALSE),"") -> 4 | K17: N° Match | L17: Equipe A | M17: Equipe B | N17: Match
B18: 92 | C18: MASS 1 | D18: FEN 2 | E18: La Courneuve T6 A | F18: 14h20 | G18: =IFERROR(VLOOKUP($B18,'Cls MG'!$A$1:$G$135,4,FALSE),"") -> 6 | H18: =IFERROR(VLOOKUP($B18,'Cls MG'!$A$1:$G$135,5,FALSE),"") -> 0 | K18: 1 | L18: 2 | M18: 3 | N18: =VLOOKUP(L18,$K$2:$L$15,2) -> BND | O18: =VLOOKUP(M18,$K$2:$L$15,2) -> STAN 1
B19: 78 | C19: FEN 1 | D19: MASS 2 | E19: La Courneuve T6 A | F19: 14h40 | G19: =IFERROR(VLOOKUP($B19,'Cls MG'!$A$1:$G$135,4,FALSE),"") -> 4 | H19: =IFERROR(VLOOKUP($B19,'Cls MG'!$A$1:$G$135,5,FALSE),"") -> 4 | K19: 2 | L19: 1 | M19: 5 | N19: =VLOOKUP(L19,$K$2:$L$15,2) -> SANO | O19: =VLOOKUP(M19,$K$2:$L$15,2) -> MASS 1
B20: 81 | C20: MASS 1 | D20: FEN 1 | E20: La Courneuve T6 A | F20: 15h | G20: =IFERROR(VLOOKUP($B20,'Cls MG'!$A$1:$G$135,4,FALSE),"") -> 2 | H20: =IFERROR(VLOOKUP($B20,'Cls MG'!$A$1:$G$135,5,FALSE),"") -> 2 | K20: 3 | L20: 7 | M20: 4 | N20: FEN 1 | O20: STAN 2
B21: 70 | C21: FEN 2 | D21: MASS 2 | E21: La Courneuve T6 A | F21: 15h20 | G21: =IFERROR(VLOOKUP($B21,'Cls MG'!$A$1:$G$135,4,FALSE),"") -> 2 | H21: =IFERROR(VLOOKUP($B21,'Cls MG'!$A$1:$G$135,5,FALSE),"") -> 3 | K21: 4 | L21: 6 | M21: 8 | N21: MASS 2 | O21: FEN 2
A22: 2022-03-23 | B22: DIVISION 1 | K22: 5 | L22: 1 | M22: 2 | N22: SANO | O22: BND
B23: 69 | C23: STAN 2 | D23: FEN 1 | E23: La Courneuve T6 A | F23: 14h | G23: =IFERROR(VLOOKUP($B23,'Cls MG'!$A$1:$G$135,4,FALSE),"") -> 0 | H23: =IFERROR(VLOOKUP($B23,'Cls MG'!$A$1:$G$135,5,FALSE),"") -> 1 | I23: SANO | K23: 6 | L23: 3 | M23: 4 | N23: STAN 1 | O23: STAN 2
B24: 77 | C24: STAN 1 | D24: FEN 2 | E24: La Courneuve T6 B | F24: 14h | G24: =IFERROR(VLOOKUP($B24,'Cls MG'!$A$1:$G$135,4,FALSE),"") -> 3 | H24: =IFERROR(VLOOKUP($B24,'Cls MG'!$A$1:$G$135,5,FALSE),"") -> 0 | K24: 7 | L24: 5 | M24: 6 | N24: MASS 1 | O24: MASS 2
B25: 107 | C25: ROC | D25: MASS 1 | E25: La Courneuve T6 A | F25: 14h20 | G25: =IFERROR(VLOOKUP($B25,'Cls MG'!$A$1:$G$135,4,FALSE),"") -> 0 | H25: =IFERROR(VLOOKUP($B25,'Cls MG'!$A$1:$G$135,5,FALSE),"") -> 3 | K25: 8 | L25: 8 | M25: 7 | N25: FEN 2 | O25: FEN 1
B26: 88 | C26: MASS 2 | D26: BND | E26: La Courneuve T6 B | F26: 14h20 | G26: =IFERROR(VLOOKUP($B26,'Cls MG'!$A$1:$G$135,4,FALSE),"") -> 3 | H26: =IFERROR(VLOOKUP($B26,'Cls MG'!$A$1:$G$135,5,FALSE),"") -> 1 | K26: 9 | L26: 4 | M26: 1 | N26: STAN 2 | O26: SANO
B27: 100 | C27: ASVP | D27: MASS 2 | E27: La Courneuve T6 A | F27: 14h40 | G27: =IFERROR(VLOOKUP($B27,'Cls MG'!$A$1:$G$135,4,FALSE),"") -> 0 | H27: =IFERROR(VLOOKUP($B27,'Cls MG'!$A$1:$G$135,5,FALSE),"") -> 2 | K27: 10 | L27: 5 | M27: 2 | N27: MASS 1 | O27: BND
B28: 76 | C28: BND | D28: MASS 1 | E28: La Courneuve T6 B | F28: 14h40 | G28: =IFERROR(VLOOKUP($B28,'Cls MG'!$A$1:$G$135,4,FALSE),"") -> 0 | H28: =IFERROR(VLOOKUP($B28,'Cls MG'!$A$1:$G$135,5,FALSE),"") -> 4 | K28: 11 | L28: 8 | M28: 3 | N28: FEN 2 | O28: STAN 1
B29: 119 | C29: STAN 3 | D29: FEN 2 | E29: La Courneuve T6 A | F29: 15h | G29: =IFERROR(VLOOKUP($B29,'Cls MG'!$A$1:$G$135,4,FALSE),"") -> 1 | H29: =IFERROR(VLOOKUP($B29,'Cls MG'!$A$1:$G$135,5,FALSE),"") -> 1 | K29: 12 | L29: 6 | M29: 7 | N29: MASS 2 | O29: FEN 1
B30: 118 | C30: STAN 3 | D30: FEN 1 | E30: La Courneuve T6 B | F30: 15h | G30: =IFERROR(VLOOKUP($B30,'Cls MG'!$A$1:$G$135,4,FALSE),"") -> 0 | H30: =IFERROR(VLOOKUP($B30,'Cls MG'!$A$1:$G$135,5,FALSE),"") -> 3 | K30: 13 | L30: 4 | M30: 2 | N30: STAN 2 | O30: BND
B31: 108 | C31: ROC | D31: MASS 2 | E31: La Courneuve T6 A | F31: 15h20 | G31: =IFERROR(VLOOKUP($B31,'Cls MG'!$A$1:$G$135,4,FALSE),"") -> 0 | H31: =IFERROR(VLOOKUP($B31,'Cls MG'!$A$1:$G$135,5,FALSE),"") -> 3 | K31: 14 | L31: 8 | M31: 1 | N31: FEN 2 | O31: SANO
B32: 99 | C32: ASVP | D32: MASS 1 | E32: La Courneuve T6 B | F32: 15h20 | G32: =IFERROR(VLOOKUP($B32,'Cls MG'!$A$1:$G$135,4,FALSE),"") -> 0 | H32: =IFERROR(VLOOKUP($B32,'Cls MG'!$A$1:$G$135,5,FALSE),"") -> 3 | K32: 15 | L32: 7 | M32: 5 | N32: FEN 1 | O32: MASS 1
B33: 72 | C33: STAN 2 | D33: STAN 1 | E33: La Courneuve T6 B | F33: 15h40 | G33: =IFERROR(VLOOKUP($B33,'Cls MG'!$A$1:$G$135,4,FALSE),"") -> 1 | H33: =IFERROR(VLOOKUP($B33,'Cls MG'!$A$1:$G$135,5,FALSE),"") -> 0 | K33: 16 | L33: 3 | M33: 6 | N33: STAN 1 | O33: MASS 2
A34: 2022-03-30 | B34: DIVISION 1 | K34: 17 | L34: 2 | M34: 8 | N34: BND | O34: FEN 2
B35: 74 | C35: FEN 1 | D35: FEN 2 | E35: La Courneuve T3 A | F35: 14h | G35: =IFERROR(VLOOKUP($B35,'Cls MG'!$A$1:$G$135,4,FALSE),"") -> 3 | H35: =IFERROR(VLOOKUP($B35,'Cls MG'!$A$1:$G$135,5,FALSE),"") -> 0 | I35: MASS | K35: 18 | L35: 5 | M35: 4 | N35: MASS 1 | O35: STAN 2
B36: 80 | C36: SANO | D36: FEN 2 | E36: La Courneuve T3 A | F36: 14h20 | G36: =IFERROR(VLOOKUP($B36,'Cls MG'!$A$1:$G$135,4,FALSE),"") -> 3 | H36: =IFERROR(VLOOKUP($B36,'Cls MG'!$A$1:$G$135,5,FALSE),"") -> 0 | K36: 19 | L36: 6 | M36: 1 | N36: MASS 2 | O36: SANO
B37: 67 | C37: STAN 1 | D37: BND | E37: La Courneuve T3 A | F37: 14h40 | G37: =IFERROR(VLOOKUP($B37,'Cls MG'!$A$1:$G$135,4,FALSE),"") -> 4 | H37: =IFERROR(VLOOKUP($B37,'Cls MG'!$A$1:$G$135,5,FALSE),"") -> 0 | K37: 20 | L37: 3 | M37: 7 | N37: STAN 1 | O37: FEN 1
B38: 71 | C38: BND | D38: SANO | E38: La Courneuve T3 A | F38: 15h | G38: =IFERROR(VLOOKUP($B38,'Cls MG'!$A$1:$G$135,4,FALSE),"") -> 0 | H38: =IFERROR(VLOOKUP($B38,'Cls MG'!$A$1:$G$135,5,FALSE),"") -> 0 | K38: 21 | L38: 4 | M38: 8 | N38: STAN 2 | O38: FEN 2
B39: 86 | C39: FEN 1 | D39: STAN 1 | E39: La Courneuve T3 A | F39: 15h20 | G39: =IFERROR(VLOOKUP($B39,'Cls MG'!$A$1:$G$135,4,FALSE),"") -> 0 | H39: =IFERROR(VLOOKUP($B39,'Cls MG'!$A$1:$G$135,5,FALSE),"") -> 0 | K39: 22 | L39: 2 | M39: 6 | N39: BND | O39: MASS 2
G40: =IFERROR(VLOOKUP($B40,'Cls MG'!$A$1:$G$135,4,FALSE),"") ->  | H40: =IFERROR(VLOOKUP($B40,'Cls MG'!$A$1:$G$135,5,FALSE),"") ->  | K40: 23 | L40: 3 | M40: 5 | N40: STAN 1 | O40: MASS 1
G41: =IFERROR(VLOOKUP($B41,'Cls MG'!$A$1:$G$135,4,FALSE),"") ->  | H41: =IFERROR(VLOOKUP($B41,'Cls MG'!$A$1:$G$135,5,FALSE),"") ->  | K41: 24 | L41: 1 | M41: 7 | N41: SANO | O41: FEN 1
G42: =IFERROR(VLOOKUP($B42,'Cls MG'!$A$1:$G$135,4,FALSE),"") ->  | H42: =IFERROR(VLOOKUP($B42,'Cls MG'!$A$1:$G$135,5,FALSE),"") ->  | K42: 25 | L42: 4 | M42: 6 | N42: STAN 2 | O42: MASS 2
G43: =IFERROR(VLOOKUP($B43,'Cls MG'!$A$1:$G$135,4,FALSE),"") ->  | H43: =IFERROR(VLOOKUP($B43,'Cls MG'!$A$1:$G$135,5,FALSE),"") ->  | K43: 26 | L43: 8 | M43: 5 | N43: FEN 2 | O43: MASS 1
G44: =IFERROR(VLOOKUP($B44,'Cls MG'!$A$1:$G$135,4,FALSE),"") ->  | H44: =IFERROR(VLOOKUP($B44,'Cls MG'!$A$1:$G$135,5,FALSE),"") ->  | K44: 27 | L44: 7 | M44: 2 | N44: FEN 1 | O44: BND
G45: =IFERROR(VLOOKUP($B45,'Cls MG'!$A$1:$G$135,4,FALSE),"") ->  | H45: =IFERROR(VLOOKUP($B45,'Cls MG'!$A$1:$G$135,5,FALSE),"") ->  | K45: 28 | L45: 1 | M45: 3 | N45: SANO | O45: STAN 1
G46: =IFERROR(VLOOKUP($B46,'Cls MG'!$A$1:$G$135,4,FALSE),"") ->  | H46: =IFERROR(VLOOKUP($B46,'Cls MG'!$A$1:$G$135,5,FALSE),"") ->  | K46: 29 | L46: 1 | M46: 9 | N46: SANO | O46: ASVP
A47: 2022-04-06 | B47: DIVISION 1 | K47: 30 | L47: 2 | M47: 9 | N47: BND | O47: ASVP
B48: 87 | C48: FEN 2 | D48: STAN 2 | E48: La Courneuve T6 A | F48: 14h | G48: =IFERROR(VLOOKUP($B48,'Cls MG'!$A$1:$G$135,4,FALSE),"") -> 0 | H48: =IFERROR(VLOOKUP($B48,'Cls MG'!$A$1:$G$135,5,FALSE),"") -> 3 | I48: MASS | K48: 31 | L48: 3 | M48: 9 | N48: STAN 1 | O48: ASVP
B49: 114 | C49: STAN 3 | D49: STAN 1 | E49: La Courneuve T6 B | F49: 14h | G49: =IFERROR(VLOOKUP($B49,'Cls MG'!$A$1:$G$135,4,FALSE),"") -> 1 | H49: =IFERROR(VLOOKUP($B49,'Cls MG'!$A$1:$G$135,5,FALSE),"") -> 3 | K49: 32 | L49: 4 | M49: 9 | N49: STAN 2 | O49: ASVP
B50: 103 | C50: ROC | D50: SANO | E50: La Courneuve T6 A | F50: 14h20 | G50: =IFERROR(VLOOKUP($B50,'Cls MG'!$A$1:$G$135,4,FALSE),"") -> 0 | H50: =IFERROR(VLOOKUP($B50,'Cls MG'!$A$1:$G$135,5,FALSE),"") -> 4 | K50: 33 | L50: 5 | M50: 9 | N50: MASS 1 | O50: ASVP
B51: 83 | C51: FEN 2 | D51: BND | E51: La Courneuve T6 B | F51: 14h20 | G51: =IFERROR(VLOOKUP($B51,'Cls MG'!$A$1:$G$135,4,FALSE),"") -> 0 | H51: =IFERROR(VLOOKUP($B51,'Cls MG'!$A$1:$G$135,5,FALSE),"") -> 0 | K51: 34 | L51: 6 | M51: 9 | N51: MASS 2 | O51: ASVP
B52: 120 | C52: STAN 3 | D52: ASVP | E52: La Courneuve T6 A | F52: 14h40 | G52: =IFERROR(VLOOKUP($B52,'Cls MG'!$A$1:$G$135,4,FALSE),"") -> 1 | H52: =IFERROR(VLOOKUP($B52,'Cls MG'!$A$1:$G$135,5,FALSE),"") -> 1 | K52: 35 | L52: 7 | M52: 9 | N52: FEN 1 | O52: ASVP
B53: 109 | C53: ROC | D53: FEN 1 | E53: La Courneuve T6 B | F53: 14h40 | G53: =IFERROR(VLOOKUP($B53,'Cls MG'!$A$1:$G$135,4,FALSE),"") -> 1 | H53: =IFERROR(VLOOKUP($B53,'Cls MG'!$A$1:$G$135,5,FALSE),"") -> 2 | K53: 36 | L53: 8 | M53: 9 | N53: FEN 2 | O53: ASVP
B54: 79 | C54: BND | D54: STAN 2 | E54: La Courneuve T6 A | F54: 15h | G54: =IFERROR(VLOOKUP($B54,'Cls MG'!$A$1:$G$135,4,FALSE),"") -> 1 | H54: =IFERROR(VLOOKUP($B54,'Cls MG'!$A$1:$G$135,5,FALSE),"") -> 8 | K54: 37 | L54: 1 | M54: 10 | N54: SANO | O54: ROC
B55: 90 | C55: FEN 1 | D55: SANO | E55: La Courneuve T6 B | F55: 15h | G55: =IFERROR(VLOOKUP($B55,'Cls MG'!$A$1:$G$135,4,FALSE),"") -> 0 | H55: =IFERROR(VLOOKUP($B55,'Cls MG'!$A$1:$G$135,5,FALSE),"") -> 1 | K55: 38 | L55: 2 | M55: 10 | N55: BND | O55: ROC
B56: 101 | C56: ASVP | D56: FEN 1 | G56: =IFERROR(VLOOKUP($B56,'Cls MG'!$A$1:$G$135,4,FALSE),"") -> 0 | H56: =IFERROR(VLOOKUP($B56,'Cls MG'!$A$1:$G$135,5,FALSE),"") -> 3 | K56: 39 | L56: 3 | M56: 10 | N56: STAN 1 | O56: ROC
B57: 93 | C57: BND | D57: FEN 1 | G57: =IFERROR(VLOOKUP($B57,'Cls MG'!$A$1:$G$135,4,FALSE),"") -> 1 | H57: =IFERROR(VLOOKUP($B57,'Cls MG'!$A$1:$G$135,5,FALSE),"") -> 1 | K57: 40 | L57: 4 | M57: 10 | N57: STAN 2 | O57: ROC
B58: 113 | C58: STAN 3 | D58: BND | G58: =IFERROR(VLOOKUP($B58,'Cls MG'!$A$1:$G$135,4,FALSE),"") -> 1 | H58: =IFERROR(VLOOKUP($B58,'Cls MG'!$A$1:$G$135,5,FALSE),"") -> 0 | K58: 41 | L58: 5 | M58: 10 | N58: MASS 1 | O58: ROC
B59: 97 | C59: ASVP | D59: STAN 1 | E59: La Courneuve T6 A | F59: 15h20 | G59: =IFERROR(VLOOKUP($B59,'Cls MG'!$A$1:$G$135,4,FALSE),"") -> 0 | H59: =IFERROR(VLOOKUP($B59,'Cls MG'!$A$1:$G$135,5,FALSE),"") -> 4 | K59: 42 | L59: 6 | M59: 10 | N59: MASS 2 | O59: ROC
A60: 2022-04-13 | B60: DIVISION 1 | K60: 43 | L60: 7 | M60: 10 | N60: FEN 1 | O60: ROC
B61: 68 | C61: MASS 1 | D61: SANO | E61: Tremblay MASS TA | F61: 14h | G61: =IFERROR(VLOOKUP($B61,'Cls MG'!$A$1:$G$135,4,FALSE),"") -> 2 | H61: =IFERROR(VLOOKUP($B61,'Cls MG'!$A$1:$G$135,5,FALSE),"") -> 2 | K61: 44 | L61: 8 | M61: 10 | N61: FEN 2 | O61: ROC
B62: 91 | C62: MASS 2 | D62: STAN 2 | E62: Tremblay MASS TB | F62: 14h | G62: =IFERROR(VLOOKUP($B62,'Cls MG'!$A$1:$G$135,4,FALSE),"") -> 0 | H62: =IFERROR(VLOOKUP($B62,'Cls MG'!$A$1:$G$135,5,FALSE),"") -> 4 | K62: 45 | L62: 9 | M62: 10 | N62: ASVP | O62: ROC
B63: 89 | C63: MASS 1 | D63: STAN 1 | E63: Tremblay MASS TA | F63: 14h20 | G63: =IFERROR(VLOOKUP($B63,'Cls MG'!$A$1:$G$135,4,FALSE),"") -> 1 | H63: =IFERROR(VLOOKUP($B63,'Cls MG'!$A$1:$G$135,5,FALSE),"") -> 0 | K63: 46 | L63: 1 | M63: 11 | N63: SANO | O63: STAN 3
B64: 94 | C64: STAN 1 | D64: SANO | E64: Tremblay MASS TB | F64: 14h20 | G64: =IFERROR(VLOOKUP($B64,'Cls MG'!$A$1:$G$135,4,FALSE),"") -> 0 | H64: =IFERROR(VLOOKUP($B64,'Cls MG'!$A$1:$G$135,5,FALSE),"") -> 3 | K64: 47 | L64: 2 | M64: 11 | N64: BND | O64: STAN 3
B65: 73 | C65: MASS 2 | D65: MASS 1 | E65: Tremblay MASS TA | F65: 14h40 | G65: =IFERROR(VLOOKUP($B65,'Cls MG'!$A$1:$G$135,4,FALSE),"") -> 0 | H65: =IFERROR(VLOOKUP($B65,'Cls MG'!$A$1:$G$135,5,FALSE),"") -> 4 | K65: 48 | L65: 3 | M65: 11 | N65: STAN 1 | O65: STAN 3
B66: 112 | C66: STAN 3 | D66: SANO | E66: Tremblay MASS TB | F66: 14h40 | G66: =IFERROR(VLOOKUP($B66,'Cls MG'!$A$1:$G$135,4,FALSE),"") -> 0 | H66: =IFERROR(VLOOKUP($B66,'Cls MG'!$A$1:$G$135,5,FALSE),"") -> 3 | K66: 49 | L66: 4 | M66: 11 | N66: STAN 2 | O66: STAN 3
B67: 85 | C67: SANO | D67: MASS 2 | E67: Tremblay MASS TA | F67: 15h | G67: =IFERROR(VLOOKUP($B67,'Cls MG'!$A$1:$G$135,4,FALSE),"") -> 1 | H67: =IFERROR(VLOOKUP($B67,'Cls MG'!$A$1:$G$135,5,FALSE),"") -> 1 | K67: 50 | L67: 5 | M67: 11 | N67: MASS 1 | O67: STAN 3
B68: 115 | C68: STAN 3 | D68: STAN 2 | E68: Tremblay MASS TB | F68: 15h | G68: =IFERROR(VLOOKUP($B68,'Cls MG'!$A$1:$G$135,4,FALSE),"") -> 0 | H68: =IFERROR(VLOOKUP($B68,'Cls MG'!$A$1:$G$135,5,FALSE),"") -> 3 | K68: 51 | L68: 6 | M68: 11 | N68: MASS 2 | O68: STAN 3
G69: =IFERROR(VLOOKUP($B69,'Cls MG'!$A$1:$G$135,4,FALSE),"") ->  | H69: =IFERROR(VLOOKUP($B69,'Cls MG'!$A$1:$G$135,5,FALSE),"") ->  | K69: 52 | L69: 7 | M69: 11 | N69: FEN 1 | O69: STAN 3
A70: 2022-04-20 | B70: DIVISION 1 | K70: 53 | L70: 8 | M70: 11 | N70: FEN 2 | O70: STAN 3
C71: MASS 1 | D71: FEN 1 | E71: Tremblay SANO TA | F71: 14h20 | G71: =IFERROR(VLOOKUP($B71,'Cls MG'!$A$1:$G$135,4,FALSE),"") ->  | H71: =IFERROR(VLOOKUP($B71,'Cls MG'!$A$1:$G$135,5,FALSE),"") ->  | K71: 54 | L71: 9 | M71: 11 | N71: ASVP | O71: STAN 3
C72: SANO | D72: STAN 2 | E72: Tremblay SANO TB | F72: 14h20 | G72: =IFERROR(VLOOKUP($B72,'Cls MG'!$A$1:$G$135,4,FALSE),"") ->  | H72: =IFERROR(VLOOKUP($B72,'Cls MG'!$A$1:$G$135,5,FALSE),"") ->  | K72: 55 | L72: 10 | M72: 11 | N72: ROC | O72: STAN 3
C73: MASS 1 | D73: SANO | E73: Tremblay SANO TA | F73: 14h40 | G73: =IFERROR(VLOOKUP($B73,'Cls MG'!$A$1:$G$135,4,FALSE),"") ->  | H73: =IFERROR(VLOOKUP($B73,'Cls MG'!$A$1:$G$135,5,FALSE),"") ->  | K73: 56 | L73: 1 | M73: 12 | N73: SANO | O73: JBS
C74: FEN 1 | D74: STAN 2 | E74: Tremblay SANO TB | F74: 14h40 | G74: =IFERROR(VLOOKUP($B74,'Cls MG'!$A$1:$G$135,4,FALSE),"") ->  | H74: =IFERROR(VLOOKUP($B74,'Cls MG'!$A$1:$G$135,5,FALSE),"") ->  | K74: 57 | L74: 2 | M74: 12 | N74: BND | O74: JBS
C75: MASS 1 | D75: STAN 2 | E75: Tremblay SANO TA | F75: 15h | G75: =IFERROR(VLOOKUP($B75,'Cls MG'!$A$1:$G$135,4,FALSE),"") ->  | H75: =IFERROR(VLOOKUP($B75,'Cls MG'!$A$1:$G$135,5,FALSE),"") ->  | K75: 58 | L75: 3 | M75: 12 | N75: STAN 1 | O75: JBS
C76: SANO | D76: FEN 1 | E76: Tremblay SANO TB | F76: 15h | G76: =IFERROR(VLOOKUP($B76,'Cls MG'!$A$1:$G$135,4,FALSE),"") ->  | H76: =IFERROR(VLOOKUP($B76,'Cls MG'!$A$1:$G$135,5,FALSE),"") ->  | K76: 59 | L76: 4 | M76: 12 | N76: STAN 2 | O76: JBS
A77: 2022-05-11 | B77: DIVISION 1 | K77: 60 | L77: 5 | M77: 12 | N77: MASS 1 | O77: JBS
B78: 117 | C78: =VLOOKUP($B78,$K$18:$O$149,4) -> STAN 3 | D78: =VLOOKUP($B78,$K$18:$O$149,5) -> MASS 2 | E78: La Courneuve T3 A | F78: 14h20 | G78: =IFERROR(VLOOKUP($B78,'Cls MG'!$A$1:$G$135,4,FALSE),"") -> 0 | H78: =IFERROR(VLOOKUP($B78,'Cls MG'!$A$1:$G$135,5,FALSE),"") -> 0 | K78: 61 | L78: 6 | M78: 12 | N78: MASS 2 | O78: JBS
B79: 111 | C79: ROC | D79: ASVP | E79: La Courneuve T3 A | F79: 14h20 | G79: =IFERROR(VLOOKUP($B79,'Cls MG'!$A$1:$G$135,4,FALSE),"") -> 0 | H79: =IFERROR(VLOOKUP($B79,'Cls MG'!$A$1:$G$135,5,FALSE),"") -> 1 | K79: 62 | L79: 7 | M79: 12 | N79: FEN 1 | O79: JBS
B80: 121 | C80: STAN 3 | D80: ROC | E80: La Courneuve T3 A | F80: 14h40 | G80: =IFERROR(VLOOKUP($B80,'Cls MG'!$A$1:$G$135,4,FALSE),"") -> 0 | H80: =IFERROR(VLOOKUP($B80,'Cls MG'!$A$1:$G$135,5,FALSE),"") -> 3 | K80: 63 | L80: 8 | M80: 12 | N80: FEN 2 | O80: JBS
B81: 96 | C81: ASVP | D81: BND | E81: La Courneuve T3 A | F81: 14h40 | G81: =IFERROR(VLOOKUP($B81,'Cls MG'!$A$1:$G$135,4,FALSE),"") -> 0 | H81: =IFERROR(VLOOKUP($B81,'Cls MG'!$A$1:$G$135,5,FALSE),"") -> 1 | K81: 64 | L81: 9 | M81: 12 | N81: ASVP | O81: JBS
B82: 102 | C82: ASVP | D82: FEN 2 | E82: La Courneuve T3 A | F82: 15h | G82: =IFERROR(VLOOKUP($B82,'Cls MG'!$A$1:$G$135,4,FALSE),"") -> 1 | H82: =IFERROR(VLOOKUP($B82,'Cls MG'!$A$1:$G$135,5,FALSE),"") -> 0 | K82: 65 | L82: 10 | M82: 12 | N82: ROC | O82: JBS
B83: 104 | C83: ROC | D83: BND | E83: La Courneuve T3 A | F83: 15h | G83: =IFERROR(VLOOKUP($B83,'Cls MG'!$A$1:$G$135,4,FALSE),"") -> 1 | H83: =IFERROR(VLOOKUP($B83,'Cls MG'!$A$1:$G$135,5,FALSE),"") -> 1 | K83: 66 | L83: 11 | M83: 12 | N83: =VLOOKUP(L83,$K$2:$L$15,2) -> STAN 3 | O83: =VLOOKUP(M83,$K$2:$L$15,2) -> JBS
A84: 2022-05-18 | B84: ENTRAINEMENT : matchs amicaux | K84: 67 | L84: 3 | M84: 2 | N84: STAN 1 | O84: BND
K85: 68 | L85: 5 | M85: 1 | N85: MASS 1 | O85: SANO
K86: 69 | L86: 4 | M86: 7 | N86: STAN 2 | O86: FEN 1
K87: 70 | L87: 8 | M87: 6 | N87: FEN 2 | O87: MASS 2
K88: 71 | L88: 2 | M88: 1 | N88: BND | O88: SANO
K89: 72 | L89: 4 | M89: 3 | N89: STAN 2 | O89: STAN 1
A90: 2022-05-25 | B90: ASCENSION | K90: 73 | L90: 6 | M90: 5 | N90: MASS 2 | O90: MASS 1
K91: 74 | L91: 7 | M91: 8 | N91: FEN 1 | O91: FEN 2
K92: 75 | L92: 1 | M92: 4 | N92: SANO | O92: STAN 2
K93: 76 | L93: 2 | M93: 5 | N93: BND | O93: MASS 1
K94: 77 | L94: 3 | M94: 8 | N94: STAN 1 | O94: FEN 2
K95: 78 | L95: 7 | M95: 6 | N95: FEN 1 | O95: MASS 2
A96: 2022-06-01 | B96: COUPE MG au Tremblay sur terrains SANO et MASS de 14h à 17h | K96: 79 | L96: 2 | M96: 4 | N96: BND | O96: STAN 2
K97: 80 | L97: 1 | M97: 8 | N97: SANO | O97: FEN 2
K98: 81 | L98: 5 | M98: 7 | N98: MASS 1 | O98: FEN 1
K99: 82 | L99: 6 | M99: 3 | N99: MASS 2 | O99: STAN 1
K100: 83 | L100: 8 | M100: 2 | N100: FEN 2 | O100: BND
K101: 84 | L101: 4 | M101: 5 | N101: STAN 2 | O101: MASS 1
K102: 85 | L102: 1 | M102: 6 | N102: SANO | O102: MASS 2
K103: 86 | L103: 7 | M103: 3 | N103: FEN 1 | O103: STAN 1
K104: 87 | L104: 8 | M104: 4 | N104: FEN 2 | O104: STAN 2
K105: 88 | L105: 6 | M105: 2 | N105: MASS 2 | O105: BND
K106: 89 | L106: 5 | M106: 3 | N106: MASS 1 | O106: STAN 1
K107: 90 | L107: 7 | M107: 1 | N107: FEN 1 | O107: SANO
K108: 91 | L108: 6 | M108: 4 | N108: MASS 2 | O108: STAN 2
K109: 92 | L109: 5 | M109: 8 | N109: MASS 1 | O109: FEN 2
K110: 93 | L110: 2 | M110: 7 | N110: BND | O110: FEN 1
K111: 94 | L111: 3 | M111: 1 | N111: STAN 1 | O111: SANO
K112: 95 | L112: 9 | M112: 1 | N112: ASVP | O112: SANO
K113: 96 | L113: 9 | M113: 2 | N113: ASVP | O113: BND
K114: 97 | L114: 9 | M114: 3 | N114: ASVP | O114: STAN 1
K115: 98 | L115: 9 | M115: 4 | N115: ASVP | O115: STAN 2
K116: 99 | L116: 9 | M116: 5 | N116: ASVP | O116: MASS 1
K117: 100 | L117: 9 | M117: 6 | N117: ASVP | O117: MASS 2
K118: 101 | L118: 9 | M118: 7 | N118: ASVP | O118: FEN 1
K119: 102 | L119: 9 | M119: 8 | N119: ASVP | O119: FEN 2
K120: 103 | L120: 10 | M120: 1 | N120: ROC | O120: SANO
K121: 104 | L121: 10 | M121: 2 | N121: ROC | O121: BND
K122: 105 | L122: 10 | M122: 3 | N122: ROC | O122: STAN 1
K123: 106 | L123: 10 | M123: 4 | N123: ROC | O123: STAN 2
K124: 107 | L124: 10 | M124: 5 | N124: ROC | O124: MASS 1
K125: 108 | L125: 10 | M125: 6 | N125: ROC | O125: MASS 2
K126: 109 | L126: 10 | M126: 7 | N126: ROC | O126: FEN 1
K127: 110 | L127: 10 | M127: 8 | N127: ROC | O127: FEN 2
K128: 111 | L128: 10 | M128: 9 | N128: ROC | O128: ASVP
K129: 112 | L129: 11 | M129: 1 | N129: STAN 3 | O129: SANO
K130: 113 | L130: 11 | M130: 2 | N130: STAN 3 | O130: BND
K131: 114 | L131: 11 | M131: 3 | N131: STAN 3 | O131: STAN 1
K132: 115 | L132: 11 | M132: 4 | N132: STAN 3 | O132: STAN 2
K133: 116 | L133: 11 | M133: 5 | N133: STAN 3 | O133: MASS 1
K134: 117 | L134: 11 | M134: 6 | N134: STAN 3 | O134: MASS 2
K135: 118 | L135: 11 | M135: 7 | N135: STAN 3 | O135: FEN 1
K136: 119 | L136: 11 | M136: 8 | N136: STAN 3 | O136: FEN 2
K137: 120 | L137: 11 | M137: 9 | N137: STAN 3 | O137: ASVP
K138: 121 | L138: 11 | M138: 10 | N138: STAN 3 | O138: ROC
K139: 122 | L139: 12 | M139: 1 | N139: =VLOOKUP(L139,$K$2:$L$15,2) -> JBS | O139: =VLOOKUP(M139,$K$2:$L$15,2) -> SANO
K140: 123 | L140: 12 | M140: 2 | N140: JBS | O140: BND
K141: 124 | L141: 12 | M141: 3 | N141: JBS | O141: STAN 1
K142: 125 | L142: 12 | M142: 4 | N142: JBS | O142: STAN 2
K143: 126 | L143: 12 | M143: 5 | N143: JBS | O143: MASS 1
K144: 127 | L144: 12 | M144: 6 | N144: JBS | O144: MASS 2
K145: 128 | L145: 12 | M145: 7 | N145: JBS | O145: FEN 1
K146: 129 | L146: 12 | M146: 8 | N146: JBS | O146: FEN 2
K147: 130 | L147: 12 | M147: 9 | N147: JBS | O147: ASVP
K148: 131 | L148: 12 | M148: 10 | N148: JBS | O148: ROC
K149: 132 | L149: 12 | M149: 11 | N149: JBS | O149: STAN 3

Sheet Cls MG
A1: MINIMES DIVISION 1
A3: N° Match | B3: Equipe A | C3: Equipe B | D3: Scores | F3: Vainqueur | G3: Perdant | J3: SIGLE | K3: Etablissement | L3: Matchs joués | M3: Victoires | N3: Nuls | O3: Défaites | P3: Buts Pour | Q3: Buts Contre | R3: Différence | S3: Points
A4: 1 | B4: ='Calendrier MG'!N18 -> BND | C4: ='Calendrier MG'!O18 -> STAN 1 | D4: 0 | E4: 9 | F4: =IF(D4<>"",IF(D4>E4,B4,IF(D4<E4,C4,"nul")),"") -> STAN 1 | G4: =IF(E4<>"",IF(E4<D4,C4,IF(E4>D4,B4,"nul")),"") -> BND | I4: =RANK(T4,$T$4:$T$15) -> 3 | J4: SANO | K4: Saint André de Nogent | L4: =COUNT(D5,D8,D12,D17,D22,D27,D31,D32,D40,D49,D59,D71,D74,D78,D83,D88,D93,D97,D98,D106,D115,D125) -> 22 | M4: =COUNTIF($F$3:$F$135,J4) -> 15 | N4: =L4-M4-O4 -> 4 | O4: =COUNTIF(G3:G135,J4) -> 3 | P4: =SUM(D5+D8+E12+E17+E22+D27+D31+D32+D40+D49+D59+E71+E74+D78+D83+D88+E93+E97+E98+E106+E115+E125) -> 53 | Q4: =SUM(E5+E8+D12+D17+D22+E27+E31+E32+E40+E49+E59+D71+D74+E78+E83+E88+D93+D97+D98+D106+D115+D125) -> 13 | R4: =P4-Q4 -> 40 | S4: =M4*4+N4*2+O4*1 -> 71 | T4: =SUM(S4*1000000+R4*10000+P4*100+L4*10) -> 71405520
A5: 2 | B5: ='Calendrier MG'!N19 -> SANO | C5: ='Calendrier MG'!O19 -> MASS 1 | D5: 0 | E5: 0 | F5: =IF(D5<>"",IF(D5>E5,B5,IF(D5<E5,C5,"nul")),"") -> nul | G5: =IF(E5<>"",IF(E5<D5,C5,IF(E5>D5,B5,"nul")),"") -> nul | I5: =RANK(T5,$T$4:$T$15) -> 7 | J5: BND | K5: Bossuet Notre Dame | L5: =COUNT(D4,D8,D13,D16,D20,D25,D30,D33,D41,D50,D60,D70,D74,D79,D82,D86,D91,D96,D99,D107,D116,D126) -> 22 | M5: =COUNTIF($F$3:$F$135,J5) -> 6 | N5: =L5-M5-O5 -> 4 | O5: =COUNTIF(G4:G136,J5) -> 12 | P5: =SUM(D4+E8+E13+E16+D20+D25+E30+D33+D41+D50+D60+E70+D74+D79+D82+E86+E91+D96+E99+E107+E116+E126) -> 25 | Q5: =SUM(E4+D8+D13+D16+E20+E25+D30+E33+E41+E50+E60+D70+E74+E79+E82+D86+D91+E96+D99+D107+D116+D126) -> 49 | R5: =P5-Q5 -> -24 | S5: =M5*4+N5*2+O5*1 -> 44 | T5: =SUM(S5*1000000+R5*10000+P5*100+L5*10) -> 43762720
A6: 3 | B6: ='Calendrier MG'!N20 -> FEN 1 | C6: ='Calendrier MG'!O20 -> STAN 2 | D6: 2 | E6: 0 | F6: FEN 1 | G6: STAN 2 | I6: 5 | J6: STAN 1 | K6: Stanislas 1 | L6: =COUNT(D4,D9,D14,D19,D23,D26,D31,D34,D42,D51,D61,D70,D75,D80,D85,D89,D92,D97,D100,D108,D117,D127) -> 22 | M6: 15 | N6: 1 | O6: =COUNTIF(G5:G137,J6) -> 6 | P6: =SUM(E4,D9,E14,D19,D23,D26,E31,D34,D42,D51,D61,D70,E75,D80,E85,E89,E92,D97,E100,E108,E117,E127) -> 55 | Q6: =SUM(D4,E9,D14,E19,E23,E26,D31,E34,E42,E51,E61,E70,D75,E80,D85,D89,D92,E97,D100,D108,D117,D127) -> 12 | R6: 43 | S6: 68 | T6: 68435720
A7: 4 | B7: ='Calendrier MG'!N21 -> MASS 2 | C7: ='Calendrier MG'!O21 -> FEN 2 | D7: 2 | E7: 0 | F7: MASS 2 | G7: FEN 2 | I7: 2 | J7: STAN 2 | K7: Stanislas 2 | L7: =COUNT(D6,D9,D12,D16,D21,D24,D28,D35,D43,D52,D62,D72,D75,D78,D82,D87,D90,D94,D101,D109,D118,D128) -> 22 | M7: 19 | N7: 0 | O7: 3 | P7: =SUM(E6,E9,D12,D16,E21,D24,D28,D35,D43,D52,D62,D72,D75,E78,E82,D87,E90,E94,E101,E109,E118,E128) -> 62 | Q7: =SUM(D6,D9,E12,E16,D21,E24,E28,E35,E43,E52,E62,E72,E75,D78,D82,E87,D90,D94,D101,D109,D118,D128) -> 12 | R7: 50 | S7: 79 | T7: 79506420
A8: 5 | B8: ='Calendrier MG'!N22 -> SANO | C8: ='Calendrier MG'!O22 -> BND | D8: 5 | E8: 0 | F8: SANO | G8: BND | I8: 1 | J8: MASS 1 | K8: Massillon 1 | L8: =COUNT(D5,D10,D13,D18,D21,D26,D29,D36,D44,D53,D63,D71,D76,D79,D84,D87,D92,D95,D102,D110,D119,D129) -> 22 | M8: 18 | N8: 3 | O8: 1 | P8: =SUM(E5,D10,D13,E18,D21,E26,E29,D36,D44,D53,D63,D71,E76,E79,D84,E87,D92,D95,E102,E110,E119,E129) -> 66 | Q8: =SUM(D5,E10,E13,D18,E21,D26,D29,E36,E44,E53,E63,E71,D76,D79,E84,D87,E92,E95,D102,D110,D119,D129) -> 7 | R8: 59 | S8: 79 | T8: 79596820
A9: 6 | B9: ='Calendrier MG'!N23 -> STAN 1 | C9: ='Calendrier MG'!O23 -> STAN 2 | D9: 0 | E9: 1 | F9: STAN 2 | G9: STAN 1 | I9: 6 | J9: MASS 2 | K9: Massillon 2 | L9: =COUNT(D7,D10,D15,D19,D22,D25,D28,D37,D45,D54,D64,D73,D76,D81,D85,D88,D91,D94,D103,D111,D120,D130) -> 22 | M9: 9 | N9: 3 | O9: 10 | P9: =SUM(D7,E10,D15,E19,D22,E25,E28,D37,D45,D54,D64,E73,D76,E81,D85,E88,D91,D94,E103,E111,E120,E130) -> 29 | Q9: =SUM(E7,D10,E15,D19,E22,D25,D28,E37,E45,E54,E64,D73,E76,D81,E85,D88,E91,E94,D103,D111,D120,D130) -> 40 | R9: -11 | S9: 52 | T9: =SUM(S9*1000000+R9*10000+P9*100+L9*10) -> 51893120
A10: 7 | B10: ='Calendrier MG'!N24 -> MASS 1 | C10: ='Calendrier MG'!O24 -> MASS 2 | D10: 4 | E10: 0 | F10: MASS 1 | G10: MASS 2 | I10: 4 | J10: FEN 1 | K10: Fénelon Sainte Marie 1 | L10: =COUNT(D6,D11,D15,D18,D23,D27,D30,D38,D46,D55,D65,D72,D77,D81,D84,D89,D93,D96,D104,D112,D121,D131) -> 22 | M10: 15 | N10: 4 | O10: 3 | P10: =SUM(D6,E11,E15,D18,E23,E27,D30,D38,D46,D55,D65,E72,D77,D81,E84,D89,D93,E96,E104,E112,E121,E131) -> 59 | Q10: =SUM(E6,D11,D15,E18,D23,D27,E30,E38,E46,E55,E65,D72,E77,E81,D84,E89,E93,D96,E104,D112,D121,D131) -> 22 | R10: 37 | S10: 71 | T10: 71376120
A11: 8 | B11: ='Calendrier MG'!N25 -> FEN 2 | C11: ='Calendrier MG'!O25 -> FEN 1 | D11: 0 | E11: 3 | F11: FEN 1 | G11: FEN 2 | I11: 11 | J11: FEN 2 | K11: Fénelon Sainte Marie 2 | L11: =COUNT(D7,D11,D14,D17,D20,D24,D29,D39,D47,D56,D66,D73,D80,D83,D86,D90,D95,D77,D105,D113,D122,D132) -> 22 | M11: 4 | N11: 3 | O11: 15 | P11: =SUM(E7,D11,D14,D17,E20,E24,D29,D39,D47,D56,D66,D73,E80,E83,D86,D90,E95,E77,E105,E113,E122,E132) -> 17 | Q11: =SUM(D7,E11,E14,E17,D20,D4,E29,E39,E47,E56,E66,E73,D80,D83,E86,E90,D95,D77,D105,D113,D122,D132) -> 49 | R11: -32 | S11: 37 | T11: 36681920
A12: 9 | B12: ='Calendrier MG'!N26 -> STAN 2 | C12: ='Calendrier MG'!O26 -> SANO | D12: 2 | E12: 1 | F12: =IF(D12<>"",IF(D12>E12,B12,IF(D12<E12,C12,"nul")),"") -> STAN 2 | G12: SANO | I12: 10 | J12: ASVP | K12: Saint Vincent de Paul | L12: =COUNT(D32,D33,D34,D36,D37,D35,D39,D38,D48,D57,D67,D103,D102,D100,D99,D98,D101,D105,D104,D114,D123,D133) -> 22 | M12: 5 | N12: 1 | O12: 16 | P12: =SUM(E32,E33,E34,E36,E37,E35,E39,E38,D48,D57,D67,D103,D102,D100,D99,D98,D101,D105,D104,E114,E123,E133) -> 22 | Q12: =SUM(D32,D33,D34,D36,D37,D35,D39,D38,E48,E57,E67,E103,E102,E100,E99,E98,E101,E105,E104,D114,D123,D133) -> 44 | R12: -22 | S12: 38 | T12: 37782420
A13: 10 | B13: ='Calendrier MG'!N27 -> MASS 1 | C13: ='Calendrier MG'!O27 -> BND | D13: 3 | E13: 0 | F13: MASS 1 | G13: BND | I13: 9 | J13: ROC | K13: Rocroy Saint Vincent | L13: =COUNT(D43,D44,D45,D46,D47,D42,D40,D41,D48,D58,D68,D108,D109,D110,D106,D111,D112,D113,D107,D114,D124,D134) -> 22 | M13: 6 | N13: 1 | O13: 15 | P13: =SUM(E43,E44,E45,E46,E47,E42,E40,E41,E48,D58,D68,D108,D109,D110,D106,D111,D112,D113,D107,D114,E124,E134) -> 26 | Q13: =SUM(D43,D44,D45,D46,D47,D42,D40,D41,D48,E58,E68,E108,E109,E110,E106,E111,E112,E113,E107,E114,D124,D134) -> 63 | R13: -37 | S13: 41 | T13: 40632820
A14: 11 | B14: ='Calendrier MG'!N28 -> FEN 2 | C14: ='Calendrier MG'!O28 -> STAN 1 | D14: 0 | E14: 4 | F14: STAN 1 | G14: FEN 2 | I14: 8 | J14: STAN 3 | K14: Stanislas 3 | L14: =COUNT(D52,D53,D56,D49,D51,D58,D54,D55,D50,D57,D69,D115,D117,D118,D119,D120,D121,D122,D123,D116,D124,D135) -> 22 | M14: 6 | N14: 3 | O14: 13 | P14: =SUM(E52,E53,E56,E49,E51,E58,E54,E55,E50,E57,D69,D115,D117,D118,D119,D120,D121,D122,D123,D116,D124,E135) -> 16 | Q14: =SUM(D52,D53,D56,D49,D51,D58,D54,D55,D50,D57,E69,E115,E117,E118,E119,E120,E121,E122,E123,E116,E124,D135) -> 40 | R14: -24 | S14: 43 | T14: 42761820
A15: 12 | B15: ='Calendrier MG'!N29 -> MASS 2 | C15: ='Calendrier MG'!O29 -> FEN 1 | D15: 0 | E15: 1 | F15: FEN 1 | G15: MASS 2 | I15: 12 | J15: JBS | K15: Jean Baptiste La Salle Saint-Denis | L15: =COUNT(D63,D64,D67,D68,D66,D59,D61,D62,D65,D60,D69,D132,D131,D133,D125,D127,D128,D129,D130,D134,D126,D135) -> 22 | M15: 1 | N15: 0 | O15: 21 | P15: =SUM(E63,E64,E67,E68,E66,E59,E61,E62,E65,E60,E69,D132,D131,D133,D125,D127,D128,D129,D130,D134,D126,D135) -> 11 | Q15: =SUM(D63,D64,D67,D68,D66,D59,D61,D62,D65,D60,D69,E132,E131,E133,E125,E127,E128,E129,E130,E134,E126,E135) -> 91 | R15: -80 | S15: 25 | T15: 24201320
A16: 13 | B16: ='Calendrier MG'!N30 -> STAN 2 | C16: ='Calendrier MG'!O30 -> BND | D16: 3 | E16: 1 | F16: STAN 2 | G16: BND
A17: 14 | B17: ='Calendrier MG'!N31 -> FEN 2 | C17: ='Calendrier MG'!O31 -> SANO | D17: 0 | E17: 4 | F17: SANO | G17: FEN 2
A18: 15 | B18: ='Calendrier MG'!N32 -> FEN 1 | C18: ='Calendrier MG'!O32 -> MASS 1 | D18: 0 | E18: 4 | F18: MASS 1 | G18: FEN 1 | I18: Classement | J18: SIGLE | K18: Etablissement | L18: Matchs joués | M18: Victoires | N18: Nuls | O18: Défaites | P18: Buts Pour | Q18: Buts Contre | R18: Différence | S18: Points
A19: 16 | B19: ='Calendrier MG'!N33 -> STAN 1 | C19: ='Calendrier MG'!O33 -> MASS 2 | D19: 2 | E19: 0 | F19: STAN 1 | G19: MASS 2 | I19: 1 | J19: =VLOOKUP($I19,$I$3:$S$15,COLUMNS($J18:J18)+1,FALSE) -> MASS 1 | K19: =VLOOKUP($I19,$I$3:$S$15,COLUMNS($J18:K18)+1,FALSE) -> Massillon 1 | L19: =VLOOKUP($I19,$I$3:$S$15,COLUMNS($J18:L18)+1,FALSE) -> 22 | M19: =VLOOKUP($I19,$I$3:$S$15,COLUMNS($J18:M18)+1,FALSE) -> 18 | N19: =VLOOKUP($I19,$I$3:$S$15,COLUMNS($J18:N18)+1,FALSE) -> 3 | O19: =VLOOKUP($I19,$I$3:$S$15,COLUMNS($J18:O18)+1,FALSE) -> 1 | P19: =VLOOKUP($I19,$I$3:$S$15,COLUMNS($J18:P18)+1,FALSE) -> 66 | Q19: =VLOOKUP($I19,$I$3:$S$15,COLUMNS($J18:Q18)+1,FALSE) -> 7 | R19: =VLOOKUP($I19,$I$3:$S$15,COLUMNS($J18:R18)+1,FALSE) -> 59 | S19: =VLOOKUP($I19,$I$3:$S$15,COLUMNS($J18:S18)+1,FALSE) -> 79
A20: 17 | B20: ='Calendrier MG'!N34 -> BND | C20: ='Calendrier MG'!O34 -> FEN 2 | D20: 5 | E20: 0 | F20: BND | G20: FEN 2 | I20: 2 | J20: =VLOOKUP($I20,$I$3:$S$15,COLUMNS($J19:J19)+1,FALSE) -> STAN 2 | K20: =VLOOKUP($I20,$I$3:$S$15,COLUMNS($J19:K19)+1,FALSE) -> Stanislas 2 | L20: =VLOOKUP($I20,$I$3:$S$15,COLUMNS($J19:L19)+1,FALSE) -> 22 | M20: =VLOOKUP($I20,$I$3:$S$15,COLUMNS($J19:M19)+1,FALSE) -> 19 | N20: =VLOOKUP($I20,$I$3:$S$15,COLUMNS($J19:N19)+1,FALSE) -> 0 | O20: =VLOOKUP($I20,$I$3:$S$15,COLUMNS($J19:O19)+1,FALSE) -> 3 | P20: =VLOOKUP($I20,$I$3:$S$15,COLUMNS($J19:P19)+1,FALSE) -> 62 | Q20: =VLOOKUP($I20,$I$3:$S$15,COLUMNS($J19:Q19)+1,FALSE) -> 12 | R20: =VLOOKUP($I20,$I$3:$S$15,COLUMNS($J19:R19)+1,FALSE) -> 50 | S20: =VLOOKUP($I20,$I$3:$S$15,COLUMNS($J19:S19)+1,FALSE) -> 79
A21: 18 | B21: ='Calendrier MG'!N35 -> MASS 1 | C21: ='Calendrier MG'!O35 -> STAN 2 | D21: 0 | E21: 1 | F21: STAN 2 | G21: MASS 1 | I21: 3 | J21: =VLOOKUP($I21,$I$3:$S$15,COLUMNS($J20:J20)+1,FALSE) -> SANO | K21: =VLOOKUP($I21,$I$3:$S$15,COLUMNS($J20:K20)+1,FALSE) -> Saint André de Nogent | L21: =VLOOKUP($I21,$I$3:$S$15,COLUMNS($J20:L20)+1,FALSE) -> 22 | M21: =VLOOKUP($I21,$I$3:$S$15,COLUMNS($J20:M20)+1,FALSE) -> 15 | N21: =VLOOKUP($I21,$I$3:$S$15,COLUMNS($J20:N20)+1,FALSE) -> 4 | O21: =VLOOKUP($I21,$I$3:$S$15,COLUMNS($J20:O20)+1,FALSE) -> 3 | P21: =VLOOKUP($I21,$I$3:$S$15,COLUMNS($J20:P20)+1,FALSE) -> 53 | Q21: =VLOOKUP($I21,$I$3:$S$15,COLUMNS($J20:Q20)+1,FALSE) -> 13 | R21: =VLOOKUP($I21,$I$3:$S$15,COLUMNS($J20:R20)+1,FALSE) -> 40 | S21: =VLOOKUP($I21,$I$3:$S$15,COLUMNS($J20:S20)+1,FALSE) -> 71
A22: 19 | B22: ='Calendrier MG'!N36 -> MASS 2 | C22: ='Calendrier MG'!O36 -> SANO | D22: 1 | E22: 3 | F22: SANO | G22: MASS 2 | I22: 4 | J22: =VLOOKUP($I22,$I$3:$S$15,COLUMNS($J21:J21)+1,FALSE) -> FEN 1 | K22: =VLOOKUP($I22,$I$3:$S$15,COLUMNS($J21:K21)+1,FALSE) -> Fénelon Sainte Marie 1 | L22: =VLOOKUP($I22,$I$3:$S$15,COLUMNS($J21:L21)+1,FALSE) -> 22 | M22: =VLOOKUP($I22,$I$3:$S$15,COLUMNS($J21:M21)+1,FALSE) -> 15 | N22: =VLOOKUP($I22,$I$3:$S$15,COLUMNS($J21:N21)+1,FALSE) -> 4 | O22: =VLOOKUP($I22,$I$3:$S$15,COLUMNS($J21:O21)+1,FALSE) -> 3 | P22: =VLOOKUP($I22,$I$3:$S$15,COLUMNS($J21:P21)+1,FALSE) -> 59 | Q22: =VLOOKUP($I22,$I$3:$S$15,COLUMNS($J21:Q21)+1,FALSE) -> 22 | R22: =VLOOKUP($I22,$I$3:$S$15,COLUMNS($J21:R21)+1,FALSE) -> 37 | S22: =VLOOKUP($I22,$I$3:$S$15,COLUMNS($J21:S21)+1,FALSE) -> 71
A23: 20 | B23: ='Calendrier MG'!N37 -> STAN 1 | C23: ='Calendrier MG'!O37 -> FEN 1 | D23: 2 | E23: 3 | F23: FEN 1 | G23: STAN 1 | I23: 5 | J23: =VLOOKUP($I23,$I$3:$S$15,COLUMNS($J22:J22)+1,FALSE) -> STAN 1 | K23: =VLOOKUP($I23,$I$3:$S$15,COLUMNS($J22:K22)+1,FALSE) -> Stanislas 1 | L23: =VLOOKUP($I23,$I$3:$S$15,COLUMNS($J22:L22)+1,FALSE) -> 22 | M23: =VLOOKUP($I23,$I$3:$S$15,COLUMNS($J22:M22)+1,FALSE) -> 15 | N23: =VLOOKUP($I23,$I$3:$S$15,COLUMNS($J22:N22)+1,FALSE) -> 1 | O23: =VLOOKUP($I23,$I$3:$S$15,COLUMNS($J22:O22)+1,FALSE) -> 6 | P23: =VLOOKUP($I23,$I$3:$S$15,COLUMNS($J22:P22)+1,FALSE) -> 55 | Q23: =VLOOKUP($I23,$I$3:$S$15,COLUMNS($J22:Q22)+1,FALSE) -> 12 | R23: =VLOOKUP($I23,$I$3:$S$15,COLUMNS($J22:R22)+1,FALSE) -> 43 | S23: =VLOOKUP($I23,$I$3:$S$15,COLUMNS($J22:S22)+1,FALSE) -> 68
A24: 21 | B24: ='Calendrier MG'!N38 -> STAN 2 | C24: ='Calendrier MG'!O38 -> FEN 2 | D24: 2 | E24: 0 | F24: STAN 2 | G24: FEN 2 | I24: 6 | J24: =VLOOKUP($I24,$I$3:$S$15,COLUMNS($J23:J23)+1,FALSE) -> MASS 2 | K24: =VLOOKUP($I24,$I$3:$S$15,COLUMNS($J23:K23)+1,FALSE) -> Massillon 2 | L24: =VLOOKUP($I24,$I$3:$S$15,COLUMNS($J23:L23)+1,FALSE) -> 22 | M24: =VLOOKUP($I24,$I$3:$S$15,COLUMNS($J23:M23)+1,FALSE) -> 9 | N24: =VLOOKUP($I24,$I$3:$S$15,COLUMNS($J23:N23)+1,FALSE) -> 3 | O24: =VLOOKUP($I24,$I$3:$S$15,COLUMNS($J23:O23)+1,FALSE) -> 10 | P24: =VLOOKUP($I24,$I$3:$S$15,COLUMNS($J23:P23)+1,FALSE) -> 29 | Q24: =VLOOKUP($I24,$I$3:$S$15,COLUMNS($J23:Q23)+1,FALSE) -> 40 | R24: =VLOOKUP($I24,$I$3:$S$15,COLUMNS($J23:R23)+1,FALSE) -> -11 | S24: =VLOOKUP($I24,$I$3:$S$15,COLUMNS($J23:S23)+1,FALSE) -> 52
A25: 22 | B25: ='Calendrier MG'!N39 -> BND | C25: ='Calendrier MG'!O39 -> MASS 2 | D25: 1 | E25: 2 | F25: =IF(D25<>"",IF(D25>E25,B25,IF(D25<E25,C25,"nul")),"") -> MASS 2 | G25: =IF(E25<>"",IF(E25<D25,C25,IF(E25>D25,B25,"nul")),"") -> BND | I25: 7 | J25: =VLOOKUP($I25,$I$3:$S$15,COLUMNS($J24:J24)+1,FALSE) -> BND | K25: =VLOOKUP($I25,$I$3:$S$15,COLUMNS($J24:K24)+1,FALSE) -> Bossuet Notre Dame | L25: =VLOOKUP($I25,$I$3:$S$15,COLUMNS($J24:L24)+1,FALSE) -> 22 | M25: =VLOOKUP($I25,$I$3:$S$15,COLUMNS($J24:M24)+1,FALSE) -> 6 | N25: =VLOOKUP($I25,$I$3:$S$15,COLUMNS($J24:N24)+1,FALSE) -> 4 | O25: =VLOOKUP($I25,$I$3:$S$15,COLUMNS($J24:O24)+1,FALSE) -> 12 | P25: =VLOOKUP($I25,$I$3:$S$15,COLUMNS($J24:P24)+1,FALSE) -> 25 | Q25: =VLOOKUP($I25,$I$3:$S$15,COLUMNS($J24:Q24)+1,FALSE) -> 49 | R25: =VLOOKUP($I25,$I$3:$S$15,COLUMNS($J24:R24)+1,FALSE) -> -24 | S25: =VLOOKUP($I25,$I$3:$S$15,COLUMNS($J24:S24)+1,FALSE) -> 44
A26: 23 | B26: ='Calendrier MG'!N40 -> STAN 1 | C26: ='Calendrier MG'!O40 -> MASS 1 | D26: 1 | E26: 2 | F26: MASS 1 | G26: STAN 1 | I26: 8 | J26: =VLOOKUP($I26,$I$3:$S$15,COLUMNS($J25:J25)+1,FALSE) -> STAN 3 | K26: =VLOOKUP($I26,$I$3:$S$15,COLUMNS($J25:K25)+1,FALSE) -> Stanislas 3 | L26: =VLOOKUP($I26,$I$3:$S$15,COLUMNS($J25:L25)+1,FALSE) -> 22 | M26: =VLOOKUP($I26,$I$3:$S$15,COLUMNS($J25:M25)+1,FALSE) -> 6 | N26: =VLOOKUP($I26,$I$3:$S$15,COLUMNS($J25:N25)+1,FALSE) -> 3 | O26: =VLOOKUP($I26,$I$3:$S$15,COLUMNS($J25:O25)+1,FALSE) -> 13 | P26: =VLOOKUP($I26,$I$3:$S$15,COLUMNS($J25:P25)+1,FALSE) -> 16 | Q26: =VLOOKUP($I26,$I$3:$S$15,COLUMNS($J25:Q25)+1,FALSE) -> 40 | R26: =VLOOKUP($I26,$I$3:$S$15,COLUMNS($J25:R25)+1,FALSE) -> -24 | S26: =VLOOKUP($I26,$I$3:$S$15,COLUMNS($J25:S25)+1,FALSE) -> 43
A27: 24 | B27: ='Calendrier MG'!N41 -> SANO | C27: ='Calendrier MG'!O41 -> FEN 1 | D27: 1 | E27: 0 | F27: SANO | G27: FEN 1 | I27: 9 | J27: =VLOOKUP($I27,$I$3:$S$15,COLUMNS($J26:J26)+1,FALSE) -> ROC | K27: =VLOOKUP($I27,$I$3:$S$15,COLUMNS($J26:K26)+1,FALSE) -> Rocroy Saint Vincent | L27: =VLOOKUP($I27,$I$3:$S$15,COLUMNS($J26:L26)+1,FALSE) -> 22 | M27: =VLOOKUP($I27,$I$3:$S$15,COLUMNS($J26:M26)+1,FALSE) -> 6 | N27: =VLOOKUP($I27,$I$3:$S$15,COLUMNS($J26:N26)+1,FALSE) -> 1 | O27: =VLOOKUP($I27,$I$3:$S$15,COLUMNS($J26:O26)+1,FALSE) -> 15 | P27: =VLOOKUP($I27,$I$3:$S$15,COLUMNS($J26:P26)+1,FALSE) -> 26 | Q27: =VLOOKUP($I27,$I$3:$S$15,COLUMNS($J26:Q26)+1,FALSE) -> 63 | R27: =VLOOKUP($I27,$I$3:$S$15,COLUMNS($J26:R26)+1,FALSE) -> -37 | S27: =VLOOKUP($I27,$I$3:$S$15,COLUMNS($J26:S26)+1,FALSE) -> 41
A28: 25 | B28: ='Calendrier MG'!N42 -> STAN 2 | C28: ='Calendrier MG'!O42 -> MASS 2 | D28: 1 | E28: 0 | F28: STAN 2 | G28: MASS 2 | I28: 10 | J28: =VLOOKUP($I28,$I$3:$S$15,COLUMNS($J27:J27)+1,FALSE) -> ASVP | K28: =VLOOKUP($I28,$I$3:$S$15,COLUMNS($J27:K27)+1,FALSE) -> Saint Vincent de Paul | L28: =VLOOKUP($I28,$I$3:$S$15,COLUMNS($J27:L27)+1,FALSE) -> 22 | M28: =VLOOKUP($I28,$I$3:$S$15,COLUMNS($J27:M27)+1,FALSE) -> 5 | N28: =VLOOKUP($I28,$I$3:$S$15,COLUMNS($J27:N27)+1,FALSE) -> 1 | O28: =VLOOKUP($I28,$I$3:$S$15,COLUMNS($J27:O27)+1,FALSE) -> 16 | P28: =VLOOKUP($I28,$I$3:$S$15,COLUMNS($J27:P27)+1,FALSE) -> 22 | Q28: =VLOOKUP($I28,$I$3:$S$15,COLUMNS($J27:Q27)+1,FALSE) -> 44 | R28: =VLOOKUP($I28,$I$3:$S$15,COLUMNS($J27:R27)+1,FALSE) -> -22 | S28: =VLOOKUP($I28,$I$3:$S$15,COLUMNS($J27:S27)+1,FALSE) -> 38
A29: 26 | B29: ='Calendrier MG'!N43 -> FEN 2 | C29: ='Calendrier MG'!O43 -> MASS 1 | D29: 0 | E29: 2 | F29: MASS 1 | G29: FEN 2 | I29: 11 | J29: =VLOOKUP($I29,$I$3:$S$15,COLUMNS($J28:J28)+1,FALSE) -> FEN 2 | K29: =VLOOKUP($I29,$I$3:$S$15,COLUMNS($J28:K28)+1,FALSE) -> Fénelon Sainte Marie 2 | L29: =VLOOKUP($I29,$I$3:$S$15,COLUMNS($J28:L28)+1,FALSE) -> 22 | M29: =VLOOKUP($I29,$I$3:$S$15,COLUMNS($J28:M28)+1,FALSE) -> 4 | N29: =VLOOKUP($I29,$I$3:$S$15,COLUMNS($J28:N28)+1,FALSE) -> 3 | O29: =VLOOKUP($I29,$I$3:$S$15,COLUMNS($J28:O28)+1,FALSE) -> 15 | P29: =VLOOKUP($I29,$I$3:$S$15,COLUMNS($J28:P28)+1,FALSE) -> 17 | Q29: =VLOOKUP($I29,$I$3:$S$15,COLUMNS($J28:Q28)+1,FALSE) -> 49 | R29: =VLOOKUP($I29,$I$3:$S$15,COLUMNS($J28:R28)+1,FALSE) -> -32 | S29: =VLOOKUP($I29,$I$3:$S$15,COLUMNS($J28:S28)+1,FALSE) -> 37
A30: 27 | B30: ='Calendrier MG'!N44 -> FEN 1 | C30: ='Calendrier MG'!O44 -> BND | D30: 2 | E30: 1 | F30: FEN 1 | G30: BND | I30: 12 | J30: =VLOOKUP($I30,$I$3:$S$15,COLUMNS($J29:J29)+1,FALSE) -> JBS | K30: =VLOOKUP($I30,$I$3:$S$15,COLUMNS($J29:K29)+1,FALSE) -> Jean Baptiste La Salle Saint-Denis | L30: =VLOOKUP($I30,$I$3:$S$15,COLUMNS($J29:L29)+1,FALSE) -> 22 | M30: =VLOOKUP($I30,$I$3:$S$15,COLUMNS($J29:M29)+1,FALSE) -> 1 | N30: =VLOOKUP($I30,$I$3:$S$15,COLUMNS($J29:N29)+1,FALSE) -> 0 | O30: =VLOOKUP($I30,$I$3:$S$15,COLUMNS($J29:O29)+1,FALSE) -> 21 | P30: =VLOOKUP($I30,$I$3:$S$15,COLUMNS($J29:P29)+1,FALSE) -> 11 | Q30: =VLOOKUP($I30,$I$3:$S$15,COLUMNS($J29:Q29)+1,FALSE) -> 91 | R30: =VLOOKUP($I30,$I$3:$S$15,COLUMNS($J29:R29)+1,FALSE) -> -80 | S30: =VLOOKUP($I30,$I$3:$S$15,COLUMNS($J29:S29)+1,FALSE) -> 25
A31: 28 | B31: ='Calendrier MG'!N45 -> SANO | C31: ='Calendrier MG'!O45 -> STAN 1 | D31: 0 | E31: 1 | F31: STAN 1 | G31: SANO
A32: 29 | B32: ='Calendrier MG'!N46 -> SANO | C32: ='Calendrier MG'!O46 -> ASVP | D32: 3 | E32: 1 | F32: SANO | G32: ASVP
A33: 30 | B33: ='Calendrier MG'!N47 -> BND | C33: ='Calendrier MG'!O47 -> ASVP | D33: 1 | E33: 0 | F33: BND | G33: ASVP
A34: 31 | B34: ='Calendrier MG'!N48 -> STAN 1 | C34: ='Calendrier MG'!O48 -> ASVP | D34: 1 | E34: 0 | F34: STAN 1 | G34: ASVP
A35: 32 | B35: ='Calendrier MG'!N49 -> STAN 2 | C35: ='Calendrier MG'!O49 -> ASVP | D35: 3 | E35: 1 | F35: STAN 2 | G35: ASVP
A36: 33 | B36: ='Calendrier MG'!N50 -> MASS 1 | C36: ='Calendrier MG'!O50 -> ASVP | D36: 3 | E36: 0 | F36: MASS 1 | G36: ASVP
A37: 34 | B37: ='Calendrier MG'!N51 -> MASS 2 | C37: ='Calendrier MG'!O51 -> ASVP | D37: 2 | E37: 0 | F37: MASS 2 | G37: ASVP
A38: 35 | B38: ='Calendrier MG'!N52 -> FEN 1 | C38: ='Calendrier MG'!O52 -> ASVP | D38: 5 | E38: 1 | F38: FEN 1 | G38: ASVP
A39: 36 | B39: ='Calendrier MG'!N53 -> FEN 2 | C39: ='Calendrier MG'!O53 -> ASVP | D39: 0 | E39: 2 | F39: ASVP | G39: FEN 2
A40: 37 | B40: ='Calendrier MG'!N54 -> SANO | C40: ='Calendrier MG'!O54 -> ROC | D40: 6 | E40: 0 | F40: SANO | G40: ROC
A41: 38 | B41: ='Calendrier MG'!N55 -> BND | C41: ='Calendrier MG'!O55 -> ROC | D41: 4 | E41: 1 | F41: BND | G41: ROC
A42: 39 | B42: ='Calendrier MG'!N56 -> STAN 1 | C42: ='Calendrier MG'!O56 -> ROC | D42: 5 | E42: 0 | F42: STAN 1 | G42: ROC
A43: 40 | B43: ='Calendrier MG'!N57 -> STAN 2 | C43: ='Calendrier MG'!O57 -> ROC | D43: 6 | E43: 0 | F43: STAN 2 | G43: ROC
A44: 41 | B44: ='Calendrier MG'!N58 -> MASS 1 | C44: ='Calendrier MG'!O58 -> ROC | D44: 4 | E44: 0 | F44: MASS 1 | G44: ROC
A45: 42 | B45: ='Calendrier MG'!N59 -> MASS 2 | C45: ='Calendrier MG'!O59 -> ROC | D45: 1 | E45: 3 | F45: ROC | G45: MASS 2
A46: 43 | B46: ='Calendrier MG'!N60 -> FEN 1 | C46: ='Calendrier MG'!O60 -> ROC | D46: 6 | E46: 1 | F46: FEN 1 | G46: ROC
A47: 44 | B47: ='Calendrier MG'!N61 -> FEN 2 | C47: ='Calendrier MG'!O61 -> ROC | D47: 0 | E47: 1 | F47: ROC | G47: FEN 2
A48: 45 | B48: ='Calendrier MG'!N62 -> ASVP | C48: ='Calendrier MG'!O62 -> ROC | D48: 0 | E48: 3 | F48: ROC | G48: ASVP
A49: 46 | B49: ='Calendrier MG'!N63 -> SANO | C49: ='Calendrier MG'!O63 -> STAN 3 | D49: 2 | E49: 0 | F49: SANO | G49: STAN 3
A50: 47 | B50: ='Calendrier MG'!N64 -> BND | C50: ='Calendrier MG'!O64 -> STAN 3 | D50: 1 | E50: 2 | F50: STAN 3 | G50: BND
A51: 48 | B51: ='Calendrier MG'!N65 -> STAN 1 | C51: ='Calendrier MG'!O65 -> STAN 3 | D51: 2 | E51: 0 | F51: STAN 1 | G51: STAN 3
A52: 49 | B52: ='Calendrier MG'!N66 -> STAN 2 | C52: ='Calendrier MG'!O66 -> STAN 3 | D52: 1 | E52: 0 | F52: STAN 2 | G52: STAN 3
A53: 50 | B53: ='Calendrier MG'!N67 -> MASS 1 | C53: ='Calendrier MG'!O67 -> STAN 3 | D53: 2 | E53: 0 | F53: MASS 1 | G53: STAN 3
A54: 51 | B54: ='Calendrier MG'!N68 -> MASS 2 | C54: ='Calendrier MG'!O68 -> STAN 3 | D54: 2 | E54: 0 | F54: MASS 2 | G54: STAN 3
A55: 52 | B55: ='Calendrier MG'!N69 -> FEN 1 | C55: ='Calendrier MG'!O69 -> STAN 3 | D55: 4 | E55: 0 | F55: FEN 1 | G55: STAN 3
A56: 53 | B56: ='Calendrier MG'!N70 -> FEN 2 | C56: ='Calendrier MG'!O70 -> STAN 3 | D56: 2 | E56: 0 | F56: FEN 2 | G56: STAN 3
A57: 54 | B57: ='Calendrier MG'!N71 -> ASVP | C57: ='Calendrier MG'!O71 -> STAN 3 | D57: 1 | E57: 2 | F57: STAN 3 | G57: ASVP
A58: 55 | B58: ='Calendrier MG'!N72 -> ROC | C58: ='Calendrier MG'!O72 -> STAN 3 | D58: 0 | E58: 1 | F58: STAN 3 | G58: ROC
A59: 56 | B59: ='Calendrier MG'!N73 -> SANO | C59: ='Calendrier MG'!O73 -> JBS | D59: 3 | E59: 0 | F59: SANO | G59: JBS
A60: 57 | B60: ='Calendrier MG'!N74 -> BND | C60: ='Calendrier MG'!O74 -> JBS | D60: 3 | E60: 0 | F60: BND | G60: JBS
A61: 58 | B61: ='Calendrier MG'!N75 -> STAN 1 | C61: ='Calendrier MG'!O75 -> JBS | D61: 5 | E61: 0 | F61: STAN 1 | G61: JBS
A62: 59 | B62: ='Calendrier MG'!N76 -> STAN 2 | C62: ='Calendrier MG'!O76 -> JBS | D62: 7 | E62: 0 | F62: STAN 2 | G62: JBS
A63: 60 | B63: ='Calendrier MG'!N77 -> MASS 1 | C63: ='Calendrier MG'!O77 -> JBS | D63: 6 | E63: 0 | F63: MASS 1 | G63: JBS
A64: 61 | B64: ='Calendrier MG'!N78 -> MASS 2 | C64: ='Calendrier MG'!O78 -> JBS | D64: 0 | E64: 8 | F64: JBS | G64: MASS 2
A65: 62 | B65: ='Calendrier MG'!N79 -> FEN 1 | C65: ='Calendrier MG'!O79 -> JBS | D65: 5 | E65: 0 | F65: FEN 1 | G65: JBS
A66: 63 | B66: ='Calendrier MG'!N80 -> FEN 2 | C66: ='Calendrier MG'!O80 -> JBS | D66: 5 | E66: 1 | F66: FEN 2 | G66: JBS
A67: 64 | B67: ='Calendrier MG'!N81 -> ASVP | C67: ='Calendrier MG'!O81 -> JBS | D67: 8 | E67: 1 | F67: ASVP | G67: JBS
A68: 65 | B68: ='Calendrier MG'!N82 -> ROC | C68: ='Calendrier MG'!O82 -> JBS | D68: 6 | E68: 1 | F68: ROC | G68: JBS
A69: 66 | B69: ='Calendrier MG'!N83 -> STAN 3 | C69: ='Calendrier MG'!O83 -> JBS | D69: 3 | E69: 0 | F69: STAN 3 | G69: JBS
A70: 67 | B70: ='Calendrier MG'!N84 -> STAN 1 | C70: ='Calendrier MG'!O84 -> BND | D70: 4 | E70: 0 | F70: STAN 1 | G70: BND
A71: 68 | B71: ='Calendrier MG'!N85 -> MASS 1 | C71: ='Calendrier MG'!O85 -> SANO | D71: 2 | E71: 2 | F71: nul | G71: nul
A72: 69 | B72: ='Calendrier MG'!N86 -> STAN 2 | C72: ='Calendrier MG'!O86 -> FEN 1 | D72: 0 | E72: 1 | F72: FEN 1 | G72: STAN 2
A73: 70 | B73: ='Calendrier MG'!N87 -> FEN 2 | C73: ='Calendrier MG'!O87 -> MASS 2 | D73: 2 | E73: 3 | F73: MASS 2 | G73: FEN 2
A74: 71 | B74: ='Calendrier MG'!N88 -> BND | C74: ='Calendrier MG'!O88 -> SANO | D74: 0 | E74: 0 | F74: nul | G74: nul
A75: 72 | B75: ='Calendrier MG'!N89 -> STAN 2 | C75: ='Calendrier MG'!O89 -> STAN 1 | D75: 1 | E75: 0 | F75: STAN 2 | G75: STAN 1
A76: 73 | B76: ='Calendrier MG'!N90 -> MASS 2 | C76: ='Calendrier MG'!O90 -> MASS 1 | D76: 0 | E76: 4 | F76: MASS 1 | G76: MASS 2
A77: 74 | B77: ='Calendrier MG'!N91 -> FEN 1 | C77: ='Calendrier MG'!O91 -> FEN 2 | D77: 3 | E77: 0 | F77: FEN 1 | G77: FEN 2
A78: 75 | B78: ='Calendrier MG'!N92 -> SANO | C78: ='Calendrier MG'!O92 -> STAN 2 | D78: 2 | E78: 4 | F78: STAN 2 | G78: SANO
A79: 76 | B79: ='Calendrier MG'!N93 -> BND | C79: ='Calendrier MG'!O93 -> MASS 1 | D79: 0 | E79: 4 | F79: MASS 1 | G79: BND
A80: 77 | B80: ='Calendrier MG'!N94 -> STAN 1 | C80: ='Calendrier MG'!O94 -> FEN 2 | D80: 3 | E80: 0 | F80: STAN 1 | G80: FEN 2
A81: 78 | B81: ='Calendrier MG'!N95 -> FEN 1 | C81: ='Calendrier MG'!O95 -> MASS 2 | D81: 4 | E81: 4 | F81: nul | G81: nul
A82: 79 | B82: ='Calendrier MG'!N96 -> BND | C82: ='Calendrier MG'!O96 -> STAN 2 | D82: 1 | E82: 8 | F82: STAN 2 | G82: BND
A83: 80 | B83: ='Calendrier MG'!N97 -> SANO | C83: ='Calendrier MG'!O97 -> FEN 2 | D83: 3 | E83: 0 | F83: SANO | G83: FEN 2
A84: 81 | B84: ='Calendrier MG'!N98 -> MASS 1 | C84: ='Calendrier MG'!O98 -> FEN 1 | D84: 2 | E84: 2 | F84: nul | G84: nul
A85: 82 | B85: ='Calendrier MG'!N99 -> MASS 2 | C85: ='Calendrier MG'!O99 -> STAN 1 | D85: 0 | E85: 1 | F85: STAN 1 | G85: MASS 2
A86: 83 | B86: ='Calendrier MG'!N100 -> FEN 2 | C86: ='Calendrier MG'!O100 -> BND | D86: 0 | E86: 0 | F86: nul | G86: nul
A87: 84 | B87: ='Calendrier MG'!N101 -> STAN 2 | C87: ='Calendrier MG'!O101 -> MASS 1 | D87: 0 | E87: 2 | F87: MASS 1 | G87: STAN 2
A88: 85 | B88: ='Calendrier MG'!N102 -> SANO | C88: ='Calendrier MG'!O102 -> MASS 2 | D88: 1 | E88: 1 | F88: nul | G88: nul
A89: 86 | B89: ='Calendrier MG'!N103 -> FEN 1 | C89: ='Calendrier MG'!O103 -> STAN 1 | D89: 0 | E89: 0 | F89: =IF(D89<>"",IF(D89>E89,B89,IF(D89<E89,C89,"nul")),"") -> nul | G89: =IF(E89<>"",IF(E89<D89,C89,IF(E89>D89,B89,"nul")),"") -> nul
A90: 87 | B90: ='Calendrier MG'!N104 -> FEN 2 | C90: ='Calendrier MG'!O104 -> STAN 2 | D90: 0 | E90: 3 | F90: STAN 2 | G90: FEN 2
A91: 88 | B91: ='Calendrier MG'!N105 -> MASS 2 | C91: ='Calendrier MG'!O105 -> BND | D91: 3 | E91: 1 | F91: MASS 2 | G91: BND
A92: 89 | B92: ='Calendrier MG'!N106 -> MASS 1 | C92: ='Calendrier MG'!O106 -> STAN 1 | D92: 1 | E92: 0 | F92: MASS 1 | G92: STAN 1
A93: 90 | B93: ='Calendrier MG'!N107 -> FEN 1 | C93: ='Calendrier MG'!O107 -> SANO | D93: 0 | E93: 1 | F93: SANO | G93: FEN 1
A94: 91 | B94: ='Calendrier MG'!N108 -> MASS 2 | C94: ='Calendrier MG'!O108 -> STAN 2 | D94: 0 | E94: 4 | F94: STAN 2 | G94: MASS 2
A95: 92 | B95: ='Calendrier MG'!N109 -> MASS 1 | C95: ='Calendrier MG'!O109 -> FEN 2 | D95: 6 | E95: 0 | F95: MASS 1 | G95: FEN 2
A96: 93 | B96: ='Calendrier MG'!N110 -> BND | C96: ='Calendrier MG'!O110 -> FEN 1 | D96: 1 | E96: 1 | F96: nul | G96: nul
A97: 94 | B97: ='Calendrier MG'!N111 -> STAN 1 | C97: ='Calendrier MG'!O111 -> SANO | D97: 0 | E97: 3 | F97: SANO | G97: STAN 1
A98: 95 | B98: ='Calendrier MG'!N112 -> ASVP | C98: ='Calendrier MG'!O112 -> SANO | D98: 1 | E98: 3 | F98: SANO | G98: ASVP
A99: 96 | B99: ='Calendrier MG'!N113 -> ASVP | C99: ='Calendrier MG'!O113 -> BND | D99: 0 | E99: 1 | F99: BND | G99: ASVP
A100: 97 | B100: ='Calendrier MG'!N114 -> ASVP | C100: ='Calendrier MG'!O114 -> STAN 1 | D100: 0 | E100: 4 | F100: STAN 1 | G100: ASVP
A101: 98 | B101: ='Calendrier MG'!N115 -> ASVP | C101: ='Calendrier MG'!O115 -> STAN 2 | D101: 1 | E101: 3 | F101: STAN 2 | G101: ASVP
A102: 99 | B102: ='Calendrier MG'!N116 -> ASVP | C102: ='Calendrier MG'!O116 -> MASS 1 | D102: 0 | E102: 3 | F102: MASS 1 | G102: ASVP
A103: 100 | B103: ='Calendrier MG'!N117 -> ASVP | C103: ='Calendrier MG'!O117 -> MASS 2 | D103: 0 | E103: 2 | F103: MASS 2 | G103: ASVP
A104: 101 | B104: ='Calendrier MG'!N118 -> ASVP | C104: ='Calendrier MG'!O118 -> FEN 1 | D104: 0 | E104: 3 | F104: FEN 1 | G104: ASVP
A105: 102 | B105: ='Calendrier MG'!N119 -> ASVP | C105: ='Calendrier MG'!O119 -> FEN 2 | D105: 1 | E105: 0 | F105: ASVP | G105: FEN 2
A106: 103 | B106: ='Calendrier MG'!N120 -> ROC | C106: ='Calendrier MG'!O120 -> SANO | D106: 0 | E106: 4 | F106: SANO | G106: ROC
A107: 104 | B107: ='Calendrier MG'!N121 -> ROC | C107: ='Calendrier MG'!O121 -> BND | D107: 1 | E107: 1 | F107: nul | G107: nul
A108: 105 | B108: ='Calendrier MG'!N122 -> ROC | C108: ='Calendrier MG'!O122 -> STAN 1 | D108: 0 | E108: 5 | F108: STAN 1 | G108: ROC
A109: 106 | B109: ='Calendrier MG'!N123 -> ROC | C109: ='Calendrier MG'!O123 -> STAN 2 | D109: 0 | E109: 6 | F109: STAN 2 | G109: ROC
A110: 107 | B110: ='Calendrier MG'!N124 -> ROC | C110: ='Calendrier MG'!O124 -> MASS 1 | D110: 0 | E110: 3 | F110: MASS 1 | G110: ROC
A111: 108 | B111: ='Calendrier MG'!N125 -> ROC | C111: ='Calendrier MG'!O125 -> MASS 2 | D111: 0 | E111: 3 | F111: MASS 2 | G111: ROC
A112: 109 | B112: ='Calendrier MG'!N126 -> ROC | C112: ='Calendrier MG'!O126 -> FEN 1 | D112: 1 | E112: 2 | F112: FEN 1 | G112: ROC
A113: 110 | B113: ='Calendrier MG'!N127 -> ROC | C113: ='Calendrier MG'!O127 -> FEN 2 | D113: 2 | E113: 4 | F113: FEN 2 | G113: ROC
A114: 111 | B114: ='Calendrier MG'!N128 -> ROC | C114: ='Calendrier MG'!O128 -> ASVP | D114: 0 | E114: 1 | F114: ASVP | G114: ROC
A115: 112 | B115: ='Calendrier MG'!N129 -> STAN 3 | C115: ='Calendrier MG'!O129 -> SANO | D115: 0 | E115: 3 | F115: SANO | G115: STAN 3
A116: 113 | B116: ='Calendrier MG'!N130 -> STAN 3 | C116: ='Calendrier MG'!O130 -> BND | D116: 1 | E116: 0 | F116: STAN 3 | G116: BND
A117: 114 | B117: ='Calendrier MG'!N131 -> STAN 3 | C117: ='Calendrier MG'!O131 -> STAN 1 | D117: 1 | E117: 3 | F117: STAN 1 | G117: STAN 3
A118: 115 | B118: ='Calendrier MG'!N132 -> STAN 3 | C118: ='Calendrier MG'!O132 -> STAN 2 | D118: 0 | E118: 3 | F118: STAN 2 | G118: STAN 3
A119: 116 | B119: ='Calendrier MG'!N133 -> STAN 3 | C119: ='Calendrier MG'!O133 -> MASS 1 | D119: 1 | E119: 6 | F119: MASS 1 | G119: STAN 3
A120: 117 | B120: ='Calendrier MG'!N134 -> STAN 3 | C120: ='Calendrier MG'!O134 -> MASS 2 | D120: 0 | E120: 0 | F120: nul | G120: nul
A121: 118 | B121: ='Calendrier MG'!N135 -> STAN 3 | C121: ='Calendrier MG'!O135 -> FEN 1 | D121: 0 | E121: 3 | F121: FEN 1 | G121: STAN 3
A122: 119 | B122: ='Calendrier MG'!N136 -> STAN 3 | C122: ='Calendrier MG'!O136 -> FEN 2 | D122: 1 | E122: 1 | F122: nul | G122: nul
A123: 120 | B123: ='Calendrier MG'!N137 -> STAN 3 | C123: ='Calendrier MG'!O137 -> ASVP | D123: 1 | E123: 1 | F123: nul | G123: nul
A124: 121 | B124: ='Calendrier MG'!N138 -> STAN 3 | C124: ='Calendrier MG'!O138 -> ROC | D124: 0 | E124: 3 | F124: ROC | G124: STAN 3
A125: 122 | B125: ='Calendrier MG'!N139 -> JBS | C125: ='Calendrier MG'!O139 -> SANO | D125: 0 | E125: 3 | F125: SANO | G125: JBS
A126: 123 | B126: ='Calendrier MG'!N140 -> JBS | C126: ='Calendrier MG'!O140 -> BND | D126: 0 | E126: 3 | F126: BND | G126: JBS
A127: 124 | B127: ='Calendrier MG'!N141 -> JBS | C127: ='Calendrier MG'!O141 -> STAN 1 | D127: 0 | E127: 3 | F127: STAN 1 | G127: JBS
A128: 125 | B128: ='Calendrier MG'!N142 -> JBS | C128: ='Calendrier MG'!O142 -> STAN 2 | D128: 0 | E128: 3 | F128: STAN 2 | G128: JBS
A129: 126 | B129: ='Calendrier MG'!N143 -> JBS | C129: ='Calendrier MG'!O143 -> MASS 1 | D129: 0 | E129: 3 | F129: MASS 1 | G129: JBS
A130: 127 | B130: ='Calendrier MG'!N144 -> JBS | C130: ='Calendrier MG'!O144 -> MASS 2 | D130: 0 | E130: 3 | F130: MASS 2 | G130: JBS
A131: 128 | B131: ='Calendrier MG'!N145 -> JBS | C131: ='Calendrier MG'!O145 -> FEN 1 | D131: 0 | E131: 9 | F131: FEN 1 | G131: JBS
A132: 129 | B132: ='Calendrier MG'!N146 -> JBS | C132: ='Calendrier MG'!O146 -> FEN 2 | D132: 0 | E132: 3 | F132: FEN 2 | G132: JBS
A133: 130 | B133: ='Calendrier MG'!N147 -> JBS | C133: ='Calendrier MG'!O147 -> ASVP | D133: 0 | E133: 3 | F133: ASVP | G133: JBS
A134: 131 | B134: ='Calendrier MG'!N148 -> JBS | C134: ='Calendrier MG'!O148 -> ROC | D134: 0 | E134: 4 | F134: ROC | G134: JBS
A135: 132 | B135: ='Calendrier MG'!N149 -> JBS | C135: ='Calendrier MG'!O149 -> STAN 3 | D135: 0 | E135: 3 | F135: STAN 3 | G135: JBS

Sheet Calendriers CG et JG
B1: CALENDRIER CADETS et JUNIORS | K1: POULES ET MATCHS CADETS ET JUNIORS
A2: Date | B2: Match | C2: Equipe A | D2: Equipe B | E2: Lieux | F2: Horaires | G2: Résultats | I2: Indisponibilités | K2: CADETS
A3: 2021-11-17 | B3: LYCEE | K3: Etablissements
B4: 1 | C4: =VLOOKUP($B4,$K$11:$O$41,4) -> RS | D4: =VLOOKUP($B4,$K$11:$O$41,5) -> MASS | E4: La Courneuve 1/2 T12 | F4: 14h | G4: 0 | H4: 2 | K4: 1 | L4: RS
B5: 3 | C5: =VLOOKUP($B5,$K$11:$O$41,4) -> RS (JG) | D5: =VLOOKUP($B5,$K$11:$O$41,5) -> MASS (JG) | F5: 14h30 | G5: 0 | H5: 0 | K5: 2 | L5: MASS
B6: 15 | C6: =VLOOKUP($B6,$K$11:$O$41,4) -> MASS | D6: =VLOOKUP($B6,$K$11:$O$41,5) -> SMP | F6: 15h | G6: 2 | H6: 0 | K6: 3 | L6: SMP
K7: 4
K8: 5 | L8: RS (JG)
K9: 6 | L9: MASS (JG)
A10: 2021-11-24 | B10: LYCEE
B11: CROSS IDF | K11: N° Match | L11: Equipe A | M11: Equipe B | N11: Match
K12: 1 | L12: 1 | M12: 2 | N12: =VLOOKUP(L12,$K$2:$L$9,2) -> RS | O12: =VLOOKUP(M12,$K$2:$L$9,2) -> MASS
K13: 2 | L13: 3 | M13: 4 | N13: =VLOOKUP(L13,$K$2:$L$9,2) -> SMP | O13: =VLOOKUP(M13,$K$2:$L$9,2) -> 0
K14: 3 | L14: 5 | M14: 6 | N14: RS (JG) | O14: MASS (JG)
K15: 4 | L15: 1 | M15: 4 | N15: RS | O15: 0
K16: 5 | L16: 2 | M16: 5 | N16: MASS | O16: RS (JG)
K17: 6 | L17: 3 | M17: 6 | N17: SMP | O17: MASS (JG)
K18: 7 | L18: 2 | M18: 4 | N18: MASS | O18: 0
A19: 1 dec | B19: LYCEE | K19: 8 | L19: 1 | M19: 6 | N19: RS | O19: MASS (JG)
K20: 9 | L20: 3 | M20: 5 | N20: SMP | O20: RS (JG)
K21: 10 | L21: 2 | M21: 6 | N21: MASS | O21: MASS (JG)
K22: 11 | L22: 4 | M22: 5 | N22: 0 | O22: RS (JG)
K23: 12 | L23: 1 | M23: 3 | N23: RS | O23: SMP
K24: 13 | L24: 4 | M24: 6 | N24: 0 | O24: MASS (JG)
K25: 14 | L25: 1 | M25: 5 | N25: RS | O25: RS (JG)
K26: 15 | L26: 2 | M26: 3 | N26: MASS | O26: SMP
K27: 16 | L27: 2 | M27: 1 | N27: MASS | O27: RS
A28: 8 dec | B28: LYCEE | K28: 17 | L28: 4 | M28: 3 | N28: 0 | O28: SMP
B29: 12 | C29: =VLOOKUP($B29,$K$11:$O$41,4) -> RS | D29: =VLOOKUP($B29,$K$11:$O$41,5) -> SMP | E29: La Courneuve 1/2 T12 | F29: 14h | G29: 0 | H29: 3 | K29: 18 | L29: 6 | M29: 5 | N29: MASS (JG) | O29: RS (JG)
B30: 16 | C30: =VLOOKUP($B30,$K$11:$O$41,4) -> MASS | D30: =VLOOKUP($B30,$K$11:$O$41,5) -> RS | F30: 14h30 | G30: 2 | H30: 0 | K30: 19 | L30: 4 | M30: 1 | N30: 0 | O30: RS
B31: 18 | C31: MASS (JG) | D31: RS (JG) | F31: 15h | G31: 2 | H31: 0 | K31: 20 | L31: 5 | M31: 2 | N31: RS (JG) | O31: MASS
B32: 30 | C32: SMP | D32: MASS | F32: 15h30 | G32: 0 | H32: 2 | K32: 21 | L32: 6 | M32: 3 | N32: MASS (JG) | O32: SMP
B33: 27 | C33: SMP | D33: RS | F33: 16h | G33: 2 | H33: 0 | K33: 22 | L33: 4 | M33: 2 | N33: 0 | O33: MASS
K34: 23 | L34: 6 | M34: 1 | N34: MASS (JG) | O34: RS
K35: 24 | L35: 5 | M35: 3 | N35: RS (JG) | O35: SMP
K36: 25 | L36: 6 | M36: 2 | N36: MASS (JG) | O36: MASS
A37: 15 dec | B37: LYCEE | K37: 26 | L37: 5 | M37: 4 | N37: RS (JG) | O37: 0
I38: SMP | K38: 27 | L38: 3 | M38: 1 | N38: SMP | O38: RS
K39: 28 | L39: 6 | M39: 4 | N39: MASS (JG) | O39: 0
K40: 29 | L40: 5 | M40: 1 | N40: RS (JG) | O40: RS
K41: 30 | L41: 3 | M41: 2 | N41: SMP | O41: MASS
A46: 2022-01-26 | B46: LYCEE | L46: Territoire CG 19 janvier
B47: TERRITOIRE CG PROMO / JG PROMO T3 La Courneuve | L47: Territoire JG 26 janvier

Sheet Cls CG et JG
A1: CADETS PROMO | J1: SIGLE | K1: Etablissement | L1: Matchs joués | M1: Victoires | N1: Nuls | O1: Défaites | P1: Buts Pour | Q1: Buts Contre | R1: Différence | S1: Points
I2: =RANK(T2,$T$2:$T$4) -> 3 | J2: RS | K2: Robert Schuman | L2: =COUNT(D4,D19,D30,D15) -> 4 | M2: =COUNTIF($F$3:$F$33,J2) -> 0 | N2: =L2-M2-O2 -> 0 | O2: =COUNTIF($G$3:$G$33,J2) -> 4 | P2: =SUM(D4,E19,E30,D15) -> 0 | Q2: =SUM(E4,D19,D30,E15) -> 9 | R2: =P2-Q2 -> -9 | S2: =M2*4+N2*2+O2*1 -> 4 | T2: =SUM(S2*1000000+R2*10000+P2*100+L2*10) -> 3910040
A3: N° Match | B3: Equipe A | C3: Equipe B | D3: Scores | F3: Vainqueur | G3: Perdant | I3: =RANK(T3,$T$2:$T$4) -> 1 | J3: MASS | K3: Massillon | L3: =COUNT(D4,D18,D33,D19) -> 4 | M3: =COUNTIF($F$3:$F$33,J3) -> 4 | N3: 0 | O3: =COUNTIF($G$3:$G$33,J3) -> 0 | P3: =SUM(E4,D18,E33,D19) -> 8 | Q3: =SUM(D4,E18,D33,E19) -> 0 | R3: =P3-Q3 -> 8 | S3: =M3*4+N3*2+O3*1 -> 16 | T3: =SUM(S3*1000000+R3*10000+P3*100+L3*10) -> 16080840
A4: 1 | B4: ='Calendriers CG et JG'!N12 -> RS | C4: ='Calendriers CG et JG'!O12 -> MASS | D4: 0 | E4: 2 | F4: =IF(D4<>"",IF(D4>E4,B4,IF(D4<E4,C4,"nul")),"") -> MASS | G4: =IF(E4<>"",IF(E4<D4,C4,IF(E4>D4,B4,"nul")),"") -> RS | I4: =RANK(T4,$T$2:$T$4) -> 2 | J4: SMP | K4: Saint Michel de Picpus | L4: =COUNT(D18,D15,D30,D33) -> 4 | M4: 2 | N4: 0 | O4: 2 | P4: =SUM(E18,E15,D30,D33) -> 5 | Q4: =SUM(D18,D15,E30,E33) -> 4 | R4: =P4-Q4 -> 1 | S4: 10 | T4: =SUM(S4*1000000+R4*10000+P4*100+L4*10) -> 10010540
A5: 2 | B5: ='Calendriers CG et JG'!N13 -> SMP | C5: ='Calendriers CG et JG'!O13 -> 0 | F5: =IF(D5<>"",IF(D5>E5,B5,IF(D5<E5,C5,"nul")),"") ->  | G5: =IF(E5<>"",IF(E5<D5,C5,IF(E5>D5,B5,"nul")),"") -> 
A6: 3 | B6: ='Calendriers CG et JG'!N14 -> RS (JG) | C6: ='Calendriers CG et JG'!O14 -> MASS (JG) | D6: 0 | E6: 0 | F6: nul | G6: nul
A7: 4 | B7: ='Calendriers CG et JG'!N15 -> RS | C7: ='Calendriers CG et JG'!O15 -> 0 | I7: Classement | J7: SIGLE | K7: Etablissement | L7: Matchs joués | M7: Victoires | N7: Nuls | O7: Défaites | P7: Buts Pour | Q7: Buts Contre | R7: Différence | S7: Points
A8: 5 | B8: ='Calendriers CG et JG'!N16 -> MASS | C8: ='Calendriers CG et JG'!O16 -> RS (JG) | I8: 1 | J8: =VLOOKUP($I8,$I$2:$T$5,COLUMNS($J7:J7)+1,FALSE) -> MASS | K8: =VLOOKUP($I8,$I$2:$T$5,COLUMNS($J7:K7)+1,FALSE) -> Massillon | L8: =VLOOKUP($I8,$I$2:$T$5,COLUMNS($J7:L7)+1,FALSE) -> 4 | M8: =VLOOKUP($I8,$I$2:$T$5,COLUMNS($J7:M7)+1,FALSE) -> 4 | N8: =VLOOKUP($I8,$I$2:$T$5,COLUMNS($J7:N7)+1,FALSE) -> 0 | O8: =VLOOKUP($I8,$I$2:$T$5,COLUMNS($J7:O7)+1,FALSE) -> 0 | P8: =VLOOKUP($I8,$I$2:$T$5,COLUMNS($J7:P7)+1,FALSE) -> 8 | Q8: =VLOOKUP($I8,$I$2:$T$5,COLUMNS($J7:Q7)+1,FALSE) -> 0 | R8: =VLOOKUP($I8,$I$2:$T$5,COLUMNS($J7:R7)+1,FALSE) -> 8 | S8: =VLOOKUP($I8,$I$2:$T$5,COLUMNS($J7:S7)+1,FALSE) -> 16
A9: 6 | B9: ='Calendriers CG et JG'!N17 -> SMP | C9: ='Calendriers CG et JG'!O17 -> MASS (JG) | I9: 2 | J9: =VLOOKUP($I9,$I$2:$T$5,COLUMNS($J8:J8)+1,FALSE) -> SMP | K9: =VLOOKUP($I9,$I$2:$T$5,COLUMNS($J8:K8)+1,FALSE) -> Saint Michel de Picpus | L9: =VLOOKUP($I9,$I$2:$T$5,COLUMNS($J8:L8)+1,FALSE) -> 4 | M9: =VLOOKUP($I9,$I$2:$T$5,COLUMNS($J8:M8)+1,FALSE) -> 2 | N9: =VLOOKUP($I9,$I$2:$T$5,COLUMNS($J8:N8)+1,FALSE) -> 0 | O9: =VLOOKUP($I9,$I$2:$T$5,COLUMNS($J8:O8)+1,FALSE) -> 2 | P9: =VLOOKUP($I9,$I$2:$T$5,COLUMNS($J8:P8)+1,FALSE) -> 5 | Q9: =VLOOKUP($I9,$I$2:$T$5,COLUMNS($J8:Q8)+1,FALSE) -> 4 | R9: =VLOOKUP($I9,$I$2:$T$5,COLUMNS($J8:R8)+1,FALSE) -> 1 | S9: =VLOOKUP($I9,$I$2:$T$5,COLUMNS($J8:S8)+1,FALSE) -> 10
A10: 7 | B10: ='Calendriers CG et JG'!N18 -> MASS | C10: ='Calendriers CG et JG'!O18 -> 0 | F10: =IF(D10<>"",IF(D10>E10,B10,IF(D10<E10,C10,"nul")),"") ->  | G10: =IF(E10<>"",IF(E10<D10,C10,IF(E10>D10,B10,"nul")),"") ->  | I10: 3 | J10: =VLOOKUP($I10,$I$2:$T$5,COLUMNS($J9:J9)+1,FALSE) -> RS | K10: =VLOOKUP($I10,$I$2:$T$5,COLUMNS($J9:K9)+1,FALSE) -> Robert Schuman | L10: =VLOOKUP($I10,$I$2:$T$5,COLUMNS($J9:L9)+1,FALSE) -> 4 | M10: =VLOOKUP($I10,$I$2:$T$5,COLUMNS($J9:M9)+1,FALSE) -> 0 | N10: =VLOOKUP($I10,$I$2:$T$5,COLUMNS($J9:N9)+1,FALSE) -> 0 | O10: =VLOOKUP($I10,$I$2:$T$5,COLUMNS($J9:O9)+1,FALSE) -> 4 | P10: =VLOOKUP($I10,$I$2:$T$5,COLUMNS($J9:P9)+1,FALSE) -> 0 | Q10: =VLOOKUP($I10,$I$2:$T$5,COLUMNS($J9:Q9)+1,FALSE) -> 9 | R10: =VLOOKUP($I10,$I$2:$T$5,COLUMNS($J9:R9)+1,FALSE) -> -9 | S10: =VLOOKUP($I10,$I$2:$T$5,COLUMNS($J9:S9)+1,FALSE) -> 4
A11: 8 | B11: ='Calendriers CG et JG'!N19 -> RS | C11: ='Calendriers CG et JG'!O19 -> MASS (JG)
A12: 9 | B12: ='Calendriers CG et JG'!N20 -> SMP | C12: ='Calendriers CG et JG'!O20 -> RS (JG)
A13: 10 | B13: ='Calendriers CG et JG'!N21 -> MASS | C13: ='Calendriers CG et JG'!O21 -> MASS (JG) | J13: SIGLE | K13: Etablissement | L13: Matchs joués | M13: Victoires | N13: Nuls | O13: Défaites | P13: Buts Pour | Q13: Buts Contre | R13: Différence | S13: Points
A14: 11 | B14: ='Calendriers CG et JG'!N22 -> 0 | C14: ='Calendriers CG et JG'!O22 -> RS (JG) | I14: =RANK(T14,$T$14:$T$15) -> 2 | J14: RS (JG) | K14: Robert Schuman | L14: =COUNT(D6,D21) -> 2 | M14: =COUNTIF($F$3:$F$33,J14) -> 0 | N14: =L14-M14-O14 -> 1 | O14: =COUNTIF($G$3:$G$33,J14) -> 1 | P14: =SUM(D6,E21) -> 0 | Q14: =SUM(E6,D21) -> 2 | R14: =P14-Q14 -> -2 | S14: =M14*4+N14*2+O14*1 -> 3 | T14: =SUM(S14*1000000+R14*10000+P14*100+L14*10) -> 2980020
A15: 12 | B15: ='Calendriers CG et JG'!N23 -> RS | C15: ='Calendriers CG et JG'!O23 -> SMP | D15: 0 | E15: 3 | F15: SMP | G15: RS | I15: =RANK(T15,$T$14:$T$15) -> 1 | J15: MASS (JG) | K15: Massillon | L15: =COUNT(D6,D21) -> 2 | M15: =COUNTIF($F$3:$F$33,J15) -> 1 | N15: 1 | O15: =COUNTIF($G$3:$G$33,J15) -> 0 | P15: =SUM(E6,D21) -> 2 | Q15: =SUM(D6,E21) -> 0 | R15: =P15-Q15 -> 2 | S15: =M15*4+N15*2+O15*1 -> 6 | T15: =SUM(S15*1000000+R15*10000+P15*100+L15*10) -> 6020220
A16: 13 | B16: ='Calendriers CG et JG'!N24 -> 0 | C16: ='Calendriers CG et JG'!O24 -> MASS (JG)
A17: 14 | B17: ='Calendriers CG et JG'!N25 -> RS | C17: ='Calendriers CG et JG'!O25 -> RS (JG)
A18: 15 | B18: ='Calendriers CG et JG'!N26 -> MASS | C18: ='Calendriers CG et JG'!O26 -> SMP | D18: 2 | E18: 0 | F18: MASS | G18: SMP | I18: Classement | J18: SIGLE | K18: Etablissement | L18: Matchs joués | M18: Victoires | N18: Nuls | O18: Défaites | P18: Buts Pour | Q18: Buts Contre | R18: Différence | S18: Points
A19: 16 | B19: ='Calendriers CG et JG'!N27 -> MASS | C19: ='Calendriers CG et JG'!O27 -> RS | D19: 2 | E19: 0 | F19: MASS | G19: RS | I19: 1 | J19: =VLOOKUP($I19,$I$13:$T$15,COLUMNS($J18:J18)+1,FALSE) -> MASS (JG) | K19: =VLOOKUP($I19,$I$13:$T$15,COLUMNS($J18:K18)+1,FALSE) -> Massillon | L19: =VLOOKUP($I19,$I$13:$T$15,COLUMNS($J18:L18)+1,FALSE) -> 2 | M19: =VLOOKUP($I19,$I$13:$T$15,COLUMNS($J18:M18)+1,FALSE) -> 1 | N19: =VLOOKUP($I19,$I$13:$T$15,COLUMNS($J18:N18)+1,FALSE) -> 1 | O19: =VLOOKUP($I19,$I$13:$T$15,COLUMNS($J18:O18)+1,FALSE) -> 0 | P19: =VLOOKUP($I19,$I$13:$T$15,COLUMNS($J18:P18)+1,FALSE) -> 2 | Q19: =VLOOKUP($I19,$I$13:$T$15,COLUMNS($J18:Q18)+1,FALSE) -> 0 | R19: =VLOOKUP($I19,$I$13:$T$15,COLUMNS($J18:R18)+1,FALSE) -> 2 | S19: =VLOOKUP($I19,$I$13:$T$15,COLUMNS($J18:S18)+1,FALSE) -> 6
A20: 17 | B20: ='Calendriers CG et JG'!N28 -> 0 | C20: ='Calendriers CG et JG'!O28 -> SMP | I20: 2 | J20: =VLOOKUP($I20,$I$13:$T$15,COLUMNS($J19:J19)+1,FALSE) -> RS (JG) | K20: =VLOOKUP($I20,$I$13:$T$15,COLUMNS($J19:K19)+1,FALSE) -> Robert Schuman | L20: =VLOOKUP($I20,$I$13:$T$15,COLUMNS($J19:L19)+1,FALSE) -> 2 | M20: =VLOOKUP($I20,$I$13:$T$15,COLUMNS($J19:M19)+1,FALSE) -> 0 | N20: =VLOOKUP($I20,$I$13:$T$15,COLUMNS($J19:N19)+1,FALSE) -> 1 | O20: =VLOOKUP($I20,$I$13:$T$15,COLUMNS($J19:O19)+1,FALSE) -> 1 | P20: =VLOOKUP($I20,$I$13:$T$15,COLUMNS($J19:P19)+1,FALSE) -> 0 | Q20: =VLOOKUP($I20,$I$13:$T$15,COLUMNS($J19:Q19)+1,FALSE) -> 2 | R20: =VLOOKUP($I20,$I$13:$T$15,COLUMNS($J19:R19)+1,FALSE) -> -2 | S20: =VLOOKUP($I20,$I$13:$T$15,COLUMNS($J19:S19)+1,FALSE) -> 3
A21: 18 | B21: ='Calendriers CG et JG'!N29 -> MASS (JG) | C21: ='Calendriers CG et JG'!O29 -> RS (JG) | D21: 2 | E21: 0 | F21: MASS (JG) | G21: RS (JG)
A22: 19 | B22: ='Calendriers CG et JG'!N30 -> 0 | C22: ='Calendriers CG et JG'!O30 -> RS
A23: 20 | B23: ='Calendriers CG et JG'!N31 -> RS (JG) | C23: ='Calendriers CG et JG'!O31 -> MASS
A24: 21 | B24: ='Calendriers CG et JG'!N32 -> MASS (JG) | C24: ='Calendriers CG et JG'!O32 -> SMP
A25: 22 | B25: ='Calendriers CG et JG'!N33 -> 0 | C25: ='Calendriers CG et JG'!O33 -> MASS
A26: 23 | B26: ='Calendriers CG et JG'!N34 -> MASS (JG) | C26: ='Calendriers CG et JG'!O34 -> RS
A27: 24 | B27: ='Calendriers CG et JG'!N35 -> RS (JG) | C27: ='Calendriers CG et JG'!O35 -> SMP
A28: 25 | B28: ='Calendriers CG et JG'!N36 -> MASS (JG) | C28: ='Calendriers CG et JG'!O36 -> MASS
A29: 26 | B29: ='Calendriers CG et JG'!N37 -> RS (JG) | C29: ='Calendriers CG et JG'!O37 -> 0
A30: 27 | B30: ='Calendriers CG et JG'!N38 -> SMP | C30: ='Calendriers CG et JG'!O38 -> RS | D30: 2 | E30: 0 | F30: SMP | G30: RS
A31: 28 | B31: ='Calendriers CG et JG'!N39 -> MASS (JG) | C31: ='Calendriers CG et JG'!O39 -> 0
A32: 29 | B32: ='Calendriers CG et JG'!N40 -> RS (JG) | C32: ='Calendriers CG et JG'!O40 -> RS
A33: 30 | B33: ='Calendriers CG et JG'!N41 -> SMP | C33: ='Calendriers CG et JG'!O41 -> MASS | D33: 0 | E33: 2 | F33: MASS | G33: SMP

Sheet Classements
A1: CLASSEMENT PROMO BENJAMINS 2021-2022 | M1: CLASSEMENT PROMO MINIMES 2021-2022
A3: DIVISION 1 | M3: DIVISION 1
A4: Classement | B4: SIGLE | C4: Etablissement | D4: Matchs joués | E4: Victoires | F4: Nuls | G4: Défaites | H4: Buts Pour | I4: Buts Contre | J4: Différence | K4: Points | M4: Classement | N4: SIGLE | O4: Etablissement | P4: Matchs joués | Q4: Victoires | R4: Nuls | S4: Défaites | T4: Buts Pour | U4: Buts Contre | V4: Différence | W4: Points
A5: 1 | B5: ='Cls B1'!J15 -> SJL 1 | C5: ='Cls B1'!K15 -> Saint Justin Levallois 1 | D5: ='Cls B1'!L15 -> 16 | E5: ='Cls B1'!M15 -> 16 | F5: ='Cls B1'!N15 -> 0 | G5: ='Cls B1'!O15 -> 0 | H5: ='Cls B1'!P15 -> 68 | I5: ='Cls B1'!Q15 -> 8 | J5: ='Cls B1'!R15 -> 60 | K5: ='Cls B1'!S15 -> 64 | M5: 1 | N5: ='Cls MG'!J19 -> MASS 1 | O5: ='Cls MG'!K19 -> Massillon 1 | P5: ='Cls MG'!L19 -> 22 | Q5: ='Cls MG'!M19 -> 18 | R5: ='Cls MG'!N19 -> 3 | S5: ='Cls MG'!O19 -> 1 | T5: ='Cls MG'!P19 -> 66 | U5: ='Cls MG'!Q19 -> 7 | V5: ='Cls MG'!R19 -> 59 | W5: ='Cls MG'!S19 -> 79
A6: 2 | B6: ='Cls B1'!J16 -> MASS 1 | C6: ='Cls B1'!K16 -> Massillon 1 | D6: ='Cls B1'!L16 -> 16 | E6: ='Cls B1'!M16 -> 10 | F6: ='Cls B1'!N16 -> 4 | G6: ='Cls B1'!O16 -> 2 | H6: ='Cls B1'!P16 -> 39 | I6: ='Cls B1'!Q16 -> 14 | J6: ='Cls B1'!R16 -> 25 | K6: ='Cls B1'!S16 -> 50 | M6: 2 | N6: ='Cls MG'!J20 -> STAN 2 | O6: ='Cls MG'!K20 -> Stanislas 2 | P6: ='Cls MG'!L20 -> 22 | Q6: ='Cls MG'!M20 -> 19 | R6: ='Cls MG'!N20 -> 0 | S6: ='Cls MG'!O20 -> 3 | T6: ='Cls MG'!P20 -> 62 | U6: ='Cls MG'!Q20 -> 12 | V6: ='Cls MG'!R20 -> 50 | W6: ='Cls MG'!S20 -> 79
A7: 3 | B7: ='Cls B1'!J17 -> STAN 1 | C7: ='Cls B1'!K17 -> Stanislas 1 | D7: ='Cls B1'!L17 -> 16 | E7: ='Cls B1'!M17 -> 10 | F7: ='Cls B1'!N17 -> 3 | G7: ='Cls B1'!O17 -> 3 | H7: ='Cls B1'!P17 -> 41 | I7: ='Cls B1'!Q17 -> 14 | J7: ='Cls B1'!R17 -> 27 | K7: ='Cls B1'!S17 -> 49 | M7: 3 | N7: ='Cls MG'!J21 -> SANO | O7: ='Cls MG'!K21 -> Saint André de Nogent | P7: ='Cls MG'!L21 -> 22 | Q7: ='Cls MG'!M21 -> 15 | R7: ='Cls MG'!N21 -> 4 | S7: ='Cls MG'!O21 -> 3 | T7: ='Cls MG'!P21 -> 53 | U7: ='Cls MG'!Q21 -> 13 | V7: ='Cls MG'!R21 -> 40 | W7: ='Cls MG'!S21 -> 71
A8: 4 | B8: ='Cls B1'!J18 -> FEN 1 | C8: ='Cls B1'!K18 -> Fénelon Ste Marie 1 | D8: ='Cls B1'!L18 -> 16 | E8: ='Cls B1'!M18 -> 8 | F8: ='Cls B1'!N18 -> 1 | G8: ='Cls B1'!O18 -> 7 | H8: ='Cls B1'!P18 -> 33 | I8: ='Cls B1'!Q18 -> 24 | J8: ='Cls B1'!R18 -> 9 | K8: ='Cls B1'!S18 -> 41 | M8: 4 | N8: ='Cls MG'!J22 -> FEN 1 | O8: ='Cls MG'!K22 -> Fénelon Sainte Marie 1 | P8: ='Cls MG'!L22 -> 22 | Q8: ='Cls MG'!M22 -> 15 | R8: ='Cls MG'!N22 -> 4 | S8: ='Cls MG'!O22 -> 3 | T8: ='Cls MG'!P22 -> 59 | U8: ='Cls MG'!Q22 -> 22 | V8: ='Cls MG'!R22 -> 37 | W8: ='Cls MG'!S22 -> 71
A9: 5 | B9: ='Cls B1'!J19 -> JBS 1 | C9: ='Cls B1'!K19 -> Jean Baptiste La Salle 1 | D9: ='Cls B1'!L19 -> 16 | E9: ='Cls B1'!M19 -> 6 | F9: ='Cls B1'!N19 -> 2 | G9: ='Cls B1'!O19 -> 8 | H9: ='Cls B1'!P19 -> 23 | I9: ='Cls B1'!Q19 -> 35 | J9: ='Cls B1'!R19 -> -12 | K9: ='Cls B1'!S19 -> 36 | M9: 5 | N9: ='Cls MG'!J23 -> STAN 1 | O9: ='Cls MG'!K23 -> Stanislas 1 | P9: ='Cls MG'!L23 -> 22 | Q9: ='Cls MG'!M23 -> 15 | R9: ='Cls MG'!N23 -> 1 | S9: ='Cls MG'!O23 -> 6 | T9: ='Cls MG'!P23 -> 55 | U9: ='Cls MG'!Q23 -> 12 | V9: ='Cls MG'!R23 -> 43 | W9: ='Cls MG'!S23 -> 68
A10: 6 | B10: ='Cls B1'!J20 -> SJL 2 | C10: ='Cls B1'!K20 -> Saint Justin Levallois 2 | D10: ='Cls B1'!L20 -> 16 | E10: ='Cls B1'!M20 -> 6 | F10: ='Cls B1'!N20 -> 2 | G10: ='Cls B1'!O20 -> 8 | H10: ='Cls B1'!P20 -> 22 | I10: ='Cls B1'!Q20 -> 36 | J10: ='Cls B1'!R20 -> -14 | K10: ='Cls B1'!S20 -> 36 | M10: 6 | N10: ='Cls MG'!J24 -> MASS 2 | O10: ='Cls MG'!K24 -> Massillon 2 | P10: ='Cls MG'!L24 -> 22 | Q10: ='Cls MG'!M24 -> 9 | R10: ='Cls MG'!N24 -> 3 | S10: ='Cls MG'!O24 -> 10 | T10: ='Cls MG'!P24 -> 29 | U10: ='Cls MG'!Q24 -> 40 | V10: ='Cls MG'!R24 -> -11 | W10: ='Cls MG'!S24 -> 52
A11: 7 | B11: ='Cls B1'!J21 -> ROC 1 | C11: ='Cls B1'!K21 -> Rocroy St Vincent 1 | D11: ='Cls B1'!L21 -> 16 | E11: ='Cls B1'!M21 -> 4 | F11: ='Cls B1'!N21 -> 3 | G11: ='Cls B1'!O21 -> 9 | H11: ='Cls B1'!P21 -> 14 | I11: ='Cls B1'!Q21 -> 26 | J11: ='Cls B1'!R21 -> -12 | K11: ='Cls B1'!S21 -> 31 | M11: 7 | N11: ='Cls MG'!J25 -> BND | O11: ='Cls MG'!K25 -> Bossuet Notre Dame | P11: ='Cls MG'!L25 -> 22 | Q11: ='Cls MG'!M25 -> 6 | R11: ='Cls MG'!N25 -> 4 | S11: ='Cls MG'!O25 -> 12 | T11: ='Cls MG'!P25 -> 25 | U11: ='Cls MG'!Q25 -> 49 | V11: ='Cls MG'!R25 -> -24 | W11: ='Cls MG'!S25 -> 44
A12: 8 | B12: ='Cls B1'!J22 -> STAN 2 | C12: ='Cls B1'!K22 -> Stanislas 2 | D12: ='Cls B1'!L22 -> 16 | E12: ='Cls B1'!M22 -> 3 | F12: ='Cls B1'!N22 -> 1 | G12: ='Cls B1'!O22 -> 12 | H12: ='Cls B1'!P22 -> 12 | I12: ='Cls B1'!Q22 -> 48 | J12: ='Cls B1'!R22 -> -36 | K12: ='Cls B1'!S22 -> 26 | M12: 8 | N12: ='Cls MG'!J26 -> STAN 3 | O12: ='Cls MG'!K26 -> Stanislas 3 | P12: ='Cls MG'!L26 -> 22 | Q12: ='Cls MG'!M26 -> 6 | R12: ='Cls MG'!N26 -> 3 | S12: ='Cls MG'!O26 -> 13 | T12: ='Cls MG'!P26 -> 16 | U12: ='Cls MG'!Q26 -> 40 | V12: ='Cls MG'!R26 -> -24 | W12: ='Cls MG'!S26 -> 43
A13: 9 | B13: ='Cls B1'!J23 -> MASS 2 | C13: ='Cls B1'!K23 -> Massillon 2 | D13: ='Cls B1'!L23 -> 16 | E13: ='Cls B1'!M23 -> 1 | F13: ='Cls B1'!N23 -> 0 | G13: ='Cls B1'!O23 -> 15 | H13: ='Cls B1'!P23 -> 15 | I13: ='Cls B1'!Q23 -> 48 | J13: ='Cls B1'!R23 -> -33 | K13: ='Cls B1'!S23 -> 19 | M13: 9 | N13: ='Cls MG'!J27 -> ROC | O13: ='Cls MG'!K27 -> Rocroy Saint Vincent | P13: ='Cls MG'!L27 -> 22 | Q13: ='Cls MG'!M27 -> 6 | R13: ='Cls MG'!N27 -> 1 | S13: ='Cls MG'!O27 -> 15 | T13: ='Cls MG'!P27 -> 26 | U13: ='Cls MG'!Q27 -> 63 | V13: ='Cls MG'!R27 -> -37 | W13: ='Cls MG'!S27 -> 41
A14: DIVISION 2 | M14: 10 | N14: ='Cls MG'!J28 -> ASVP | O14: ='Cls MG'!K28 -> Saint Vincent de Paul | P14: ='Cls MG'!L28 -> 22 | Q14: ='Cls MG'!M28 -> 5 | R14: ='Cls MG'!N28 -> 1 | S14: ='Cls MG'!O28 -> 16 | T14: ='Cls MG'!P28 -> 22 | U14: ='Cls MG'!Q28 -> 44 | V14: ='Cls MG'!R28 -> -22 | W14: ='Cls MG'!S28 -> 38
A15: Classement | B15: SIGLE | C15: Etablissement | D15: Matchs joués | E15: Victoires | F15: Nuls | G15: Défaites | H15: Buts Pour | I15: Buts Contre | J15: Différence | K15: Points | M15: 11 | N15: ='Cls MG'!J29 -> FEN 2 | O15: ='Cls MG'!K29 -> Fénelon Sainte Marie 2 | P15: ='Cls MG'!L29 -> 22 | Q15: ='Cls MG'!M29 -> 4 | R15: ='Cls MG'!N29 -> 3 | S15: ='Cls MG'!O29 -> 15 | T15: ='Cls MG'!P29 -> 17 | U15: ='Cls MG'!Q29 -> 49 | V15: ='Cls MG'!R29 -> -32 | W15: ='Cls MG'!S29 -> 37
A16: 1 | B16: ='Cls B2 et B3'!J62 -> SANO | C16: ='Cls B2 et B3'!K62 -> Saint André Nogent | D16: ='Cls B2 et B3'!L62 -> 8 | E16: ='Cls B2 et B3'!M62 -> 7 | F16: ='Cls B2 et B3'!N62 -> 0 | G16: ='Cls B2 et B3'!O62 -> 1 | H16: ='Cls B2 et B3'!P62 -> 29 | I16: ='Cls B2 et B3'!Q62 -> 4 | J16: ='Cls B2 et B3'!R62 -> 25 | K16: ='Cls B2 et B3'!S62 -> 29 | M16: 12 | N16: ='Cls MG'!J30 -> JBS | O16: ='Cls MG'!K30 -> Jean Baptiste La Salle Saint-Denis | P16: ='Cls MG'!L30 -> 22 | Q16: ='Cls MG'!M30 -> 1 | R16: ='Cls MG'!N30 -> 0 | S16: ='Cls MG'!O30 -> 21 | T16: ='Cls MG'!P30 -> 11 | U16: ='Cls MG'!Q30 -> 91 | V16: ='Cls MG'!R30 -> -80 | W16: ='Cls MG'!S30 -> 25
A17: 2 | B17: ='Cls B2 et B3'!J63 -> FEN 2 | C17: ='Cls B2 et B3'!K63 -> Fénelon Ste Marie 2 | D17: ='Cls B2 et B3'!L63 -> 8 | E17: ='Cls B2 et B3'!M63 -> 7 | F17: ='Cls B2 et B3'!N63 -> 0 | G17: ='Cls B2 et B3'!O63 -> 1 | H17: ='Cls B2 et B3'!P63 -> 15 | I17: ='Cls B2 et B3'!Q63 -> 2 | J17: ='Cls B2 et B3'!R63 -> 13 | K17: ='Cls B2 et B3'!S63 -> 29 | M17: CLASSEMENT PROMO CADETS 2021-2022
A18: 3 | B18: ='Cls B2 et B3'!J64 -> BND | C18: ='Cls B2 et B3'!K64 -> Bossuet Notre Dame | D18: ='Cls B2 et B3'!L64 -> 8 | E18: ='Cls B2 et B3'!M64 -> 2 | F18: ='Cls B2 et B3'!N64 -> 1 | G18: ='Cls B2 et B3'!O64 -> 5 | H18: ='Cls B2 et B3'!P64 -> 7 | I18: ='Cls B2 et B3'!Q64 -> 13 | J18: ='Cls B2 et B3'!R64 -> -6 | K18: ='Cls B2 et B3'!S64 -> 15
A19: 4 | B19: ='Cls B2 et B3'!J65 -> SJL 3 | C19: ='Cls B2 et B3'!K65 -> Saint Justin Levallois 3 | D19: ='Cls B2 et B3'!L65 -> 8 | E19: ='Cls B2 et B3'!M65 -> 2 | F19: ='Cls B2 et B3'!N65 -> 1 | G19: ='Cls B2 et B3'!O65 -> 5 | H19: ='Cls B2 et B3'!P65 -> 5 | I19: ='Cls B2 et B3'!Q65 -> 15 | J19: ='Cls B2 et B3'!R65 -> -10 | K19: ='Cls B2 et B3'!S65 -> 15 | M19: Classement | N19: SIGLE | O19: Etablissement | P19: Matchs joués | Q19: Victoires | R19: Nuls | S19: Défaites | T19: Buts Pour | U19: Buts Contre | V19: Différence | W19: Points
A20: 5 | B20: ='Cls B2 et B3'!J66 -> STAN 3 | C20: ='Cls B2 et B3'!K66 -> Stanislas 3 | D20: ='Cls B2 et B3'!L66 -> 8 | E20: ='Cls B2 et B3'!M66 -> 1 | F20: ='Cls B2 et B3'!N66 -> 0 | G20: ='Cls B2 et B3'!O66 -> 7 | H20: ='Cls B2 et B3'!P66 -> 5 | I20: ='Cls B2 et B3'!Q66 -> 27 | J20: ='Cls B2 et B3'!R66 -> -22 | K20: ='Cls B2 et B3'!S66 -> 11 | M20: 1 | N20: ='Cls CG et JG'!J8 -> MASS | O20: ='Cls CG et JG'!K8 -> Massillon | P20: ='Cls CG et JG'!L8 -> 4 | Q20: ='Cls CG et JG'!M8 -> 4 | R20: ='Cls CG et JG'!N8 -> 0 | S20: ='Cls CG et JG'!O8 -> 0 | T20: ='Cls CG et JG'!P8 -> 8 | U20: ='Cls CG et JG'!Q8 -> 0 | V20: ='Cls CG et JG'!R8 -> 8 | W20: ='Cls CG et JG'!S8 -> 16
A21: DIVISION 3 | M21: 2 | N21: ='Cls CG et JG'!J9 -> SMP | O21: ='Cls CG et JG'!K9 -> Saint Michel de Picpus | P21: ='Cls CG et JG'!L9 -> 4 | Q21: ='Cls CG et JG'!M9 -> 2 | R21: ='Cls CG et JG'!N9 -> 0 | S21: ='Cls CG et JG'!O9 -> 2 | T21: ='Cls CG et JG'!P9 -> 5 | U21: ='Cls CG et JG'!Q9 -> 4 | V21: ='Cls CG et JG'!R9 -> 1 | W21: ='Cls CG et JG'!S9 -> 10
A22: Classement | B22: SIGLE | C22: Etablissement | D22: Matchs joués | E22: Victoires | F22: Nuls | G22: Défaites | H22: Buts Pour | I22: Buts Contre | J22: Différence | K22: Points | M22: 3 | N22: ='Cls CG et JG'!J10 -> RS | O22: ='Cls CG et JG'!K10 -> Robert Schuman | P22: ='Cls CG et JG'!L10 -> 4 | Q22: ='Cls CG et JG'!M10 -> 0 | R22: ='Cls CG et JG'!N10 -> 0 | S22: ='Cls CG et JG'!O10 -> 4 | T22: ='Cls CG et JG'!P10 -> 0 | U22: ='Cls CG et JG'!Q10 -> 9 | V22: ='Cls CG et JG'!R10 -> -9 | W22: ='Cls CG et JG'!S10 -> 4
A23: 1 | B23: ='Cls B2 et B3'!J87 -> JBS 2 | C23: ='Cls B2 et B3'!K87 -> Jean Baptiste La Salle 2 | D23: ='Cls B2 et B3'!L87 -> 8 | E23: ='Cls B2 et B3'!M87 -> 6 | F23: ='Cls B2 et B3'!N87 -> 0 | G23: ='Cls B2 et B3'!O87 -> 2 | H23: ='Cls B2 et B3'!P87 -> 22 | I23: ='Cls B2 et B3'!Q87 -> 11 | J23: ='Cls B2 et B3'!R87 -> 11 | K23: ='Cls B2 et B3'!S87 -> 26 | M23: CLASSEMENT PROMO JUNIORS 2021-2022
A24: 2 | B24: ='Cls B2 et B3'!J88 -> ASVP | C24: ='Cls B2 et B3'!K88 -> Saint Vincent de Paul | D24: ='Cls B2 et B3'!L88 -> 8 | E24: ='Cls B2 et B3'!M88 -> 5 | F24: ='Cls B2 et B3'!N88 -> 0 | G24: ='Cls B2 et B3'!O88 -> 3 | H24: ='Cls B2 et B3'!P88 -> 21 | I24: ='Cls B2 et B3'!Q88 -> 13 | J24: ='Cls B2 et B3'!R88 -> 8 | K24: ='Cls B2 et B3'!S88 -> 23
A25: 3 | B25: ='Cls B2 et B3'!J89 -> FEN 3 | C25: ='Cls B2 et B3'!K89 -> Fénelon Ste Marie 3 | D25: ='Cls B2 et B3'!L89 -> 8 | E25: ='Cls B2 et B3'!M89 -> 5 | F25: ='Cls B2 et B3'!N89 -> 0 | G25: ='Cls B2 et B3'!O89 -> 3 | H25: ='Cls B2 et B3'!P89 -> 12 | I25: ='Cls B2 et B3'!Q89 -> 8 | J25: ='Cls B2 et B3'!R89 -> 4 | K25: ='Cls B2 et B3'!S89 -> 23 | M25: Classement | N25: SIGLE | O25: Etablissement | P25: Matchs joués | Q25: Victoires | R25: Nuls | S25: Défaites | T25: Buts Pour | U25: Buts Contre | V25: Différence | W25: Points
A26: 4 | B26: ='Cls B2 et B3'!J90 -> ROC 2 | C26: ='Cls B2 et B3'!K90 -> Rocroy 2 | D26: ='Cls B2 et B3'!L90 -> 8 | E26: ='Cls B2 et B3'!M90 -> 4 | F26: ='Cls B2 et B3'!N90 -> 0 | G26: ='Cls B2 et B3'!O90 -> 4 | H26: ='Cls B2 et B3'!P90 -> 17 | I26: ='Cls B2 et B3'!Q90 -> 16 | J26: ='Cls B2 et B3'!R90 -> 1 | K26: ='Cls B2 et B3'!S90 -> 20 | M26: 1 | N26: ='Cls CG et JG'!J19 -> MASS (JG) | O26: ='Cls CG et JG'!K19 -> Massillon | P26: ='Cls CG et JG'!L19 -> 2 | Q26: ='Cls CG et JG'!M19 -> 1 | R26: ='Cls CG et JG'!N19 -> 1 | S26: ='Cls CG et JG'!O19 -> 0 | T26: ='Cls CG et JG'!P19 -> 2 | U26: ='Cls CG et JG'!Q19 -> 0 | V26: ='Cls CG et JG'!R19 -> 2 | W26: ='Cls CG et JG'!S19 -> 6
A27: 5 | B27: ='Cls B2 et B3'!J91 -> STAN 4 | C27: ='Cls B2 et B3'!K91 -> Stanislas 4 | D27: ='Cls B2 et B3'!L91 -> 8 | E27: ='Cls B2 et B3'!M91 -> 0 | F27: ='Cls B2 et B3'!N91 -> 0 | G27: ='Cls B2 et B3'!O91 -> 8 | H27: ='Cls B2 et B3'!P91 -> 2 | I27: ='Cls B2 et B3'!Q91 -> 26 | J27: ='Cls B2 et B3'!R91 -> -24 | K27: ='Cls B2 et B3'!S91 -> 8 | M27: 2 | N27: ='Cls CG et JG'!J20 -> RS (JG) | O27: ='Cls CG et JG'!K20 -> Robert Schuman | P27: ='Cls CG et JG'!L20 -> 2 | Q27: ='Cls CG et JG'!M20 -> 0 | R27: ='Cls CG et JG'!N20 -> 1 | S27: ='Cls CG et JG'!O20 -> 1 | T27: ='Cls CG et JG'!P20 -> 0 | U27: ='Cls CG et JG'!Q20 -> 2 | V27: ='Cls CG et JG'!R20 -> -2 | W27: ='Cls CG et JG'!S20 -> 3

Sheet Coupe BG
A1: Tableau des qualifiés | F1: Tableau des perdants
A5: =D41 -> 0 | F5: =D43 -> 0
A7: Match 1
A9: =F42 -> 0 | F9: =F44 -> rien
B10: Match 5 | G10: Match 9
A12: =E42 -> 0 | F12: =E44 -> rien
A14: Match 2
A16: =G41 -> 0 | F16: =G43 -> 0
C17: Finale | H17: Match 11
A19: =F41 -> 0 | F19: =E43 -> 0
A21: Match 3 | F21: Match 7
A23: =D42 -> 0 | F23: =G44 -> 0
B24: Match 6 | G24: Match 10
A26: =G42 -> 0 | F26: =D44 -> 0
A28: Match 4 | F28: Match 8
A30: =E41 -> 0 | F30: =F43 -> 0
C31: Petite finale | H31: Match 12
D33: Match de 10 Min en poule
E34: Match de 15 Min en Tableau | I34: Horaires | J34: TA SANO : poule 1 et 4 | K34: TB SANO | L34: TA MASS | M34: TB MASS : Poule 2 et 3
A35: SJL 1 | B35: 1 | D35: Poule 1 | E35: Poule 2 | F35: Poule 3 | G35: Poule 4 | I35: 14h | J35: SJL 1 / STAN 4 | K35: MASS 2 / SMP 2 | L35: Echauffement / Préparation aux matchs | M35: MASS 1 / SJL 3
A36: MASS 1 | B36: 2 | D36: =A35 -> SJL 1 | E36: =A36 -> MASS 1 | F36: =A37 -> STAN 1 | G36: =A38 -> SMP 1 | I36: 14h15 | J36: SMP 1 / ASVP | K36: SANO / STAN 3 | M36: STAN 1 / BND
A37: STAN 1 | B37: 3 | D37: =A42 -> MASS 2 | E37: =A41 -> STAN 2 | F37: =A40 -> SJL 2 | G37: =A39 -> SANO | I37: 14h30 | J37: SJL 1 / SMP 2 | K37: MASS 2 / STAN 4 | M37: MASS 1 / STAN 2
A38: SMP 1 | B38: 4 | D38: =A43 -> SMP 2 | E38: =A44 -> SJL 3 | F38: =A45 -> BND | G38: =A46 -> STAN 3 | I38: 14h45 | J38: SMP 1 / STAN 3 | K38: SANO / ASVP | M38: STAN 1 / SJL 2
A39: SANO | B39: 5 | D39: =A50 -> STAN 4 | E39: =A49 -> 0 | F39: =A48 -> 0 | G39: =A47 -> ASVP | I39: 15h | J39: SJL 1 / MASS 2 | K39: SMP 2 / STAN 4 | M39: STAN 2 / SJL 3
A40: SJL 2 | B40: 6 | D40: Classement | I40: 15h15 | J40: SMP 1 / SANO | K40: STAN 3 / ASVP | M40: SJL 2 / BND
A41: STAN 2 | B41: 7
A42: MASS 2 | B42: 8 | J42: TA SANO : Tableau A | K42: TB SANO : Tableau A | L42: TA MASS : tableau B | M42: TB MASS : Tableau B
A43: SMP 2 | B43: 9 | I43: 15h45 | J43: Match 1 | K43: Match 2 | L43: Match 7 | M43: Match 8
A44: SJL 3 | B44: 10 | E44: rien | F44: rien | I44: 16h05 | J44: Match 3 | K44: Match 4 | L44: Match 9 | M44: Match 10
A45: BND | B45: 11 | I45: 16h25 | J45: Match 5 | K45: Match 6 | L45: Match 11 | M45: Match 12
A46: STAN 3 | B46: 12 | I46: 16h45 | J46: Finale | K46: Petite Finale
A47: ASVP | B47: 13
B48: 14
B49: 15
A50: STAN 4 | B50: 16

Sheet Coupe MG
A1: Matchs au Tremblay
A41: SANO | B41: 1
A42: BND | B42: 2
A43: ASVP | B43: 3
A44: SMP 1 | B44: 4
A45: SMP 2 | B45: 5
A46: MASS 1 | B46: 6
A47: MASS 2 | B47: 7
A48: STAN 1 | B48: 8
A49: STAN 2 | B49: 9
A50: STAN 3 | B50: 10
B51: 11
B52: 12
B53: 13
B54: 14
B55: 15
A57: Poule 1 | B57: Poule 2 | C57: Poule 3 | D57: Poule 4
A58: =A41 -> SANO | B58: =A42 -> BND | C58: =A43 -> ASVP | D58: =A44 -> SMP 1
A59: =A48 -> STAN 1 | B59: =A47 -> MASS 2 | C59: =A46 -> MASS 1 | D59: =A45 -> SMP 2
A60: =A49 -> STAN 2 | B60: =A50 -> STAN 3 | C60: =A51 -> 0 | D60: =A52 -> 0
B61: =A55 -> 0 | C61: =A54 -> 0 | D61: =A53 -> 0
A62: Classement

Sheet Indispos profs
A1: DATES D'INDISPONIBILITES DES ETABLISSEMENTS
A2: SIGLES | B2: Benjamins | G2: Minimes | L2: Lycée
A3: SANO | B3: 15 dec | C3: 2021-03-23 | D3: 2022-02-16 | G3: 15 dec | H3: 2021-03-23 | I3: 2022-02-16
A4: FEN
A5: RS
A6: MASS | B6: 2021-01-12 | C6: 2022-03-30 | D6: 2022-04-06 | G6: 2021-11-24 | H6: 15 dec | I6: 2022-03-30 | J6: 2022-04-06 | L6: 24 nov (Term) | M6: 1er dec (Term)
A7: BND | B7: 2021-01-26 | G7: 2021-01-26
A8: SJL | B8: 2022-03-09
A9: STAN | B9: 15 dec | C9: 16 fev | D9: 2021-04-20 | E9: 2021-05-25 | G9: 2021-01-26 | H9: 2021-04-20 | I9: 2021-05-25 | J9: 15 dec
A10: JBS
A11: ASVP
A12: SMP | L12: 15 dec | M12: 2021-03-09
A13: ROC | B13: 8 dec | C13: 2021-01-05 | G13: 8 dec | H13: 2021-01-05

Sheet Listing profs
A1: LISTING FOOTBALL 2021-2022
A2: NOM D'ETABLISSEMENT | B2: SIGLE | C2: NOM et PRENOM | D2: N° MOBILE | E2: MAIL
A3: ST JUSTIN LEVALLOIS | B3: SJL | C3: DELOUIS Gilles | D3: 06 81 59 13 44 | E3: g.delouis@free.fr
C4: MONDON Martial | D4: 06 70 88 13 05 | E4: martialmondon@yahoo.fr
A5: BOSSUET NOTRE DAME | B5: BND | C5: DEVEVEY Julien | D5: 06 13 79 51 23 | E5: jdevevey@gmail.com
A6: STANISLAS | B6: STAN | C6: SOUCHON Thomas | D6: 06 47 95 45 15 | E6: thomas.souchon.eps@gmail.com
C7: BUISSETTE Julie | D7: 06 33 77 83 00 | E7: julie.buissette@stanislas-paris.fr
A8: FENELON | B8: FEN | C8: CALAMY Anthony | D8: 06 64 31 57 28 | E8: anthony.calamy@outlook.fr
C9: VIVIN Yannick | D9: 06 80 12 56 57 | E9: y.vivin@yahoo.fr
A10: ST ANDRE DE NOGENT | B10: SANO | C10: PECHEUX Michel | D10: 06 73 17 40 28
A11: ST CROIX DE NEUILLY | B11: SCN | C11: MARTIN Eric | D11: 06 15 96 62 42 | E11: e.martin@handisport.org
C12: BELLAUD Jocelyn | D12: 06 51 99 25 34 | E12: jocelynbellaud210@hotmail.com
C13: MENDOWSKI Isabelle | E13: lefloch.thierry@neuf.fr
A14: ST MICHEL DE PICPUS | B14: SMP | C14: RAMIREZ Sébastien | D14: 06 07 21 13 52 | E14: assmp@smpicpus.fr
C15: LEVESQUE Florian | D15: 07 89 42 53 55
C16: RAYMOND Benjamin | D16: 06 48 05 89 57
A17: MASSILLON | B17: MASS | C17: CAM Mickael | D17: 06 24 20 56 65 | E17: cam.mickael@yahoo.fr
C18: MAINDRON Séraphin | D18: 06 59 88 91 08 | E18: seraphinmaindron@hotmail.com
C19: BAUZOU Louis | D19: 06 58 37 75 23 | E19: louis.bauzou@gmail.com
C20: STOCCHI Giacomo | D20: 06 12 38 28 79 | E20: giacomostocchi@orange.fr
A21: ROBERT SCHUMAN | B21: RS | C21: BUZON Franck | D21: 06 88 84 33 70 | E21: f.buze@laposte.net
A22: JEAN-BAPTISTE DE LA SALLE | B22: JBS | C22: TOUSSAINT Gaetan | D22: 06 61 46 71 33 | E22: gaetan.toussaint@lasallesaintdenis.com
A23: ROCROY SAINT VINCENT | B23: ROC | C23: CARBONNIER Théo | D23: 06 52 25 22 19 | E23: t.carbonnier@ileps.fr
A24: SAINT VINCENT DE PAUL | B24: ASVP | C24: MOLINER Maxime | E24: m.moliner@gs-svp.com

Sheet Installations
A1: INSTALLATIONS FOOTBALL 2021/2022
A2: NOM DU TERRAIN | B2: COORDONNEES | C2: MOYENS D'ACCES | D2: HORAIRES | E2: TERRAINS | F2: DISPONIBILITES
A4: Stade Pershing Terrain n° 5, 10, 11, 14 et 16 | B4: Route du Bosquet Mortemart 75012 Paris | C4: RER A ou métro château de Vincennes. Bus 112 arrêt La faluère | D4: 13h30 à 17h30 | F4: du 1/09 au 6/07
A6: Stade de Puteaux terrain n° 1 et 6 | B6: Ile de puteaux, 1 allée des sports, 92800 PUTEAUX | C6: RER A Grande Arche de la Défense, Métro Esplanade de la Défense | D6: 13h30 à 17h30 terrain 1 | E6: 2 terrains de football à 11 | F6: du 1/09 au 6/07
D7: 13h30 à 16h30 terrain 6
A8: Parc des Sports de La Courneuve Terrain n°6, 7, 10 et 1/2 du 12 | B8: 51 avenue Roger Salengro, 93120 La Courneuve | C8: Bus 150 à la Porte de la Vilette | D8: 13h30 à 17h30 | E8: 6 et 7 prairies, 10 en stabilisé et terrain 12 synthétique | F8: du 1/09 au 6/07
A9: Parc du Tremblay | B9: 161 Bd de Stalingrad 94500 Champigny sur Marne | C9: RER : Nogent le Pérreux + bus 317 ou 116 arrêt parc du Tremblay | D9: 13h45 à 16h30 | E9: Concession SANO : 2 Terrains de Foot à 7 | F9: du 1/09 au 6/07
E10: Concession MASS : 2 Terrains de Foot à 7
A11: Stade Didier Drogba, Complexe Sportif Louison Bobet (Concession SJL) | B11: 15, rue Pablo Neruda 92300 Levallois 01-47-15-75-78 | C11: SNCF Clicy-Levallois + 5’ Métro Louise Michel + 15’ Bus 84-94-274-341-165-PC 165 | D11: TA : 13h45-15h15 TB : 13h45-16h15 | E11: 2 terrains de Foot à 7 | F11: du 1/09 au 15/06
